Body Name,Vendor Number,Vendor Name,Cost Centre,Service Label,BV Code,Amount,Period
Slough Borough Council,806901,4way Consulting Ltd,P240,Capital,Capital Charges,"2,467.77",Oct-22
Slough Borough Council,1055,A J Chapman,F123,Education & Inclusion,Supplies and Services,"65,898.01",Oct-22
Slough Borough Council,536,Ability Housing Association,M42E,Adult Social Care Operations,Supplies and Services,"1,903.62",Oct-22
Slough Borough Council,536,Ability Housing Association,M42E,Adult Social Care Operations,Supplies and Services,"2,769.94",Oct-22
Slough Borough Council,536,Ability Housing Association,M42E,Adult Social Care Operations,Supplies and Services,"2,744.25",Oct-22
Slough Borough Council,536,Ability Housing Association,M42E,Adult Social Care Operations,Supplies and Services,"3,339.80",Oct-22
Slough Borough Council,536,Ability Housing Association,M42E,Adult Social Care Operations,Supplies and Services,"2,925.51",Oct-22
Slough Borough Council,536,Ability Housing Association,M42E,Adult Social Care Operations,Supplies and Services,"3,465.04",Oct-22
Slough Borough Council,536,Ability Housing Association,M42E,Adult Social Care Operations,Supplies and Services,"2,611.79",Oct-22
Slough Borough Council,536,Ability Housing Association,M42E,Adult Social Care Operations,Supplies and Services,"2,584.51",Oct-22
Slough Borough Council,536,Ability Housing Association,M42E,Adult Social Care Operations,Supplies and Services,"1,307.09",Oct-22
Slough Borough Council,536,Ability Housing Association,M42E,Adult Social Care Operations,Supplies and Services,"3,175.55",Oct-22
Slough Borough Council,536,Ability Housing Association,M42E,Adult Social Care Operations,Supplies and Services,"2,801.89",Oct-22
Slough Borough Council,536,Ability Housing Association,M42E,Adult Social Care Operations,Supplies and Services,"2,391.39",Oct-22
Slough Borough Council,536,Ability Housing Association,M42E,Adult Social Care Operations,Supplies and Services,"2,872.96",Oct-22
Slough Borough Council,536,Ability Housing Association,M42E,Adult Social Care Operations,Supplies and Services,"2,760.68",Oct-22
Slough Borough Council,536,Ability Housing Association,M42E,Adult Social Care Operations,Supplies and Services,"2,595.85",Oct-22
Slough Borough Council,536,Ability Housing Association,M42E,Adult Social Care Operations,Supplies and Services,"1,483.26",Oct-22
Slough Borough Council,536,Ability Housing Association,M42E,Adult Social Care Operations,Supplies and Services,"1,945.80",Oct-22
Slough Borough Council,536,Ability Housing Association,M44E,Adult Social Care Operations,Supplies and Services,"1,862.56",Oct-22
Slough Borough Council,536,Ability Housing Association,M44E,Adult Social Care Operations,Supplies and Services,"2,278.76",Oct-22
Slough Borough Council,536,Ability Housing Association,M44E,Adult Social Care Operations,Supplies and Services,"2,361.17",Oct-22
Slough Borough Council,536,Ability Housing Association,M44E,Adult Social Care Operations,Supplies and Services,"1,932.62",Oct-22
Slough Borough Council,807554,Acorn Care & Education Ltd,F558,Children & Families,Supplies and Services,"1,392.00",Oct-22
Slough Borough Council,807554,Acorn Care & Education Ltd,F558,Children & Families,Supplies and Services,"2,208.00",Oct-22
Slough Borough Council,807554,Acorn Care & Education Ltd,F558,Children & Families,Supplies and Services,"2,544.00",Oct-22
Slough Borough Council,807554,Acorn Care & Education Ltd,F558,Children & Families,Supplies and Services,"4,240.00",Oct-22
Slough Borough Council,807554,Acorn Care & Education Ltd,F558,Children & Families,Supplies and Services,"4,240.00",Oct-22
Slough Borough Council,807554,Acorn Care & Education Ltd,F558,Children & Families,Supplies and Services,"4,240.00",Oct-22
Slough Borough Council,807554,Acorn Care & Education Ltd,F558,Children & Families,Supplies and Services,"2,544.00",Oct-22
Slough Borough Council,807554,Acorn Care & Education Ltd,F558,Children & Families,Supplies and Services,"4,240.00",Oct-22
Slough Borough Council,807554,Acorn Care & Education Ltd,F558,Children & Families,Supplies and Services,"4,240.00",Oct-22
Slough Borough Council,807554,Acorn Care & Education Ltd,F558,Children & Families,Supplies and Services,"3,480.00",Oct-22
Slough Borough Council,807554,Acorn Care & Education Ltd,F558,Children & Families,Supplies and Services,"4,240.00",Oct-22
Slough Borough Council,807554,Acorn Care & Education Ltd,F558,Children & Families,Supplies and Services,"2,544.00",Oct-22
Slough Borough Council,807554,Acorn Care & Education Ltd,F558,Children & Families,Supplies and Services,"4,240.00",Oct-22
Slough Borough Council,807554,Acorn Care & Education Ltd,F558,Children & Families,Supplies and Services,"3,480.00",Oct-22
Slough Borough Council,807554,Acorn Care & Education Ltd,F558,Children & Families,Supplies and Services,"4,240.00",Oct-22
Slough Borough Council,807554,Acorn Care & Education Ltd,F558,Children & Families,Supplies and Services,"4,240.00",Oct-22
Slough Borough Council,1506,Acorns Project Limited,P238,Capital,Capital Charges,"1,000.00",Oct-22
Slough Borough Council,2011,Active Iq,C322,Community,Supplies and Services,625.00,Oct-22
Slough Borough Council,807832,Adaptec Mobility Ltd,P006,Capital,Capital Charges,"13,687.45",Oct-22
Slough Borough Council,2855,Advance Housing & Support Ltd,M27F,Adult Social Care Operations,Supplies and Services,"1,004.08",Oct-22
Slough Borough Council,2855,Advance Housing & Support Ltd,M27F,Adult Social Care Operations,Supplies and Services,"1,004.08",Oct-22
Slough Borough Council,2855,Advance Housing & Support Ltd,M42F,Adult Social Care Operations,Supplies and Services,"1,506.12",Oct-22
Slough Borough Council,2855,Advance Housing & Support Ltd,M42F,Adult Social Care Operations,Supplies and Services,"1,004.08",Oct-22
Slough Borough Council,2855,Advance Housing & Support Ltd,M42F,Adult Social Care Operations,Supplies and Services,"1,506.12",Oct-22
Slough Borough Council,2855,Advance Housing & Support Ltd,M42F,Adult Social Care Operations,Supplies and Services,"1,506.12",Oct-22
Slough Borough Council,2855,Advance Housing & Support Ltd,M42F,Adult Social Care Operations,Supplies and Services,753.06,Oct-22
Slough Borough Council,2855,Advance Housing & Support Ltd,M42F,Adult Social Care Operations,Supplies and Services,"1,506.12",Oct-22
Slough Borough Council,2855,Advance Housing & Support Ltd,M42F,Adult Social Care Operations,Supplies and Services,"1,864.72",Oct-22
Slough Borough Council,2855,Advance Housing & Support Ltd,M42F,Adult Social Care Operations,Supplies and Services,"1,609.52",Oct-22
Slough Borough Council,2855,Advance Housing & Support Ltd,M42F,Adult Social Care Operations,Supplies and Services,"1,864.72",Oct-22
Slough Borough Council,2855,Advance Housing & Support Ltd,M42F,Adult Social Care Operations,Supplies and Services,"1,097.40",Oct-22
Slough Borough Council,2855,Advance Housing & Support Ltd,M42F,Adult Social Care Operations,Supplies and Services,"1,170.56",Oct-22
Slough Borough Council,2855,Advance Housing & Support Ltd,M42F,Adult Social Care Operations,Supplies and Services,731.60,Oct-22
Slough Borough Council,2135,Adventure Learning Childcare Limited,F909,Children & Families,Supplies and Services,"11,268.87",Oct-22
Slough Borough Council,805178,AFM Transport Limited,D880,Place Operations,Supplies and Services,"8,877.00",Oct-22
Slough Borough Council,805178,AFM Transport Limited,D880,Place Operations,Supplies and Services,"1,642.00",Oct-22
Slough Borough Council,805178,AFM Transport Limited,D880,Place Operations,Supplies and Services,"1,272.00",Oct-22
Slough Borough Council,805178,AFM Transport Limited,D880,Place Operations,Supplies and Services,"1,560.00",Oct-22
Slough Borough Council,805178,AFM Transport Limited,D880,Place Operations,Supplies and Services,"12,568.00",Oct-22
Slough Borough Council,805178,AFM Transport Limited,D880,Place Operations,Supplies and Services,848.00,Oct-22
Slough Borough Council,805178,AFM Transport Limited,D880,Place Operations,Supplies and Services,848.00,Oct-22
Slough Borough Council,805178,AFM Transport Limited,D880,Place Operations,Supplies and Services,602.24,Oct-22
Slough Borough Council,805178,AFM Transport Limited,D880,Place Operations,Supplies and Services,"2,216.00",Oct-22
Slough Borough Council,1656,Agile Applications Limited,D224,Place Regulation,Supplies and Services,"15,000.00",Oct-22
Slough Borough Council,86,Altwood Properties Ltd,H205,Housing (People) Services,Premises,"54,045.58",Oct-22
Slough Borough Council,807515,Always Growing Together Community Interest Company Limited,F909,Children & Families,Supplies and Services,"9,888.06",Oct-22
Slough Borough Council,808368,Anthony Toby Homes Trust,M26E,Adult Social Care Operations,Supplies and Services,"5,413.80",Oct-22
Slough Borough Council,3137,Applegarth Care Home Ltd,M25C,Adult Social Care Operations,Supplies and Services,"3,200.00",Oct-22
Slough Borough Council,3137,Applegarth Care Home Ltd,M25C,Adult Social Care Operations,Supplies and Services,"3,400.00",Oct-22
Slough Borough Council,3137,Applegarth Care Home Ltd,M25C,Adult Social Care Operations,Supplies and Services,"3,200.00",Oct-22
Slough Borough Council,3137,Applegarth Care Home Ltd,M25C,Adult Social Care Operations,Supplies and Services,"3,400.00",Oct-22
Slough Borough Council,3137,Applegarth Care Home Ltd,M27C,Adult Social Care Operations,Supplies and Services,"3,500.00",Oct-22
Slough Borough Council,3137,Applegarth Care Home Ltd,M27C,Adult Social Care Operations,Supplies and Services,"3,780.00",Oct-22
Slough Borough Council,3137,Applegarth Care Home Ltd,M27C,Adult Social Care Operations,Supplies and Services,"3,780.00",Oct-22
Slough Borough Council,3137,Applegarth Care Home Ltd,M27C,Adult Social Care Operations,Supplies and Services,"1,350.00",Oct-22
Slough Borough Council,3137,Applegarth Care Home Ltd,M27C,Adult Social Care Operations,Supplies and Services,"3,780.00",Oct-22
Slough Borough Council,3137,Applegarth Care Home Ltd,M27C,Adult Social Care Operations,Supplies and Services,"3,780.00",Oct-22
Slough Borough Council,3137,Applegarth Care Home Ltd,M27C,Adult Social Care Operations,Supplies and Services,"3,780.00",Oct-22
Slough Borough Council,3137,Applegarth Care Home Ltd,M27C,Adult Social Care Operations,Supplies and Services,"3,500.00",Oct-22
Slough Borough Council,3137,Applegarth Care Home Ltd,M28C,Adult Social Care Operations,Supplies and Services,"2,430.00",Oct-22
Slough Borough Council,3137,Applegarth Care Home Ltd,M28C,Adult Social Care Operations,Supplies and Services,"1,221.39",Oct-22
Slough Borough Council,3137,Applegarth Care Home Ltd,M28C,Adult Social Care Operations,Supplies and Services,"1,357.10",Oct-22
Slough Borough Council,808206,Applenet Care & Support,M81D,Adult Social Care Operations,Supplies and Services,"9,858.00",Oct-22
Slough Borough Council,808206,Applenet Care & Support,M81D,Adult Social Care Operations,Supplies and Services,"9,540.00",Oct-22
Slough Borough Council,808206,Applenet Care & Support,M81D,Adult Social Care Operations,Supplies and Services,"9,858.00",Oct-22
Slough Borough Council,808206,Applenet Care & Support,M81D,Adult Social Care Operations,Supplies and Services,"1,590.00",Oct-22
Slough Borough Council,808415,APTUS EA LTD,H205,Housing (People) Services,Supplies and Services,"78,575.00",Oct-22
Slough Borough Council,3350,Arbour Vale School,E610,Children & Families,Supplies and Services,"17,642.55",Oct-22
Slough Borough Council,2073,Arc Preschool,F909,Children & Families,Supplies and Services,"5,820.15",Oct-22
Slough Borough Council,831,Argos Business Solutions Ltd,H055,Finance & Commercial,Supplies and Services,"5,824.25",Oct-22
Slough Borough Council,831,Argos Business Solutions Ltd,H055,Finance & Commercial,Supplies and Services,"4,178.25",Oct-22
Slough Borough Council,831,Argos Business Solutions Ltd,H055,Finance & Commercial,Supplies and Services,"3,638.00",Oct-22
Slough Borough Council,831,Argos Business Solutions Ltd,H055,Finance & Commercial,Supplies and Services,"1,474.90",Oct-22
Slough Borough Council,420,Ashburn Estate Agents,H205,Housing (People) Services,Premises,"121,779.00",Oct-22
Slough Borough Council,3666,Assisted Living South West,M26E,Adult Social Care Operations,Supplies and Services,"4,816.04",Oct-22
Slough Borough Council,3666,Assisted Living South West,M26E,Adult Social Care Operations,Supplies and Services,"6,102.44",Oct-22
Slough Borough Council,1292,Association Of Electoral Administrators,B240,Business Services,Salaries and Wages,"1,632.00",Oct-22
Slough Borough Council,570,Atkins Limited,P235,Capital,Supplies and Services,"2,529.18",Oct-22
Slough Borough Council,570,Atkins Limited,P187,Capital,Capital Charges,"12,585.00",Oct-22
Slough Borough Council,570,Atkins Limited,P235,Capital,Capital Charges,"4,503.35",Oct-22
Slough Borough Council,808330,Avison Young,B015,Finance & Commercial,Supplies and Services,"6,000.00",Oct-22
Slough Borough Council,808330,Avison Young,B089,Place Strategy & Infrastructure,Supplies and Services,"55,000.00",Oct-22
Slough Borough Council,808330,Avison Young,P242,Capital,Capital Charges,"7,045.00",Oct-22
Slough Borough Council,808330,Avison Young,P242,Capital,Capital Charges,"11,120.00",Oct-22
Slough Borough Council,808330,Avison Young,P242,Capital,Capital Charges,"10,870.00",Oct-22
Slough Borough Council,808330,Avison Young,P242,Capital,Capital Charges,"5,970.00",Oct-22
Slough Borough Council,808330,Avison Young,P242,Capital,Capital Charges,"5,970.00",Oct-22
Slough Borough Council,808330,Avison Young,P242,Capital,Capital Charges,"9,570.00",Oct-22
Slough Borough Council,1286,Barnardos,F462,Children & Families,Supplies and Services,"32,268.00",Oct-22
Slough Borough Council,3370,Baylis Court School,E610,Children & Families,Supplies and Services,"3,833.33",Oct-22
Slough Borough Council,3370,Baylis Court School,B297,Finance & Commercial,Government Grants,"17,190.00",Oct-22
Slough Borough Council,3370,Baylis Court School,B297,Finance & Commercial,Government Grants,"3,135.00",Oct-22
Slough Borough Council,1681,Bcq,B246,Governance,Supplies and Services,693.00,Oct-22
Slough Borough Council,1681,Bcq,C322,Community,Supplies and Services,"1,280.00",Oct-22
Slough Borough Council,1681,Bcq,B246,Governance,Supplies and Services,677.00,Oct-22
Slough Borough Council,3208,Be Happy Pre School,F909,Children & Families,Supplies and Services,"8,019.49",Oct-22
Slough Borough Council,3208,Be Happy Pre School,F909,Children & Families,Supplies and Services,"4,118.26",Oct-22
Slough Borough Council,805539,Beech Haven Ltd,M27C,Adult Social Care Operations,Supplies and Services,"3,171.43",Oct-22
Slough Borough Council,805539,Beech Haven Ltd,M27C,Adult Social Care Operations,Supplies and Services,"3,277.14",Oct-22
Slough Borough Council,609,Beechwood Secondary School,E610,Children & Families,Supplies and Services,"5,500.00",Oct-22
Slough Borough Council,612,Berkshire Healthcare Nhs Foundation Trust,A07M,Mental Health Services,Agency Staff,804.58,Oct-22
Slough Borough Council,612,Berkshire Healthcare Nhs Foundation Trust,A07M,Mental Health Services,Agency Staff,"2,801.08",Oct-22
Slough Borough Council,612,Berkshire Healthcare Nhs Foundation Trust,A07M,Mental Health Services,Agency Staff,665.75,Oct-22
Slough Borough Council,612,Berkshire Healthcare Nhs Foundation Trust,A07M,Mental Health Services,Agency Staff,"3,766.25",Oct-22
Slough Borough Council,612,Berkshire Healthcare Nhs Foundation Trust,A07M,Mental Health Services,Agency Staff,777.00,Oct-22
Slough Borough Council,612,Berkshire Healthcare Nhs Foundation Trust,A07M,Mental Health Services,Agency Staff,"8,252.33",Oct-22
Slough Borough Council,612,Berkshire Healthcare Nhs Foundation Trust,A07M,Mental Health Services,Agency Staff,"3,192.75",Oct-22
Slough Borough Council,612,Berkshire Healthcare Nhs Foundation Trust,A07M,Mental Health Services,Agency Staff,"5,602.50",Oct-22
Slough Borough Council,612,Berkshire Healthcare Nhs Foundation Trust,A07M,Mental Health Services,Agency Staff,"3,901.00",Oct-22
Slough Borough Council,612,Berkshire Healthcare Nhs Foundation Trust,A07R,Adult Social Care Operations,Supplies and Services,"6,582.00",Oct-22
Slough Borough Council,612,Berkshire Healthcare Nhs Foundation Trust,F417,Education & Inclusion,Supplies and Services,"4,166.67",Oct-22
Slough Borough Council,2308,Bespoke Supportive Tenancies Ltd,A04L,Adult Social Care Operations,Supplies and Services,"1,725.90",Oct-22
Slough Borough Council,2308,Bespoke Supportive Tenancies Ltd,A04L,Adult Social Care Operations,Supplies and Services,"1,783.43",Oct-22
Slough Borough Council,2308,Bespoke Supportive Tenancies Ltd,A04L,Adult Social Care Operations,Supplies and Services,"1,783.43",Oct-22
Slough Borough Council,2308,Bespoke Supportive Tenancies Ltd,A04L,Adult Social Care Operations,Supplies and Services,"1,707.75",Oct-22
Slough Borough Council,2308,Bespoke Supportive Tenancies Ltd,A04L,Adult Social Care Operations,Supplies and Services,"1,783.43",Oct-22
Slough Borough Council,808148,BEST CHOICE CARE LTD,A07R,Adult Social Care Operations,Supplies and Services,625.71,Oct-22
Slough Borough Council,808148,BEST CHOICE CARE LTD,A07R,Adult Social Care Operations,Supplies and Services,866.25,Oct-22
Slough Borough Council,808148,BEST CHOICE CARE LTD,A07R,Adult Social Care Operations,Supplies and Services,"1,102.64",Oct-22
Slough Borough Council,808148,BEST CHOICE CARE LTD,M44C,Adult Social Care Operations,Supplies and Services,735.00,Oct-22
Slough Borough Council,808148,BEST CHOICE CARE LTD,M44C,Adult Social Care Operations,Supplies and Services,647.50,Oct-22
Slough Borough Council,808148,BEST CHOICE CARE LTD,M44C,Adult Social Care Operations,Supplies and Services,507.64,Oct-22
Slough Borough Council,808148,BEST CHOICE CARE LTD,M44C,Adult Social Care Operations,Supplies and Services,"1,343.26",Oct-22
Slough Borough Council,808148,BEST CHOICE CARE LTD,M44C,Adult Social Care Operations,Supplies and Services,735.00,Oct-22
Slough Borough Council,808148,BEST CHOICE CARE LTD,M44C,Adult Social Care Operations,Supplies and Services,"1,216.25",Oct-22
Slough Borough Council,808148,BEST CHOICE CARE LTD,M44C,Adult Social Care Operations,Supplies and Services,520.63,Oct-22
Slough Borough Council,808148,BEST CHOICE CARE LTD,M44C,Adult Social Care Operations,Supplies and Services,647.64,Oct-22
Slough Borough Council,808148,BEST CHOICE CARE LTD,M44C,Adult Social Care Operations,Supplies and Services,595.14,Oct-22
Slough Borough Council,808148,BEST CHOICE CARE LTD,M44D,Adult Social Care Operations,Supplies and Services,"2,345.00",Oct-22
Slough Borough Council,808148,BEST CHOICE CARE LTD,M44D,Adult Social Care Operations,Supplies and Services,717.50,Oct-22
Slough Borough Council,808148,BEST CHOICE CARE LTD,M44D,Adult Social Care Operations,Supplies and Services,857.64,Oct-22
Slough Borough Council,808148,BEST CHOICE CARE LTD,M44D,Adult Social Care Operations,Supplies and Services,"2,493.75",Oct-22
Slough Borough Council,808148,BEST CHOICE CARE LTD,M44D,Adult Social Care Operations,Supplies and Services,"2,205.28",Oct-22
Slough Borough Council,806987,Better Life Care Ltd,M44E,Adult Social Care Operations,Supplies and Services,"4,400.00",Oct-22
Slough Borough Council,806987,Better Life Care Ltd,M44E,Adult Social Care Operations,Supplies and Services,"4,871.43",Oct-22
Slough Borough Council,806987,Better Life Care Ltd,M44E,Adult Social Care Operations,Supplies and Services,"4,871.43",Oct-22
Slough Borough Council,806987,Better Life Care Ltd,M44E,Adult Social Care Operations,Supplies and Services,"1,257.14",Oct-22
Slough Borough Council,806987,Better Life Care Ltd,M44E,Adult Social Care Operations,Supplies and Services,"4,400.00",Oct-22
Slough Borough Council,1736,Bevan Brittan Llp,B086,Place Strategy & Infrastructure,Capital Charges,"16,495.00",Oct-22
Slough Borough Council,808613,BILD,B409,People,Indirect Employee Expenses,"1,850.00",Oct-22
Slough Borough Council,808613,BILD,B409,People,Indirect Employee Expenses,"6,675.00",Oct-22
Slough Borough Council,803828,Blue Willow Day Nursery Ltd,F909,Children & Families,Supplies and Services,"21,852.39",Oct-22
Slough Borough Council,805160,Bouygues E&S FM UK Limited,K521,Business Services,Premises,"8,503.47",Oct-22
Slough Borough Council,805160,Bouygues E&S FM UK Limited,K521,Business Services,Premises,"15,331.49",Oct-22
Slough Borough Council,2856,Brain Injury Rehabilitation Trust,M26E,Adult Social Care Operations,Supplies and Services,"5,613.57",Oct-22
Slough Borough Council,2856,Brain Injury Rehabilitation Trust,M27C,Adult Social Care Operations,Supplies and Services,"7,481.67",Oct-22
Slough Borough Council,805179,Braywood Tree Surgery Ltd,P220,Capital,Capital Charges,"2,222.00",Oct-22
Slough Borough Council,805817,Bright World Nurseries,F909,Children & Families,Supplies and Services,"10,530.54",Oct-22
Slough Borough Council,504,Britwell Baptist Pre School,F909,Children & Families,Supplies and Services,"6,127.32",Oct-22
Slough Borough Council,741,Bunnies Pre-School,F909,Children & Families,Supplies and Services,"6,920.89",Oct-22
Slough Borough Council,803553,BUPA CARE HOME (CFH CARE),M25D,Adult Social Care Operations,Supplies and Services,"3,172.00",Oct-22
Slough Borough Council,804448,Bupa Care Homes (ANS) Ltd,M15D,Adult Social Care Operations,Supplies and Services,"5,633.40",Oct-22
Slough Borough Council,804448,Bupa Care Homes (ANS) Ltd,M26E,Adult Social Care Operations,Supplies and Services,"7,285.71",Oct-22
Slough Borough Council,2675,Burnham Lodge Ltd,M17C,Adult Social Care Operations,Supplies and Services,"4,464.29",Oct-22
Slough Borough Council,2675,Burnham Lodge Ltd,M17C,Adult Social Care Operations,Supplies and Services,"5,178.57",Oct-22
Slough Borough Council,2675,Burnham Lodge Ltd,M17C,Adult Social Care Operations,Supplies and Services,"5,357.14",Oct-22
Slough Borough Council,629,C.H.O.I.C.E Limited,M26E,Adult Social Care Operations,Supplies and Services,"10,733.13",Oct-22
Slough Borough Council,629,C.H.O.I.C.E Limited,M26E,Adult Social Care Operations,Supplies and Services,"11,453.17",Oct-22
Slough Borough Council,629,C.H.O.I.C.E Limited,M26E,Adult Social Care Operations,Supplies and Services,"9,228.34",Oct-22
Slough Borough Council,629,C.H.O.I.C.E Limited,M26E,Adult Social Care Operations,Supplies and Services,"10,457.19",Oct-22
Slough Borough Council,629,C.H.O.I.C.E Limited,M26E,Adult Social Care Operations,Supplies and Services,"8,738.50",Oct-22
Slough Borough Council,629,C.H.O.I.C.E Limited,M26E,Adult Social Care Operations,Supplies and Services,"10,756.82",Oct-22
Slough Borough Council,629,C.H.O.I.C.E Limited,M26E,Adult Social Care Operations,Supplies and Services,"6,421.47",Oct-22
Slough Borough Council,629,C.H.O.I.C.E Limited,M26E,Adult Social Care Operations,Supplies and Services,"11,027.59",Oct-22
Slough Borough Council,629,C.H.O.I.C.E Limited,M26E,Adult Social Care Operations,External Receipts,-515.75,Oct-22
Slough Borough Council,629,C.H.O.I.C.E Limited,M26E,Adult Social Care Operations,External Receipts,-534.53,Oct-22
Slough Borough Council,629,C.H.O.I.C.E Limited,M26E,Adult Social Care Operations,External Receipts,-515.75,Oct-22
Slough Borough Council,805414,Calibration Engineering Service Ltd,D750,Place Operations,Supplies and Services,"1,782.74",Oct-22
Slough Borough Council,808007,Cameron & Cooper Limited (The Beech House School),F462,Children & Families,Supplies and Services,"-2,105.20",Oct-22
Slough Borough Council,808007,Cameron & Cooper Limited (The Beech House School),F462,Children & Families,Supplies and Services,"2,105.20",Oct-22
Slough Borough Council,623,Canon (Uk) Ltd,K059,Business Services,Supplies and Services,"3,084.81",Oct-22
Slough Borough Council,623,Canon (Uk) Ltd,K059,Business Services,Supplies and Services,647.79,Oct-22
Slough Borough Council,623,Canon (Uk) Ltd,K059,Business Services,Supplies and Services,"19,319.86",Oct-22
Slough Borough Council,737,Capita Business Services Ltd,B282,Digital and Strategic IT,Supplies and Services,"21,495.00",Oct-22
Slough Borough Council,737,Capita Business Services Ltd,B282,Digital and Strategic IT,Supplies and Services,"5,494.50",Oct-22
Slough Borough Council,737,Capita Business Services Ltd,B342,Digital and Strategic IT,Supplies and Services,"24,925.00",Oct-22
Slough Borough Council,804861,Care Management Group Ltd,M26E,Adult Social Care Operations,Supplies and Services,"12,918.98",Oct-22
Slough Borough Council,804861,Care Management Group Ltd,M26E,Adult Social Care Operations,Supplies and Services,"12,502.24",Oct-22
Slough Borough Council,805621,Care Staff Services,A07R,Adult Social Care Operations,Supplies and Services,"2,091.25",Oct-22
Slough Borough Council,805621,Care Staff Services,A07R,Adult Social Care Operations,Supplies and Services,848.75,Oct-22
Slough Borough Council,805621,Care Staff Services,A07R,Adult Social Care Operations,Supplies and Services,"1,960.00",Oct-22
Slough Borough Council,805621,Care Staff Services,A07R,Adult Social Care Operations,Supplies and Services,595.00,Oct-22
Slough Borough Council,805621,Care Staff Services,A07R,Adult Social Care Operations,Supplies and Services,"1,338.75",Oct-22
Slough Borough Council,805621,Care Staff Services,A07R,Adult Social Care Operations,Supplies and Services,918.75,Oct-22
Slough Borough Council,805621,Care Staff Services,A07R,Adult Social Care Operations,Supplies and Services,"1,496.25",Oct-22
Slough Borough Council,805621,Care Staff Services,A07R,Adult Social Care Operations,Supplies and Services,"2,205.00",Oct-22
Slough Borough Council,805621,Care Staff Services,A07R,Adult Social Care Operations,Supplies and Services,"1,165.50",Oct-22
Slough Borough Council,805621,Care Staff Services,A07R,Adult Social Care Operations,Supplies and Services,"1,295.00",Oct-22
Slough Borough Council,805621,Care Staff Services,M44C,Adult Social Care Operations,Supplies and Services,"1,470.00",Oct-22
Slough Borough Council,805621,Care Staff Services,M44C,Adult Social Care Operations,Supplies and Services,906.50,Oct-22
Slough Borough Council,805621,Care Staff Services,M44C,Adult Social Care Operations,Supplies and Services,"1,295.00",Oct-22
Slough Borough Council,805621,Care Staff Services,M44C,Adult Social Care Operations,Supplies and Services,581.88,Oct-22
Slough Borough Council,805621,Care Staff Services,M44C,Adult Social Care Operations,Supplies and Services,536.50,Oct-22
Slough Borough Council,805621,Care Staff Services,M44C,Adult Social Care Operations,Supplies and Services,906.50,Oct-22
Slough Borough Council,805621,Care Staff Services,M44C,Adult Social Care Operations,Supplies and Services,735.00,Oct-22
Slough Borough Council,805621,Care Staff Services,M44C,Adult Social Care Operations,Supplies and Services,612.50,Oct-22
Slough Borough Council,805621,Care Staff Services,M44C,Adult Social Care Operations,Supplies and Services,"2,205.00",Oct-22
Slough Borough Council,805621,Care Staff Services,M44C,Adult Social Care Operations,Supplies and Services,"1,102.50",Oct-22
Slough Borough Council,805621,Care Staff Services,M44C,Adult Social Care Operations,Supplies and Services,"2,331.00",Oct-22
Slough Borough Council,805621,Care Staff Services,M44C,Adult Social Care Operations,Supplies and Services,752.50,Oct-22
Slough Borough Council,805621,Care Staff Services,M44C,Adult Social Care Operations,Supplies and Services,"2,275.00",Oct-22
Slough Borough Council,805621,Care Staff Services,M44C,Adult Social Care Operations,Supplies and Services,"1,239.50",Oct-22
Slough Borough Council,805621,Care Staff Services,M44C,Adult Social Care Operations,Supplies and Services,612.50,Oct-22
Slough Borough Council,805621,Care Staff Services,M44C,Adult Social Care Operations,Supplies and Services,717.50,Oct-22
Slough Borough Council,805621,Care Staff Services,M44C,Adult Social Care Operations,Supplies and Services,"1,102.50",Oct-22
Slough Borough Council,805621,Care Staff Services,M44C,Adult Social Care Operations,Supplies and Services,"1,960.00",Oct-22
Slough Borough Council,805621,Care Staff Services,M44C,Adult Social Care Operations,Supplies and Services,906.50,Oct-22
Slough Borough Council,805621,Care Staff Services,M44C,Adult Social Care Operations,Supplies and Services,925.00,Oct-22
Slough Borough Council,805621,Care Staff Services,M44C,Adult Social Care Operations,Supplies and Services,805.00,Oct-22
Slough Borough Council,805621,Care Staff Services,M44C,Adult Social Care Operations,Supplies and Services,"2,664.00",Oct-22
Slough Borough Council,805621,Care Staff Services,M44C,Adult Social Care Operations,Supplies and Services,"2,205.00",Oct-22
Slough Borough Council,805621,Care Staff Services,M44C,Adult Social Care Operations,Supplies and Services,857.50,Oct-22
Slough Borough Council,805621,Care Staff Services,M44C,Adult Social Care Operations,Supplies and Services,518.00,Oct-22
Slough Borough Council,805621,Care Staff Services,M44C,Adult Social Care Operations,Supplies and Services,721.50,Oct-22
Slough Borough Council,805621,Care Staff Services,M44C,Adult Social Care Operations,Supplies and Services,"1,225.00",Oct-22
Slough Borough Council,805621,Care Staff Services,M44C,Adult Social Care Operations,Supplies and Services,857.50,Oct-22
Slough Borough Council,805621,Care Staff Services,M44C,Adult Social Care Operations,Supplies and Services,518.00,Oct-22
Slough Borough Council,805621,Care Staff Services,M44C,Adult Social Care Operations,Supplies and Services,"1,087.43",Oct-22
Slough Borough Council,805621,Care Staff Services,M44C,Adult Social Care Operations,Supplies and Services,"2,331.00",Oct-22
Slough Borough Council,805621,Care Staff Services,M44C,Adult Social Care Operations,Supplies and Services,857.50,Oct-22
Slough Borough Council,805621,Care Staff Services,M44C,Adult Social Care Operations,Supplies and Services,"2,205.00",Oct-22
Slough Borough Council,805621,Care Staff Services,M44C,Adult Social Care Operations,Supplies and Services,"2,331.00",Oct-22
Slough Borough Council,805621,Care Staff Services,M44C,Adult Social Care Operations,Supplies and Services,"1,540.00",Oct-22
Slough Borough Council,805621,Care Staff Services,M44C,Adult Social Care Operations,Supplies and Services,538.13,Oct-22
Slough Borough Council,805621,Care Staff Services,M44C,Adult Social Care Operations,Supplies and Services,906.50,Oct-22
Slough Borough Council,805621,Care Staff Services,M44C,Adult Social Care Operations,Supplies and Services,666.00,Oct-22
Slough Borough Council,805621,Care Staff Services,M44C,Adult Social Care Operations,Supplies and Services,"1,813.00",Oct-22
Slough Borough Council,805621,Care Staff Services,M44C,Adult Social Care Operations,Supplies and Services,518.00,Oct-22
Slough Borough Council,805621,Care Staff Services,M44C,Adult Social Care Operations,Supplies and Services,647.50,Oct-22
Slough Borough Council,805621,Care Staff Services,M44C,Adult Social Care Operations,Supplies and Services,906.50,Oct-22
Slough Borough Council,805621,Care Staff Services,M44C,Adult Social Care Operations,Supplies and Services,"1,813.00",Oct-22
Slough Borough Council,805621,Care Staff Services,M44C,Adult Social Care Operations,Supplies and Services,717.50,Oct-22
Slough Borough Council,805621,Care Staff Services,M44C,Adult Social Care Operations,Supplies and Services,752.50,Oct-22
Slough Borough Council,805621,Care Staff Services,M44C,Adult Social Care Operations,Supplies and Services,"2,030.00",Oct-22
Slough Borough Council,805621,Care Staff Services,M44C,Adult Social Care Operations,Supplies and Services,"1,406.00",Oct-22
Slough Borough Council,805621,Care Staff Services,M44C,Adult Social Care Operations,Supplies and Services,"1,554.00",Oct-22
Slough Borough Council,805621,Care Staff Services,M44C,Adult Social Care Operations,Supplies and Services,906.50,Oct-22
Slough Borough Council,805621,Care Staff Services,M44C,Adult Social Care Operations,Supplies and Services,906.50,Oct-22
Slough Borough Council,805621,Care Staff Services,M44C,Adult Social Care Operations,Supplies and Services,"2,205.00",Oct-22
Slough Borough Council,805621,Care Staff Services,M44C,Adult Social Care Operations,Supplies and Services,822.50,Oct-22
Slough Borough Council,805621,Care Staff Services,M44D,Adult Social Care Operations,Supplies and Services,"7,000.00",Oct-22
Slough Borough Council,805621,Care Staff Services,M44D,Adult Social Care Operations,Supplies and Services,"4,750.00",Oct-22
Slough Borough Council,805621,Care Staff Services,M44D,Adult Social Care Operations,Supplies and Services,"7,000.00",Oct-22
Slough Borough Council,805621,Care Staff Services,M44D,Adult Social Care Operations,Supplies and Services,"1,827.50",Oct-22
Slough Borough Council,805621,Care Staff Services,M44D,Adult Social Care Operations,Supplies and Services,518.00,Oct-22
Slough Borough Council,805621,Care Staff Services,M44D,Adult Social Care Operations,Supplies and Services,"7,000.00",Oct-22
Slough Borough Council,805621,Care Staff Services,M44D,Adult Social Care Operations,Supplies and Services,997.50,Oct-22
Slough Borough Council,805621,Care Staff Services,M44D,Adult Social Care Operations,Supplies and Services,857.50,Oct-22
Slough Borough Council,805621,Care Staff Services,M44D,Adult Social Care Operations,Supplies and Services,"2,331.00",Oct-22
Slough Borough Council,805621,Care Staff Services,M44D,Adult Social Care Operations,Supplies and Services,"1,592.50",Oct-22
Slough Borough Council,805621,Care Staff Services,M44D,Adult Social Care Operations,Supplies and Services,647.50,Oct-22
Slough Borough Council,805621,Care Staff Services,M44D,Adult Social Care Operations,Supplies and Services,"1,295.00",Oct-22
Slough Borough Council,805621,Care Staff Services,M44D,Adult Social Care Operations,Supplies and Services,"1,295.00",Oct-22
Slough Borough Council,805621,Care Staff Services,M44D,Adult Social Care Operations,Supplies and Services,832.50,Oct-22
Slough Borough Council,805621,Care Staff Services,M44D,Adult Social Care Operations,Supplies and Services,701.68,Oct-22
Slough Borough Council,805621,Care Staff Services,M44D,Adult Social Care Operations,Supplies and Services,"1,165.50",Oct-22
Slough Borough Council,805621,Care Staff Services,M44D,Adult Social Care Operations,Supplies and Services,629.00,Oct-22
Slough Borough Council,805621,Care Staff Services,M44E,Adult Social Care Operations,Supplies and Services,518.00,Oct-22
Slough Borough Council,805621,Care Staff Services,M44F,Adult Social Care Operations,Supplies and Services,"6,230.00",Oct-22
Slough Borough Council,805621,Care Staff Services,M44F,Adult Social Care Operations,Supplies and Services,"4,061.25",Oct-22
Slough Borough Council,805621,Care Staff Services,M44F,Adult Social Care Operations,Supplies and Services,"6,230.00",Oct-22
Slough Borough Council,805621,Care Staff Services,M44F,Adult Social Care Operations,Supplies and Services,999.00,Oct-22
Slough Borough Council,805621,Care Staff Services,M44F,Adult Social Care Operations,Supplies and Services,"1,470.00",Oct-22
Slough Borough Council,805621,Care Staff Services,M44F,Adult Social Care Operations,Supplies and Services,740.00,Oct-22
Slough Borough Council,805621,Care Staff Services,M44F,Adult Social Care Operations,Supplies and Services,"2,590.00",Oct-22
Slough Borough Council,805621,Care Staff Services,M44F,Adult Social Care Operations,Supplies and Services,"1,313.50",Oct-22
Slough Borough Council,805621,Care Staff Services,M44F,Adult Social Care Operations,Supplies and Services,560.00,Oct-22
Slough Borough Council,805621,Care Staff Services,M44F,Adult Social Care Operations,Supplies and Services,"1,036.00",Oct-22
Slough Borough Council,805621,Care Staff Services,M44F,Adult Social Care Operations,Supplies and Services,666.00,Oct-22
Slough Borough Council,805621,Care Staff Services,M44F,Adult Social Care Operations,Supplies and Services,888.00,Oct-22
Slough Borough Council,805621,Care Staff Services,M45C,Adult Social Care Operations,Supplies and Services,546.88,Oct-22
Slough Borough Council,805621,Care Staff Services,M45C,Adult Social Care Operations,Supplies and Services,"1,470.00",Oct-22
Slough Borough Council,805621,Care Staff Services,M45C,Adult Social Care Operations,Supplies and Services,581.88,Oct-22
Slough Borough Council,805621,Care Staff Services,M45C,Adult Social Care Operations,Supplies and Services,"2,205.00",Oct-22
Slough Borough Council,805621,Care Staff Services,M45C,Adult Social Care Operations,Supplies and Services,857.50,Oct-22
Slough Borough Council,808149,Care Staff Services Support,M44F,Adult Social Care Operations,Supplies and Services,"2,002.25",Oct-22
Slough Borough Council,808149,Care Staff Services Support,M44F,Adult Social Care Operations,Supplies and Services,"2,002.25",Oct-22
Slough Borough Council,808149,Care Staff Services Support,M44F,Adult Social Care Operations,Supplies and Services,"5,415.17",Oct-22
Slough Borough Council,808149,Care Staff Services Support,M44F,Adult Social Care Operations,Supplies and Services,"5,415.17",Oct-22
Slough Borough Council,1162,Care Uk Community Partnership Ltd,M15D,Adult Social Care Operations,Supplies and Services,"2,097.60",Oct-22
Slough Borough Council,1162,Care Uk Community Partnership Ltd,M17C,Adult Social Care Operations,Supplies and Services,"5,571.43",Oct-22
Slough Borough Council,1162,Care Uk Community Partnership Ltd,M17C,Adult Social Care Operations,Supplies and Services,"5,757.14",Oct-22
Slough Borough Council,1162,Care Uk Community Partnership Ltd,M27C,Adult Social Care Operations,Supplies and Services,"3,323.20",Oct-22
Slough Borough Council,1910,Carousel Buses Ltd,D512,Place Strategy & Infrastructure,Supplies and Services,"3,810.61",Oct-22
Slough Borough Council,804413,Castle Water,B068,Business Services,Premises,500.00,Oct-22
Slough Borough Council,804413,Castle Water,B082,Place Strategy & Infrastructure,Premises,"3,082.44",Oct-22
Slough Borough Council,804413,Castle Water,B082,Place Strategy & Infrastructure,Premises,"1,646.50",Oct-22
Slough Borough Council,804413,Castle Water,D320,Place Operations,Premises,576.75,Oct-22
Slough Borough Council,804413,Castle Water,D900,Place Operations,Premises,747.91,Oct-22
Slough Borough Council,418,Castleview School,E620,Children & Families,Supplies and Services,"26,459.99",Oct-22
Slough Borough Council,803560,Centennial Property Limited T/A Rent Connect,H205,Housing (People) Services,Premises,"37,710.00",Oct-22
Slough Borough Council,805619,Centennial Property Limited T/A The Housing Network,H205,Housing (People) Services,Premises,"39,150.00",Oct-22
Slough Borough Council,3609,Centurion Healthcare Ltd,M26E,Adult Social Care Operations,Supplies and Services,"6,031.67",Oct-22
Slough Borough Council,805174,Certas Energy,D900,Place Operations,Supplies and Services,-520.00,Oct-22
Slough Borough Council,805174,Certas Energy,D900,Place Operations,Supplies and Services,520.00,Oct-22
Slough Borough Council,805174,Certas Energy,D750,Place Operations,Supplies and Services,"2,387.50",Oct-22
Slough Borough Council,2892,Chalfont Lodge,M15D,Adult Social Care Operations,Supplies and Services,"3,321.43",Oct-22
Slough Borough Council,2892,Chalfont Lodge,M15D,Adult Social Care Operations,Supplies and Services,"5,978.57",Oct-22
Slough Borough Council,2892,Chalfont Lodge,M15F,Adult Social Care Operations,Supplies and Services,"8,857.14",Oct-22
Slough Borough Council,2892,Chalfont Lodge,M26E,Adult Social Care Operations,Supplies and Services,"5,978.57",Oct-22
Slough Borough Council,2608,Chandos Lodge Nursing Home,M18C,Adult Social Care Operations,Supplies and Services,"3,600.00",Oct-22
Slough Borough Council,2174,Chartered Institute Of Environmental Health(Cieh),D302,Place Regulation,Salaries and Wages-Employees Expenses,515.00,Oct-22
Slough Borough Council,808500,Chartwell Care Services,M26E,Adult Social Care Operations,Supplies and Services,"13,021.90",Oct-22
Slough Borough Council,1877,Chelsie Innes,C322,Community,Supplies and Services,"2,842.50",Oct-22
Slough Borough Council,1877,Chelsie Innes,C322,Community,Supplies and Services,500.00,Oct-22
Slough Borough Council,1877,Chelsie Innes,C322,Community,Supplies and Services,500.00,Oct-22
Slough Borough Council,1877,Chelsie Innes,C322,Community,Supplies and Services,500.00,Oct-22
Slough Borough Council,1877,Chelsie Innes,C322,Community,Supplies and Services,"3,260.40",Oct-22
Slough Borough Council,3114,Cherry Trees Day Nursery,F909,Children & Families,Supplies and Services,510.00,Oct-22
Slough Borough Council,3114,Cherry Trees Day Nursery,F909,Children & Families,Supplies and Services,"26,273.52",Oct-22
Slough Borough Council,2871,Cherry Trees Residential Care,M42F,Adult Social Care Operations,Supplies and Services,"1,660.71",Oct-22
Slough Borough Council,2871,Cherry Trees Residential Care,M42F,Adult Social Care Operations,Supplies and Services,"3,321.43",Oct-22
Slough Borough Council,2871,Cherry Trees Residential Care,M42F,Adult Social Care Operations,Supplies and Services,"3,321.43",Oct-22
Slough Borough Council,807225,Chiltern Way Academy,F551,Children & Families,Supplies and Services,"2,155.08",Oct-22
Slough Borough Council,808527,Chiron Care (Uk) Limited,M44F,Adult Social Care Operations,Supplies and Services,"1,808.40",Oct-22
Slough Borough Council,807491,Cippenham School,E620,Children & Families,Supplies and Services,"15,041.67",Oct-22
Slough Borough Council,806550,City Homecare Ltd,M44C,Adult Social Care Operations,Supplies and Services,"1,347.50",Oct-22
Slough Borough Council,806550,City Homecare Ltd,M44C,Adult Social Care Operations,Supplies and Services,805.00,Oct-22
Slough Borough Council,806550,City Homecare Ltd,M44C,Adult Social Care Operations,Supplies and Services,907.20,Oct-22
Slough Borough Council,806550,City Homecare Ltd,M44C,Adult Social Care Operations,Supplies and Services,"1,277.50",Oct-22
Slough Borough Council,806550,City Homecare Ltd,M44D,Adult Social Care Operations,Supplies and Services,717.50,Oct-22
Slough Borough Council,806550,City Homecare Ltd,M44D,Adult Social Care Operations,Supplies and Services,735.00,Oct-22
Slough Borough Council,806550,City Homecare Ltd,M45C,Adult Social Care Operations,Supplies and Services,826.88,Oct-22
Slough Borough Council,806550,City Homecare Ltd,M45C,Adult Social Care Operations,Supplies and Services,693.00,Oct-22
Slough Borough Council,806550,City Homecare Ltd,M48C,Adult Social Care Operations,Supplies and Services,577.50,Oct-22
Slough Borough Council,1151,Claycots Primary School,E200,Children & Families,Supplies and Services,"813,392.23",Oct-22
Slough Borough Council,3428,Clyde & Co,D224,Place Regulation,Supplies and Services,"18,236.50",Oct-22
Slough Borough Council,3685,Coghlan Lodges Limited,M44D,Adult Social Care Operations,Supplies and Services,"2,116.04",Oct-22
Slough Borough Council,3685,Coghlan Lodges Limited,M44F,Adult Social Care Operations,Supplies and Services,"1,870.00",Oct-22
Slough Borough Council,805823,Collaborative Care Solutions,M42E,Adult Social Care Operations,Supplies and Services,"8,571.42",Oct-22
Slough Borough Council,805823,Collaborative Care Solutions,M42E,Adult Social Care Operations,Supplies and Services,"9,171.42",Oct-22
Slough Borough Council,805823,Collaborative Care Solutions,M42E,Adult Social Care Operations,Supplies and Services,"8,914.28",Oct-22
Slough Borough Council,805823,Collaborative Care Solutions,M42E,Adult Social Care Operations,Supplies and Services,"9,477.14",Oct-22
Slough Borough Council,805823,Collaborative Care Solutions,M42F,Adult Social Care Operations,Supplies and Services,"2,971.57",Oct-22
Slough Borough Council,805823,Collaborative Care Solutions,M42F,Adult Social Care Operations,Supplies and Services,"2,657.14",Oct-22
Slough Borough Council,805823,Collaborative Care Solutions,M42F,Adult Social Care Operations,Supplies and Services,"3,214.28",Oct-22
Slough Borough Council,805823,Collaborative Care Solutions,M42F,Adult Social Care Operations,Supplies and Services,"3,321.42",Oct-22
Slough Borough Council,805823,Collaborative Care Solutions,M42F,Adult Social Care Operations,Supplies and Services,"3,214.28",Oct-22
Slough Borough Council,805823,Collaborative Care Solutions,M42F,Adult Social Care Operations,Supplies and Services,"2,875.71",Oct-22
Slough Borough Council,805823,Collaborative Care Solutions,M42F,Adult Social Care Operations,Supplies and Services,"2,571.14",Oct-22
Slough Borough Council,805823,Collaborative Care Solutions,M44D,Adult Social Care Operations,Supplies and Services,"9,211.42",Oct-22
Slough Borough Council,805823,Collaborative Care Solutions,M44D,Adult Social Care Operations,Supplies and Services,"8,914.28",Oct-22
Slough Borough Council,805823,Collaborative Care Solutions,M44D,Adult Social Care Operations,Supplies and Services,"8,914.28",Oct-22
Slough Borough Council,805823,Collaborative Care Solutions,M44F,Adult Social Care Operations,Supplies and Services,"4,178.57",Oct-22
Slough Borough Council,805823,Collaborative Care Solutions,M44F,Adult Social Care Operations,Supplies and Services,"3,321.42",Oct-22
Slough Borough Council,805823,Collaborative Care Solutions,M44F,Adult Social Care Operations,Supplies and Services,"3,365.71",Oct-22
Slough Borough Council,805823,Collaborative Care Solutions,M44F,Adult Social Care Operations,Supplies and Services,"4,317.85",Oct-22
Slough Borough Council,805823,Collaborative Care Solutions,M44F,Adult Social Care Operations,Supplies and Services,"3,257.14",Oct-22
Slough Borough Council,805823,Collaborative Care Solutions,M44F,Adult Social Care Operations,Supplies and Services,"4,178.57",Oct-22
Slough Borough Council,805823,Collaborative Care Solutions,M44F,Adult Social Care Operations,Supplies and Services,"4,178.57",Oct-22
Slough Borough Council,805823,Collaborative Care Solutions,M44F,Adult Social Care Operations,Supplies and Services,"4,821.42",Oct-22
Slough Borough Council,459,Colliers Cre,J006,Place Management,Supplies and Services,"3,666.67",Oct-22
Slough Borough Council,286,Colnbrook C Of E Primary School,E620,Children & Families,Supplies and Services,"20,749.30",Oct-22
Slough Borough Council,2535,Comfort Care Services,M42E,Adult Social Care Operations,Supplies and Services,"2,564.81",Oct-22
Slough Borough Council,2535,Comfort Care Services,M42E,Adult Social Care Operations,Supplies and Services,"1,538.88",Oct-22
Slough Borough Council,2535,Comfort Care Services,M42E,Adult Social Care Operations,Supplies and Services,"5,114.92",Oct-22
Slough Borough Council,2535,Comfort Care Services,M42E,Adult Social Care Operations,Supplies and Services,"1,165.82",Oct-22
Slough Borough Council,2535,Comfort Care Services,M42E,Adult Social Care Operations,Supplies and Services,564.20,Oct-22
Slough Borough Council,2535,Comfort Care Services,M42E,Adult Social Care Operations,Supplies and Services,"2,325.00",Oct-22
Slough Borough Council,2535,Comfort Care Services,M42E,Adult Social Care Operations,Supplies and Services,"3,192.03",Oct-22
Slough Borough Council,2535,Comfort Care Services,M42E,Adult Social Care Operations,Supplies and Services,"2,635.00",Oct-22
Slough Borough Council,2535,Comfort Care Services,M42E,Adult Social Care Operations,Supplies and Services,"1,165.82",Oct-22
Slough Borough Council,2535,Comfort Care Services,M42E,Adult Social Care Operations,Supplies and Services,775.00,Oct-22
Slough Borough Council,2535,Comfort Care Services,M42E,Adult Social Care Operations,Supplies and Services,"2,325.00",Oct-22
Slough Borough Council,2535,Comfort Care Services,M42E,Adult Social Care Operations,Supplies and Services,"2,564.81",Oct-22
Slough Borough Council,2535,Comfort Care Services,M42E,Adult Social Care Operations,Supplies and Services,"5,114.92",Oct-22
Slough Borough Council,2535,Comfort Care Services,M42E,Adult Social Care Operations,Supplies and Services,"2,482.07",Oct-22
Slough Borough Council,2535,Comfort Care Services,M42E,Adult Social Care Operations,Supplies and Services,"1,814.96",Oct-22
Slough Borough Council,2535,Comfort Care Services,M42E,Adult Social Care Operations,Supplies and Services,"4,949.92",Oct-22
Slough Borough Council,2535,Comfort Care Services,M42E,Adult Social Care Operations,Supplies and Services,"1,128.21",Oct-22
Slough Borough Council,2535,Comfort Care Services,M42E,Adult Social Care Operations,Supplies and Services,"4,949.92",Oct-22
Slough Borough Council,2535,Comfort Care Services,M42E,Adult Social Care Operations,Supplies and Services,"2,635.00",Oct-22
Slough Borough Council,2535,Comfort Care Services,M42E,Adult Social Care Operations,Supplies and Services,"1,165.82",Oct-22
Slough Borough Council,2535,Comfort Care Services,M42E,Adult Social Care Operations,Supplies and Services,"1,538.88",Oct-22
Slough Borough Council,2535,Comfort Care Services,M42E,Adult Social Care Operations,Supplies and Services,"1,538.88",Oct-22
Slough Borough Council,2535,Comfort Care Services,M42E,Adult Social Care Operations,Supplies and Services,"2,247.50",Oct-22
Slough Borough Council,2535,Comfort Care Services,M42E,Adult Social Care Operations,Supplies and Services,"2,247.50",Oct-22
Slough Borough Council,2535,Comfort Care Services,M42E,Adult Social Care Operations,Supplies and Services,"2,564.81",Oct-22
Slough Borough Council,2535,Comfort Care Services,M42E,Adult Social Care Operations,Supplies and Services,"2,564.81",Oct-22
Slough Borough Council,2535,Comfort Care Services,M42E,Adult Social Care Operations,Supplies and Services,"1,165.82",Oct-22
Slough Borough Council,2535,Comfort Care Services,M42E,Adult Social Care Operations,Supplies and Services,"1,165.82",Oct-22
Slough Borough Council,2535,Comfort Care Services,M42F,Adult Social Care Operations,Supplies and Services,"1,632.15",Oct-22
Slough Borough Council,2535,Comfort Care Services,M42F,Adult Social Care Operations,Supplies and Services,"1,300.80",Oct-22
Slough Borough Council,2535,Comfort Care Services,M42F,Adult Social Care Operations,Supplies and Services,839.21,Oct-22
Slough Borough Council,2535,Comfort Care Services,M42F,Adult Social Care Operations,Supplies and Services,"2,635.00",Oct-22
Slough Borough Council,2535,Comfort Care Services,M42F,Adult Social Care Operations,Supplies and Services,839.21,Oct-22
Slough Borough Council,2535,Comfort Care Services,M42F,Adult Social Care Operations,Supplies and Services,"1,477.99",Oct-22
Slough Borough Council,2535,Comfort Care Services,M42F,Adult Social Care Operations,Supplies and Services,839.21,Oct-22
Slough Borough Council,2535,Comfort Care Services,M42F,Adult Social Care Operations,Supplies and Services,"1,007.06",Oct-22
Slough Borough Council,2535,Comfort Care Services,M42F,Adult Social Care Operations,Supplies and Services,"2,635.00",Oct-22
Slough Borough Council,2535,Comfort Care Services,M42F,Adult Social Care Operations,Supplies and Services,"1,300.80",Oct-22
Slough Borough Council,2535,Comfort Care Services,M42F,Adult Social Care Operations,Supplies and Services,"2,635.00",Oct-22
Slough Borough Council,2535,Comfort Care Services,M42F,Adult Social Care Operations,Supplies and Services,"2,635.00",Oct-22
Slough Borough Council,2535,Comfort Care Services,M42F,Adult Social Care Operations,Supplies and Services,"3,474.21",Oct-22
Slough Borough Council,2535,Comfort Care Services,M42F,Adult Social Care Operations,Supplies and Services,"2,635.00",Oct-22
Slough Borough Council,2535,Comfort Care Services,M42F,Adult Social Care Operations,Supplies and Services,"3,893.82",Oct-22
Slough Borough Council,2535,Comfort Care Services,M42F,Adult Social Care Operations,Supplies and Services,839.21,Oct-22
Slough Borough Council,2535,Comfort Care Services,M42F,Adult Social Care Operations,Supplies and Services,"2,635.00",Oct-22
Slough Borough Council,2535,Comfort Care Services,M42F,Adult Social Care Operations,Supplies and Services,"1,749.29",Oct-22
Slough Borough Council,2535,Comfort Care Services,M42F,Adult Social Care Operations,Supplies and Services,839.21,Oct-22
Slough Borough Council,2535,Comfort Care Services,M42F,Adult Social Care Operations,Supplies and Services,"3,474.21",Oct-22
Slough Borough Council,2535,Comfort Care Services,M42F,Adult Social Care Operations,Supplies and Services,812.14,Oct-22
Slough Borough Council,2535,Comfort Care Services,M42F,Adult Social Care Operations,Supplies and Services,"2,550.00",Oct-22
Slough Borough Council,2535,Comfort Care Services,M42F,Adult Social Care Operations,Supplies and Services,"1,579.50",Oct-22
Slough Borough Council,2535,Comfort Care Services,M42F,Adult Social Care Operations,Supplies and Services,974.57,Oct-22
Slough Borough Council,2535,Comfort Care Services,M42F,Adult Social Care Operations,Supplies and Services,"1,430.31",Oct-22
Slough Borough Council,2535,Comfort Care Services,M42F,Adult Social Care Operations,Supplies and Services,"1,300.80",Oct-22
Slough Borough Council,2535,Comfort Care Services,M42F,Adult Social Care Operations,Supplies and Services,839.21,Oct-22
Slough Borough Council,2535,Comfort Care Services,M42F,Adult Social Care Operations,Supplies and Services,"2,635.00",Oct-22
Slough Borough Council,2535,Comfort Care Services,M42F,Adult Social Care Operations,Supplies and Services,"1,300.80",Oct-22
Slough Borough Council,2535,Comfort Care Services,M42F,Adult Social Care Operations,Supplies and Services,"2,635.00",Oct-22
Slough Borough Council,2535,Comfort Care Services,M42F,Adult Social Care Operations,Supplies and Services,"1,632.15",Oct-22
Slough Borough Council,2535,Comfort Care Services,M42F,Adult Social Care Operations,Supplies and Services,"2,635.00",Oct-22
Slough Borough Council,2535,Comfort Care Services,M42F,Adult Social Care Operations,Supplies and Services,839.21,Oct-22
Slough Borough Council,2535,Comfort Care Services,M42F,Adult Social Care Operations,Supplies and Services,839.21,Oct-22
Slough Borough Council,2535,Comfort Care Services,M42F,Adult Social Care Operations,Supplies and Services,"2,635.00",Oct-22
Slough Borough Council,2535,Comfort Care Services,M42F,Adult Social Care Operations,Supplies and Services,"2,635.00",Oct-22
Slough Borough Council,2535,Comfort Care Services,M42F,Adult Social Care Operations,Supplies and Services,839.21,Oct-22
Slough Borough Council,2535,Comfort Care Services,M44C,Adult Social Care Operations,Supplies and Services,"2,349.80",Oct-22
Slough Borough Council,2535,Comfort Care Services,M44C,Adult Social Care Operations,Supplies and Services,"2,349.80",Oct-22
Slough Borough Council,2535,Comfort Care Services,M44E,Adult Social Care Operations,Supplies and Services,"4,461.56",Oct-22
Slough Borough Council,2535,Comfort Care Services,M44E,Adult Social Care Operations,Supplies and Services,"2,141.66",Oct-22
Slough Borough Council,2535,Comfort Care Services,M44E,Adult Social Care Operations,Supplies and Services,"2,141.66",Oct-22
Slough Borough Council,2535,Comfort Care Services,M44E,Adult Social Care Operations,Supplies and Services,"2,072.57",Oct-22
Slough Borough Council,2535,Comfort Care Services,M44F,Adult Social Care Operations,Supplies and Services,"1,317.50",Oct-22
Slough Borough Council,2535,Comfort Care Services,M44F,Adult Social Care Operations,Supplies and Services,"2,937.87",Oct-22
Slough Borough Council,2535,Comfort Care Services,M44F,Adult Social Care Operations,Supplies and Services,"2,937.87",Oct-22
Slough Borough Council,2535,Comfort Care Services,M44F,Adult Social Care Operations,Supplies and Services,929.11,Oct-22
Slough Borough Council,2535,Comfort Care Services,M44F,Adult Social Care Operations,Supplies and Services,"1,317.50",Oct-22
Slough Borough Council,2535,Comfort Care Services,M44F,Adult Social Care Operations,Supplies and Services,"3,357.48",Oct-22
Slough Borough Council,2535,Comfort Care Services,M44F,Adult Social Care Operations,Supplies and Services,"1,888.26",Oct-22
Slough Borough Council,2535,Comfort Care Services,M44F,Adult Social Care Operations,Supplies and Services,"1,165.82",Oct-22
Slough Borough Council,2535,Comfort Care Services,M44F,Adult Social Care Operations,Supplies and Services,"3,474.21",Oct-22
Slough Borough Council,2535,Comfort Care Services,M44F,Adult Social Care Operations,Supplies and Services,"1,317.50",Oct-22
Slough Borough Council,2535,Comfort Care Services,M44F,Adult Social Care Operations,Supplies and Services,"2,635.00",Oct-22
Slough Borough Council,2535,Comfort Care Services,M44F,Adult Social Care Operations,Supplies and Services,"2,337.84",Oct-22
Slough Borough Council,2535,Comfort Care Services,M44F,Adult Social Care Operations,Supplies and Services,"3,357.48",Oct-22
Slough Borough Council,2535,Comfort Care Services,M44F,Adult Social Care Operations,Supplies and Services,"1,888.26",Oct-22
Slough Borough Council,2535,Comfort Care Services,M44F,Adult Social Care Operations,Supplies and Services,"2,369.29",Oct-22
Slough Borough Council,2535,Comfort Care Services,M44F,Adult Social Care Operations,Supplies and Services,"2,937.87",Oct-22
Slough Borough Council,2535,Comfort Care Services,M44F,Adult Social Care Operations,Supplies and Services,"1,128.21",Oct-22
Slough Borough Council,2535,Comfort Care Services,M44F,Adult Social Care Operations,Supplies and Services,"1,165.82",Oct-22
Slough Borough Council,2535,Comfort Care Services,M44F,Adult Social Care Operations,Supplies and Services,"1,317.50",Oct-22
Slough Borough Council,2535,Comfort Care Services,M44F,Adult Social Care Operations,Supplies and Services,"2,635.00",Oct-22
Slough Borough Council,2535,Comfort Care Services,M44F,Adult Social Care Operations,Supplies and Services,"1,317.50",Oct-22
Slough Borough Council,2535,Comfort Care Services,M44F,Adult Social Care Operations,Supplies and Services,"1,165.82",Oct-22
Slough Borough Council,2535,Comfort Care Services,M44F,Adult Social Care Operations,Supplies and Services,"2,937.87",Oct-22
Slough Borough Council,2535,Comfort Care Services,M44F,Adult Social Care Operations,Supplies and Services,"2,843.10",Oct-22
Slough Borough Council,2535,Comfort Care Services,M44F,Adult Social Care Operations,Supplies and Services,"1,165.82",Oct-22
Slough Borough Council,2535,Comfort Care Services,M44F,Adult Social Care Operations,Supplies and Services,"1,888.26",Oct-22
Slough Borough Council,2535,Comfort Care Services,M44F,Adult Social Care Operations,Supplies and Services,"1,888.26",Oct-22
Slough Borough Council,2535,Comfort Care Services,M44F,Adult Social Care Operations,Supplies and Services,"1,888.26",Oct-22
Slough Borough Council,2535,Comfort Care Services,M44F,Adult Social Care Operations,Supplies and Services,"1,827.34",Oct-22
Slough Borough Council,2535,Comfort Care Services,M44F,Adult Social Care Operations,Supplies and Services,"1,317.50",Oct-22
Slough Borough Council,2535,Comfort Care Services,M44F,Adult Social Care Operations,Supplies and Services,"1,062.50",Oct-22
Slough Borough Council,2535,Comfort Care Services,M81D,Adult Social Care Operations,Supplies and Services,"2,635.00",Oct-22
Slough Borough Council,2535,Comfort Care Services,M81D,Adult Social Care Operations,Supplies and Services,"2,635.00",Oct-22
Slough Borough Council,3840,Community Housing And Therapy,M80F,Adult Social Care Operations,Supplies and Services,"2,531.14",Oct-22
Slough Borough Council,807005,Complete Background Screening Ltd,B348,People,Supplies and Services,874.00,Oct-22
Slough Borough Council,1772,Computershare Voucher Services,B033,People,Supplies and Services,"2,261.00",Oct-22
Slough Borough Council,807468,"Connect Managed Services (UK) Ltd, trading as Conn3ct",A106,Customer,Supplies and Services,"45,216.10",Oct-22
Slough Borough Council,806986,Converge Technology Ltd t/a GBE Converge,D320,Place Operations,Premises,"5,183.56",Oct-22
Slough Borough Council,806594,Coram Family and Childcare,M04A,People Children Management,Transport,"161,369.00",Oct-22
Slough Borough Council,1480,Corona Energy Limited,K526,Building Management,Premises,"18,742.02",Oct-22
Slough Borough Council,1480,Corona Energy Limited,K526,Building Management,Premises,"25,486.63",Oct-22
Slough Borough Council,1480,Corona Energy Limited,K526,Building Management,Premises,"15,099.62",Oct-22
Slough Borough Council,3290,Corporate Collections London Borough Of Hillingdon,M26E,Adult Social Care Operations,Supplies and Services,"1,632.40",Oct-22
Slough Borough Council,3290,Corporate Collections London Borough Of Hillingdon,M26E,Adult Social Care Operations,Supplies and Services,"1,632.40",Oct-22
Slough Borough Council,3290,Corporate Collections London Borough Of Hillingdon,M26E,Adult Social Care Operations,Supplies and Services,"1,632.40",Oct-22
Slough Borough Council,3290,Corporate Collections London Borough Of Hillingdon,M26E,Adult Social Care Operations,Supplies and Services,"1,632.40",Oct-22
Slough Borough Council,3290,Corporate Collections London Borough Of Hillingdon,M26E,Adult Social Care Operations,Supplies and Services,"1,632.40",Oct-22
Slough Borough Council,3290,Corporate Collections London Borough Of Hillingdon,M26E,Adult Social Care Operations,Supplies and Services,"1,632.40",Oct-22
Slough Borough Council,3290,Corporate Collections London Borough Of Hillingdon,M26E,Adult Social Care Operations,Supplies and Services,"1,632.40",Oct-22
Slough Borough Council,3290,Corporate Collections London Borough Of Hillingdon,M26E,Adult Social Care Operations,Supplies and Services,"1,632.40",Oct-22
Slough Borough Council,805278,Countrystyle Recycling Ltd,D342,Place Operations,Supplies and Services,"5,028.60",Oct-22
Slough Borough Council,805278,Countrystyle Recycling Ltd,D342,Place Operations,Supplies and Services,"4,885.50",Oct-22
Slough Borough Council,805278,Countrystyle Recycling Ltd,D342,Place Operations,Supplies and Services,"2,603.10",Oct-22
Slough Borough Council,805278,Countrystyle Recycling Ltd,D342,Place Operations,Supplies and Services,"6,703.90",Oct-22
Slough Borough Council,805278,Countrystyle Recycling Ltd,D342,Place Operations,Supplies and Services,"2,525.00",Oct-22
Slough Borough Council,3670,Craegmoor Birches Grove Priory,M27F,Adult Social Care Operations,Supplies and Services,"3,823.00",Oct-22
Slough Borough Council,3670,Craegmoor Birches Grove Priory,M27F,Adult Social Care Operations,Supplies and Services,"1,984.04",Oct-22
Slough Borough Council,1638,Creative Support Ltd,A02L,Adult Social Care Operations,Supplies and Services,"1,165.50",Oct-22
Slough Borough Council,1638,Creative Support Ltd,A02L,Adult Social Care Operations,Supplies and Services,"1,431.90",Oct-22
Slough Borough Council,1638,Creative Support Ltd,A02L,Adult Social Care Operations,Supplies and Services,"1,065.60",Oct-22
Slough Borough Council,1638,Creative Support Ltd,A02L,Adult Social Care Operations,Supplies and Services,"1,565.10",Oct-22
Slough Borough Council,1638,Creative Support Ltd,A02L,Adult Social Care Operations,Supplies and Services,"1,365.30",Oct-22
Slough Borough Council,1638,Creative Support Ltd,A02L,Adult Social Care Operations,Supplies and Services,"1,365.30",Oct-22
Slough Borough Council,1638,Creative Support Ltd,A02L,Adult Social Care Operations,Supplies and Services,"1,431.90",Oct-22
Slough Borough Council,1638,Creative Support Ltd,A02L,Adult Social Care Operations,Supplies and Services,"1,565.10",Oct-22
Slough Borough Council,1638,Creative Support Ltd,A02L,Adult Social Care Operations,Supplies and Services,"1,165.50",Oct-22
Slough Borough Council,1638,Creative Support Ltd,A02L,Adult Social Care Operations,Supplies and Services,"1,065.60",Oct-22
Slough Borough Council,1638,Creative Support Ltd,M42E,Adult Social Care Operations,Supplies and Services,"1,198.80",Oct-22
Slough Borough Council,1638,Creative Support Ltd,M42E,Adult Social Care Operations,Supplies and Services,"1,182.15",Oct-22
Slough Borough Council,1638,Creative Support Ltd,M44E,Adult Social Care Operations,Supplies and Services,"1,465.20",Oct-22
Slough Borough Council,1638,Creative Support Ltd,M44E,Adult Social Care Operations,Supplies and Services,699.30,Oct-22
Slough Borough Council,1638,Creative Support Ltd,M44E,Adult Social Care Operations,Supplies and Services,999.00,Oct-22
Slough Borough Council,1638,Creative Support Ltd,M44E,Adult Social Care Operations,Supplies and Services,849.15,Oct-22
Slough Borough Council,1638,Creative Support Ltd,M44E,Adult Social Care Operations,Supplies and Services,932.40,Oct-22
Slough Borough Council,1638,Creative Support Ltd,M44E,Adult Social Care Operations,Supplies and Services,999.00,Oct-22
Slough Borough Council,1638,Creative Support Ltd,M44E,Adult Social Care Operations,Supplies and Services,932.40,Oct-22
Slough Borough Council,1638,Creative Support Ltd,M44E,Adult Social Care Operations,Supplies and Services,"1,465.20",Oct-22
Slough Borough Council,1638,Creative Support Ltd,M44E,Adult Social Care Operations,Supplies and Services,699.30,Oct-22
Slough Borough Council,1638,Creative Support Ltd,M44E,Adult Social Care Operations,Supplies and Services,999.00,Oct-22
Slough Borough Council,806063,Cruise Minibuses Ltd,F123,Education & Inclusion,Supplies and Services,"4,753.00",Oct-22
Slough Borough Council,806063,Cruise Minibuses Ltd,F123,Education & Inclusion,Supplies and Services,"5,432.00",Oct-22
Slough Borough Council,806900,CYXTERA TECHNOLOGY UK LIMITED,B282,Digital and Strategic IT,Supplies and Services,"17,742.48",Oct-22
Slough Borough Council,807288,David Allwood,C322,Community,Supplies and Services,"2,594.00",Oct-22
Slough Borough Council,807440,David Peplow,A04A,Adult Social Care Operations,Supplies and Services,"1,200.00",Oct-22
Slough Borough Council,804689,De Lage Landen Leasing Ltd,K059,Business Services,Supplies and Services,"2,085.00",Oct-22
Slough Borough Council,804903,Dennis Eagle Limited,D610,Place Operations,Supplies and Services,527.61,Oct-22
Slough Borough Council,805964,Design South East,D224,Place Regulation,Supplies and Services,"1,800.00",Oct-22
Slough Borough Council,3554,Dimensions (Uk) Ltd,M42E,Adult Social Care Operations,Supplies and Services,"7,056.60",Oct-22
Slough Borough Council,3554,Dimensions (Uk) Ltd,M42E,Adult Social Care Operations,Supplies and Services,"5,660.32",Oct-22
Slough Borough Council,3554,Dimensions (Uk) Ltd,M42E,Adult Social Care Operations,Supplies and Services,"6,273.69",Oct-22
Slough Borough Council,3554,Dimensions (Uk) Ltd,M42E,Adult Social Care Operations,Supplies and Services,"7,248.26",Oct-22
Slough Borough Council,3554,Dimensions (Uk) Ltd,M42E,Adult Social Care Operations,Supplies and Services,"5,953.25",Oct-22
Slough Borough Council,3554,Dimensions (Uk) Ltd,M42E,Adult Social Care Operations,Supplies and Services,"7,260.34",Oct-22
Slough Borough Council,3554,Dimensions (Uk) Ltd,M42E,Adult Social Care Operations,Supplies and Services,"-6,969.66",Oct-22
Slough Borough Council,3554,Dimensions (Uk) Ltd,M42E,Adult Social Care Operations,Supplies and Services,"7,597.80",Oct-22
Slough Borough Council,3554,Dimensions (Uk) Ltd,M42E,Adult Social Care Operations,Supplies and Services,"-7,588.47",Oct-22
Slough Borough Council,805483,Direct Tyre Managenent Ltd,D610,Place Operations,Transport,"3,564.96",Oct-22
Slough Borough Council,803306,Ditton Park Academy,E620,Children & Families,Supplies and Services,"34,458.33",Oct-22
Slough Borough Council,803306,Ditton Park Academy,B297,Finance & Commercial,Government Grants,"3,120.00",Oct-22
Slough Borough Council,807793,Dorney School,F551,Children & Families,Supplies and Services,"2,833.33",Oct-22
Slough Borough Council,808239,Dow Schofield Watts Business Planning,B015,Finance & Commercial,Supplies and Services,"43,680.00",Oct-22
Slough Borough Council,1457,Dr Norman Gordon,D320,Place Operations,Premises,"2,258.00",Oct-22
Slough Borough Council,803177,Early Steps Preschool,F909,Children & Families,Supplies and Services,"6,270.20",Oct-22
Slough Borough Council,803301,Eden Girls School,E610,Children & Families,Supplies and Services,"5,583.33",Oct-22
Slough Borough Council,1299,Edf Energy,K526,Building Management,Premises,"3,604.91",Oct-22
Slough Borough Council,1299,Edf Energy,K526,Building Management,Premises,"130,324.72",Oct-22
Slough Borough Council,1299,Edf Energy,K526,Building Management,Premises,"40,490.89",Oct-22
Slough Borough Council,807001,Elegant Care Services Ltd,M42E,Adult Social Care Operations,Supplies and Services,"5,757.14",Oct-22
Slough Borough Council,807001,Elegant Care Services Ltd,M42E,Adult Social Care Operations,Supplies and Services,"10,185.71",Oct-22
Slough Borough Council,807001,Elegant Care Services Ltd,M42E,Adult Social Care Operations,Supplies and Services,"5,978.57",Oct-22
Slough Borough Council,807001,Elegant Care Services Ltd,M44C,Adult Social Care Operations,Supplies and Services,"6,753.57",Oct-22
Slough Borough Council,806355,Elysium Healthcare,M26E,Adult Social Care Operations,Supplies and Services,"10,688.40",Oct-22
Slough Borough Council,806355,Elysium Healthcare,M26E,Adult Social Care Operations,Supplies and Services,"9,267.00",Oct-22
Slough Borough Council,3752,Endurance Health,A07R,Adult Social Care Operations,Supplies and Services,812.49,Oct-22
Slough Borough Council,3752,Endurance Health,M44C,Adult Social Care Operations,Supplies and Services,"2,249.10",Oct-22
Slough Borough Council,3752,Endurance Health,M44C,Adult Social Care Operations,Supplies and Services,"1,999.20",Oct-22
Slough Borough Council,3752,Endurance Health,M44C,Adult Social Care Operations,Supplies and Services,631.61,Oct-22
Slough Borough Council,3752,Endurance Health,M44C,Adult Social Care Operations,Supplies and Services,"1,312.58",Oct-22
Slough Borough Council,3752,Endurance Health,M44C,Adult Social Care Operations,Supplies and Services,999.60,Oct-22
Slough Borough Council,3752,Endurance Health,M44C,Adult Social Care Operations,Supplies and Services,"1,124.55",Oct-22
Slough Borough Council,3752,Endurance Health,M44C,Adult Social Care Operations,Supplies and Services,873.47,Oct-22
Slough Borough Council,3752,Endurance Health,M44C,Adult Social Care Operations,Supplies and Services,633.69,Oct-22
Slough Borough Council,3752,Endurance Health,M44C,Adult Social Care Operations,Supplies and Services,"1,140.64",Oct-22
Slough Borough Council,3752,Endurance Health,M44C,Adult Social Care Operations,Supplies and Services,690.50,Oct-22
Slough Borough Council,3752,Endurance Health,M44C,Adult Social Care Operations,Supplies and Services,946.05,Oct-22
Slough Borough Council,3752,Endurance Health,M44C,Adult Social Care Operations,Supplies and Services,"1,249.50",Oct-22
Slough Borough Council,3752,Endurance Health,M44C,Adult Social Care Operations,Supplies and Services,"1,178.10",Oct-22
Slough Borough Council,3752,Endurance Health,M44C,Adult Social Care Operations,Supplies and Services,"2,206.53",Oct-22
Slough Borough Council,3752,Endurance Health,M44C,Adult Social Care Operations,Supplies and Services,769.64,Oct-22
Slough Borough Council,3752,Endurance Health,M44C,Adult Social Care Operations,Supplies and Services,"1,330.14",Oct-22
Slough Borough Council,3752,Endurance Health,M44C,Adult Social Care Operations,Supplies and Services,714.00,Oct-22
Slough Borough Council,3752,Endurance Health,M44C,Adult Social Care Operations,Supplies and Services,"1,124.55",Oct-22
Slough Borough Council,3752,Endurance Health,M44C,Adult Social Care Operations,Supplies and Services,606.90,Oct-22
Slough Borough Council,3752,Endurance Health,M44C,Adult Social Care Operations,Supplies and Services,571.20,Oct-22
Slough Borough Council,3752,Endurance Health,M44C,Adult Social Care Operations,Supplies and Services,"1,249.50",Oct-22
Slough Borough Council,3752,Endurance Health,M44C,Adult Social Care Operations,Supplies and Services,696.15,Oct-22
Slough Borough Council,3752,Endurance Health,M44C,Adult Social Care Operations,Supplies and Services,946.05,Oct-22
Slough Borough Council,3752,Endurance Health,M44C,Adult Social Care Operations,Supplies and Services,526.55,Oct-22
Slough Borough Council,3752,Endurance Health,M44C,Adult Social Care Operations,Supplies and Services,"2,004.37",Oct-22
Slough Borough Council,3752,Endurance Health,M44C,Adult Social Care Operations,Supplies and Services,921.07,Oct-22
Slough Borough Council,3752,Endurance Health,M44C,Adult Social Care Operations,Supplies and Services,"1,035.31",Oct-22
Slough Borough Council,3752,Endurance Health,M44C,Adult Social Care Operations,Supplies and Services,"1,124.55",Oct-22
Slough Borough Council,3752,Endurance Health,M44C,Adult Social Care Operations,Supplies and Services,"2,499.00",Oct-22
Slough Borough Council,3752,Endurance Health,M44C,Adult Social Care Operations,Supplies and Services,739.89,Oct-22
Slough Borough Council,3752,Endurance Health,M44C,Adult Social Care Operations,Supplies and Services,"2,276.51",Oct-22
Slough Borough Council,3752,Endurance Health,M44D,Adult Social Care Operations,Supplies and Services,"2,499.00",Oct-22
Slough Borough Council,3752,Endurance Health,M44D,Adult Social Care Operations,Supplies and Services,878.53,Oct-22
Slough Borough Council,3752,Endurance Health,M44D,Adult Social Care Operations,Supplies and Services,696.15,Oct-22
Slough Borough Council,3752,Endurance Health,M44D,Adult Social Care Operations,Supplies and Services,890.73,Oct-22
Slough Borough Council,3752,Endurance Health,M44D,Adult Social Care Operations,Supplies and Services,"1,178.10",Oct-22
Slough Borough Council,3752,Endurance Health,M48C,Adult Social Care Operations,Supplies and Services,829.15,Oct-22
Slough Borough Council,3752,Endurance Health,M48C,Adult Social Care Operations,Supplies and Services,"2,975.30",Oct-22
Slough Borough Council,805423,Enriched Care,M44F,Adult Social Care Operations,Supplies and Services,"2,613.30",Oct-22
Slough Borough Council,805423,Enriched Care,M44F,Adult Social Care Operations,Supplies and Services,"2,879.90",Oct-22
Slough Borough Council,805423,Enriched Care,M44F,Adult Social Care Operations,Supplies and Services,"4,417.50",Oct-22
Slough Borough Council,805423,Enriched Care,M80F,Adult Social Care Operations,Supplies and Services,"1,758.01",Oct-22
Slough Borough Council,807310,Enterprise Rent-A-Car UK Limited trading as Enterprise Flex-E-Rent,D750,Place Operations,Supplies and Services,767.83,Oct-22
Slough Borough Council,2677,Eton House Residential Home,M25C,Adult Social Care Operations,Supplies and Services,"3,420.00",Oct-22
Slough Borough Council,2677,Eton House Residential Home,M25C,Adult Social Care Operations,Supplies and Services,"3,420.00",Oct-22
Slough Borough Council,2677,Eton House Residential Home,M25D,Adult Social Care Operations,Supplies and Services,"3,096.43",Oct-22
Slough Borough Council,2677,Eton House Residential Home,M27C,Adult Social Care Operations,Supplies and Services,"2,571.43",Oct-22
Slough Borough Council,2677,Eton House Residential Home,M27C,Adult Social Care Operations,Supplies and Services,"2,571.43",Oct-22
Slough Borough Council,807198,everyLIFE. Technologies Ltd,A07R,Adult Social Care Operations,Supplies and Services,595.00,Oct-22
Slough Borough Council,807198,everyLIFE. Technologies Ltd,A07R,Adult Social Care Operations,Supplies and Services,595.00,Oct-22
Slough Borough Council,807198,everyLIFE. Technologies Ltd,A07R,Adult Social Care Operations,Supplies and Services,"1,445.85",Oct-22
Slough Borough Council,806501,Excellent Healthcare Services Ltd,A07R,Adult Social Care Operations,Supplies and Services,"1,727.53",Oct-22
Slough Borough Council,806501,Excellent Healthcare Services Ltd,A07R,Adult Social Care Operations,Supplies and Services,663.78,Oct-22
Slough Borough Council,806501,Excellent Healthcare Services Ltd,A07R,Adult Social Care Operations,Supplies and Services,612.72,Oct-22
Slough Borough Council,806501,Excellent Healthcare Services Ltd,A07R,Adult Social Care Operations,Supplies and Services,531.88,Oct-22
Slough Borough Council,806501,Excellent Healthcare Services Ltd,A07R,Adult Social Care Operations,Supplies and Services,"2,621.08",Oct-22
Slough Borough Council,806501,Excellent Healthcare Services Ltd,A07R,Adult Social Care Operations,Supplies and Services,851.00,Oct-22
Slough Borough Council,806501,Excellent Healthcare Services Ltd,A07R,Adult Social Care Operations,Supplies and Services,595.70,Oct-22
Slough Borough Council,806501,Excellent Healthcare Services Ltd,A07R,Adult Social Care Operations,Supplies and Services,"1,072.26",Oct-22
Slough Borough Council,806501,Excellent Healthcare Services Ltd,M44C,Adult Social Care Operations,Supplies and Services,510.60,Oct-22
Slough Borough Council,806501,Excellent Healthcare Services Ltd,M44C,Adult Social Care Operations,Supplies and Services,540.39,Oct-22
Slough Borough Council,806501,Excellent Healthcare Services Ltd,M44C,Adult Social Care Operations,Supplies and Services,"2,283.52",Oct-22
Slough Borough Council,806501,Excellent Healthcare Services Ltd,M44C,Adult Social Care Operations,Supplies and Services,714.84,Oct-22
Slough Borough Council,806501,Excellent Healthcare Services Ltd,M44C,Adult Social Care Operations,Supplies and Services,"2,144.52",Oct-22
Slough Borough Council,806501,Excellent Healthcare Services Ltd,M44C,Adult Social Care Operations,Supplies and Services,510.60,Oct-22
Slough Borough Council,806501,Excellent Healthcare Services Ltd,M44C,Adult Social Care Operations,Supplies and Services,"1,072.26",Oct-22
Slough Borough Council,806501,Excellent Healthcare Services Ltd,M44C,Adult Social Care Operations,Supplies and Services,595.70,Oct-22
Slough Borough Council,806501,Excellent Healthcare Services Ltd,M44C,Adult Social Care Operations,Supplies and Services,714.84,Oct-22
Slough Borough Council,806501,Excellent Healthcare Services Ltd,M44C,Adult Social Care Operations,Supplies and Services,833.98,Oct-22
Slough Borough Council,806501,Excellent Healthcare Services Ltd,M44C,Adult Social Care Operations,Supplies and Services,"1,667.96",Oct-22
Slough Borough Council,806501,Excellent Healthcare Services Ltd,M44D,Adult Social Care Operations,Supplies and Services,595.70,Oct-22
Slough Borough Council,806501,Excellent Healthcare Services Ltd,M44F,Adult Social Care Operations,Supplies and Services,953.12,Oct-22
Slough Borough Council,806501,Excellent Healthcare Services Ltd,M44F,Adult Social Care Operations,Supplies and Services,714.84,Oct-22
Slough Borough Council,806501,Excellent Healthcare Services Ltd,M44F,Adult Social Care Operations,Supplies and Services,953.12,Oct-22
Slough Borough Council,806501,Excellent Healthcare Services Ltd,M44F,Adult Social Care Operations,Supplies and Services,"2,382.80",Oct-22
Slough Borough Council,806501,Excellent Healthcare Services Ltd,M45C,Adult Social Care Operations,Supplies and Services,"1,302.03",Oct-22
Slough Borough Council,806501,Excellent Healthcare Services Ltd,M45C,Adult Social Care Operations,Supplies and Services,570.17,Oct-22
Slough Borough Council,806501,Excellent Healthcare Services Ltd,M45C,Adult Social Care Operations,Supplies and Services,638.25,Oct-22
Slough Borough Council,806501,Excellent Healthcare Services Ltd,M45C,Adult Social Care Operations,Supplies and Services,"1,506.27",Oct-22
Slough Borough Council,806501,Excellent Healthcare Services Ltd,M45C,Adult Social Care Operations,Supplies and Services,595.70,Oct-22
Slough Borough Council,806501,Excellent Healthcare Services Ltd,M45C,Adult Social Care Operations,Supplies and Services,638.25,Oct-22
Slough Borough Council,806501,Excellent Healthcare Services Ltd,M48C,Adult Social Care Operations,Supplies and Services,"4,608.48",Oct-22
Slough Borough Council,805225,Falcon Surfacing Ltd,D880,Place Operations,Supplies and Services,"14,361.19",Oct-22
Slough Borough Council,805225,Falcon Surfacing Ltd,D880,Place Operations,Supplies and Services,"3,270.91",Oct-22
Slough Borough Council,805225,Falcon Surfacing Ltd,D880,Place Operations,Supplies and Services,679.00,Oct-22
Slough Borough Council,805225,Falcon Surfacing Ltd,D880,Place Operations,Supplies and Services,"6,850.00",Oct-22
Slough Borough Council,4031,Family Support Practise Limited,A03D,Adult Social Care Operations,Supplies and Services,"2,189.25",Oct-22
Slough Borough Council,4031,Family Support Practise Limited,B277,Digital and Strategic IT,Supplies and Services,"2,160.00",Oct-22
Slough Borough Council,4031,Family Support Practise Limited,B277,Digital and Strategic IT,Supplies and Services,"1,800.00",Oct-22
Slough Borough Council,4031,Family Support Practise Limited,B277,Digital and Strategic IT,Supplies and Services,"1,800.00",Oct-22
Slough Borough Council,4031,Family Support Practise Limited,B277,Digital and Strategic IT,Supplies and Services,"1,800.00",Oct-22
Slough Borough Council,806760,Fire Maintenance Limited,B179,Business Services,Supplies and Services,"1,760.00",Oct-22
Slough Borough Council,808531,Fire Protection Association,J020,Place Management,Indirect Employee Expenses,"1,785.00",Oct-22
Slough Borough Council,754,First Steps Day Nursery,F909,Children & Families,Supplies and Services,"10,168.53",Oct-22
Slough Borough Council,807987,Fit For Sport,F382,Children & Families,Supplies and Services,"6,472.20",Oct-22
Slough Borough Council,1626,Five Star Radio Cars Limited,F123,Education & Inclusion,Supplies and Services,"3,360.00",Oct-22
Slough Borough Council,2519,Fleet Tutors,F449,Education & Inclusion,Supplies and Services,"3,426.00",Oct-22
Slough Borough Council,1204,Forget Me Not,M25D,Adult Social Care Operations,Supplies and Services,"3,214.29",Oct-22
Slough Borough Council,806249,Formact Ltd,P006,Capital,Capital Charges,"7,389.00",Oct-22
Slough Borough Council,647,Foxborough Primary School,E620,Children & Families,Supplies and Services,"7,565.00",Oct-22
Slough Borough Council,806480,Frontier NX Limited,A04C,Adult Social Care Operations,Supplies and Services,"4,969.00",Oct-22
Slough Borough Council,1555,Gallagher Bassett,B018,Finance & Commercial,Supplies and Services,"24,121.65",Oct-22
Slough Borough Council,804911,GAP Group Limited,D880,Place Operations,Supplies and Services,966.00,Oct-22
Slough Borough Council,804911,GAP Group Limited,D880,Place Operations,Supplies and Services,"1,045.44",Oct-22
Slough Borough Council,804911,GAP Group Limited,D880,Place Operations,Supplies and Services,"1,012.00",Oct-22
Slough Borough Council,804911,GAP Group Limited,D880,Place Operations,Supplies and Services,940.44,Oct-22
Slough Borough Council,804911,GAP Group Limited,D880,Place Operations,Supplies and Services,968.00,Oct-22
Slough Borough Council,1758,Gas Advisory Services Limited,J606,Place Management,Supplies and Services,"2,615.00",Oct-22
Slough Borough Council,806204,GLOBAL MEDIATION LIMITED,F500,Education & Inclusion,Supplies and Services,800.00,Oct-22
Slough Borough Council,2830,GR Response Healthcare Ltd,A07R,Adult Social Care Operations,Supplies and Services,"1,321.48",Oct-22
Slough Borough Council,2830,GR Response Healthcare Ltd,A07R,Adult Social Care Operations,Supplies and Services,557.75,Oct-22
Slough Borough Council,2830,GR Response Healthcare Ltd,A07R,Adult Social Care Operations,Supplies and Services,"2,250.08",Oct-22
Slough Borough Council,2830,GR Response Healthcare Ltd,M44C,Adult Social Care Operations,Supplies and Services,"1,713.60",Oct-22
Slough Borough Council,2830,GR Response Healthcare Ltd,M44C,Adult Social Care Operations,Supplies and Services,"2,250.08",Oct-22
Slough Borough Council,2830,GR Response Healthcare Ltd,M44C,Adult Social Care Operations,Supplies and Services,"2,749.60",Oct-22
Slough Borough Council,2830,GR Response Healthcare Ltd,M44C,Adult Social Care Operations,Supplies and Services,"2,394.00",Oct-22
Slough Borough Council,2830,GR Response Healthcare Ltd,M44C,Adult Social Care Operations,Supplies and Services,"1,500.24",Oct-22
Slough Borough Council,2830,GR Response Healthcare Ltd,M44C,Adult Social Care Operations,Supplies and Services,"2,128.00",Oct-22
Slough Borough Council,2830,GR Response Healthcare Ltd,M44C,Adult Social Care Operations,Supplies and Services,"2,394.00",Oct-22
Slough Borough Council,2830,GR Response Healthcare Ltd,M44C,Adult Social Care Operations,Supplies and Services,"1,263.50",Oct-22
Slough Borough Council,2830,GR Response Healthcare Ltd,M44C,Adult Social Care Operations,Supplies and Services,"1,330.00",Oct-22
Slough Borough Council,2830,GR Response Healthcare Ltd,M44C,Adult Social Care Operations,Supplies and Services,"2,394.00",Oct-22
Slough Borough Council,2830,GR Response Healthcare Ltd,M44C,Adult Social Care Operations,Supplies and Services,"2,546.00",Oct-22
Slough Borough Council,2830,GR Response Healthcare Ltd,M44C,Adult Social Care Operations,Supplies and Services,"2,000.32",Oct-22
Slough Borough Council,2830,GR Response Healthcare Ltd,M44D,Adult Social Care Operations,Supplies and Services,"2,250.08",Oct-22
Slough Borough Council,2830,GR Response Healthcare Ltd,M44D,Adult Social Care Operations,Supplies and Services,"1,596.00",Oct-22
Slough Borough Council,2830,GR Response Healthcare Ltd,M44D,Adult Social Care Operations,Supplies and Services,931.00,Oct-22
Slough Borough Council,2830,GR Response Healthcare Ltd,M44D,Adult Social Care Operations,Supplies and Services,"1,577.00",Oct-22
Slough Borough Council,2830,GR Response Healthcare Ltd,M44D,Adult Social Care Operations,Supplies and Services,"2,214.36",Oct-22
Slough Borough Council,2830,GR Response Healthcare Ltd,M44D,Adult Social Care Operations,Supplies and Services,"2,460.50",Oct-22
Slough Borough Council,2830,GR Response Healthcare Ltd,M44D,Adult Social Care Operations,Supplies and Services,"2,250.08",Oct-22
Slough Borough Council,2830,GR Response Healthcare Ltd,M44E,Adult Social Care Operations,Supplies and Services,532.00,Oct-22
Slough Borough Council,2830,GR Response Healthcare Ltd,M44F,Adult Social Care Operations,Supplies and Services,"1,444.00",Oct-22
Slough Borough Council,2830,GR Response Healthcare Ltd,M44F,Adult Social Care Operations,Supplies and Services,570.92,Oct-22
Slough Borough Council,2830,GR Response Healthcare Ltd,M48C,Adult Social Care Operations,Supplies and Services,"3,002.00",Oct-22
Slough Borough Council,803296,Grant Thornton UK LLP,B007,Finance & Commercial,Supplies and Services,"98,193.00",Oct-22
Slough Borough Council,807255,Green Corridor,F558,Children & Families,Supplies and Services,"1,624.00",Oct-22
Slough Borough Council,807255,Green Corridor,F558,Children & Families,Supplies and Services,"2,348.04",Oct-22
Slough Borough Council,808378,Greensleeves Care,M17C,Adult Social Care Operations,Supplies and Services,"3,614.07",Oct-22
Slough Borough Council,805069,Grove Academy,F253,Children & Families,Premises,"1,000.00",Oct-22
Slough Borough Council,805069,Grove Academy,E610,Children & Families,Supplies and Services,"44,478.00",Oct-22
Slough Borough Council,805069,Grove Academy,E610,Children & Families,Supplies and Services,"171,863.69",Oct-22
Slough Borough Council,804447,Grundon Waste Management Limited,D342,Place Operations,Supplies and Services,759.80,Oct-22
Slough Borough Council,804447,Grundon Waste Management Limited,D342,Place Operations,Supplies and Services,"471,212.25",Oct-22
Slough Borough Council,3228,H Plus Care Ltd,M18C,Adult Social Care Operations,Supplies and Services,"5,314.29",Oct-22
Slough Borough Council,3228,H Plus Care Ltd,M25C,Adult Social Care Operations,Supplies and Services,"5,535.71",Oct-22
Slough Borough Council,3228,H Plus Care Ltd,M26E,Adult Social Care Operations,Supplies and Services,"5,314.29",Oct-22
Slough Borough Council,806681,Hako Machines Ltd,D620,Place Operations,Supplies and Services,597.42,Oct-22
Slough Borough Council,804986,Havencare Ltd,M26E,Adult Social Care Operations,Supplies and Services,"1,279.50",Oct-22
Slough Borough Council,804986,Havencare Ltd,M26E,Adult Social Care Operations,Supplies and Services,"1,279.50",Oct-22
Slough Borough Council,804986,Havencare Ltd,M26E,Adult Social Care Operations,Supplies and Services,"1,279.50",Oct-22
Slough Borough Council,804986,Havencare Ltd,M26E,Adult Social Care Operations,Supplies and Services,"1,279.50",Oct-22
Slough Borough Council,1381,Haybrook College,E610,Children & Families,Supplies and Services,"87,894.24",Oct-22
Slough Borough Council,3784,Haybrook College Pru,E610,Children & Families,Supplies and Services,"38,200.00",Oct-22
Slough Borough Council,803248,Haybrook College Trust,B297,Finance & Commercial,Government Grants,"1,065.00",Oct-22
Slough Borough Council,803753,Healthcare Homes,M15D,Adult Social Care Operations,Supplies and Services,"2,825.43",Oct-22
Slough Borough Council,803753,Healthcare Homes,M17C,Adult Social Care Operations,Supplies and Services,"4,871.43",Oct-22
Slough Borough Council,803753,Healthcare Homes,M17C,Adult Social Care Operations,Supplies and Services,"4,428.57",Oct-22
Slough Borough Council,803753,Healthcare Homes,M17C,Adult Social Care Operations,Supplies and Services,"2,629.69",Oct-22
Slough Borough Council,803753,Healthcare Homes,M18C,Adult Social Care Operations,Supplies and Services,"4,871.43",Oct-22
Slough Borough Council,803753,Healthcare Homes,M18C,Adult Social Care Operations,Supplies and Services,785.71,Oct-22
Slough Borough Council,803753,Healthcare Homes,M18C,Adult Social Care Operations,Supplies and Services,"4,714.29",Oct-22
Slough Borough Council,803753,Healthcare Homes,M18C,Adult Social Care Operations,Supplies and Services,"4,871.43",Oct-22
Slough Borough Council,803753,Healthcare Homes,M18C,Adult Social Care Operations,Supplies and Services,"4,714.29",Oct-22
Slough Borough Council,803753,Healthcare Homes,M18C,Adult Social Care Operations,Supplies and Services,"4,871.43",Oct-22
Slough Borough Council,803753,Healthcare Homes,M18C,Adult Social Care Operations,Supplies and Services,"4,871.43",Oct-22
Slough Borough Council,803753,Healthcare Homes,M27C,Adult Social Care Operations,Supplies and Services,"3,100.00",Oct-22
Slough Borough Council,803753,Healthcare Homes,M28C,Adult Social Care Operations,Supplies and Services,"1,571.43",Oct-22
Slough Borough Council,1956,Heathlands School,F551,Children & Families,Supplies and Services,"3,890.67",Oct-22
Slough Borough Council,807682,Help and Care,A02C,Adult Social Care Commissioning,Supplies and Services,"16,109.74",Oct-22
Slough Borough Council,1686,Herald Chase,D610,Place Operations,Supplies and Services,"6,567.57",Oct-22
Slough Borough Council,1686,Herald Chase,D509,Place Strategy & Infrastructure,Supplies and Services,"2,850.88",Oct-22
Slough Borough Council,803447,Herewards House Residential Home,M27C,Adult Social Care Operations,Supplies and Services,"2,878.57",Oct-22
Slough Borough Council,803447,Herewards House Residential Home,M27C,Adult Social Care Operations,Supplies and Services,"2,785.71",Oct-22
Slough Borough Council,803447,Herewards House Residential Home,M27C,Adult Social Care Operations,Supplies and Services,"2,878.57",Oct-22
Slough Borough Council,803447,Herewards House Residential Home,M27C,Adult Social Care Operations,Supplies and Services,"2,878.57",Oct-22
Slough Borough Council,803447,Herewards House Residential Home,M28C,Adult Social Care Operations,Supplies and Services,607.14,Oct-22
Slough Borough Council,803447,Herewards House Residential Home,M28C,Adult Social Care Operations,Supplies and Services,"1,214.29",Oct-22
Slough Borough Council,803447,Herewards House Residential Home,M28C,Adult Social Care Operations,Supplies and Services,"1,942.86",Oct-22
Slough Borough Council,803447,Herewards House Residential Home,M29C,Adult Social Care Operations,Supplies and Services,800.00,Oct-22
Slough Borough Council,850,Holy Family Catholic Primary School,E250,Children & Families,Supplies and Services,"213,099.82",Oct-22
Slough Borough Council,806778,IBB Solicitors,H009,Business Services,Supplies and Services,"3,591.70",Oct-22
Slough Borough Council,804955,Imosphere Limited,A03D,Adult Social Care Operations,Supplies and Services,"7,850.00",Oct-22
Slough Borough Council,2917,Imperial Coaches Ltd,F123,Education & Inclusion,Supplies and Services,"4,700.00",Oct-22
Slough Borough Council,351,Imperial Polythene Products Ltd,D620,Place Operations,Supplies and Services,"1,881.50",Oct-22
Slough Borough Council,807666,Independence Home and Domicilary Care,M44F,Adult Social Care Operations,Supplies and Services,"2,845.80",Oct-22
Slough Borough Council,807666,Independence Home and Domicilary Care,M44F,Adult Social Care Operations,Supplies and Services,"3,240.00",Oct-22
Slough Borough Council,807666,Independence Home and Domicilary Care,M44F,Adult Social Care Operations,Supplies and Services,"3,272.10",Oct-22
Slough Borough Council,807666,Independence Home and Domicilary Care,M44F,Adult Social Care Operations,Supplies and Services,"1,494.75",Oct-22
Slough Borough Council,3570,Independent Supported Living And Disabilities Ltd,M42E,Adult Social Care Operations,Supplies and Services,"3,000.00",Oct-22
Slough Borough Council,3570,Independent Supported Living And Disabilities Ltd,M44D,Adult Social Care Operations,Supplies and Services,"3,044.16",Oct-22
Slough Borough Council,3570,Independent Supported Living And Disabilities Ltd,M44E,Adult Social Care Operations,Supplies and Services,"3,570.00",Oct-22
Slough Borough Council,3570,Independent Supported Living And Disabilities Ltd,M44E,Adult Social Care Operations,Supplies and Services,"1,050.00",Oct-22
Slough Borough Council,3570,Independent Supported Living And Disabilities Ltd,M44E,Adult Social Care Operations,Supplies and Services,"1,440.00",Oct-22
Slough Borough Council,3570,Independent Supported Living And Disabilities Ltd,M44E,Adult Social Care Operations,Supplies and Services,"4,212.00",Oct-22
Slough Borough Council,3570,Independent Supported Living And Disabilities Ltd,M81D,Adult Social Care Operations,Supplies and Services,"4,172.00",Oct-22
Slough Borough Council,3172,Intelligent Transport Services,P209,Capital,Capital Charges,900.00,Oct-22
Slough Borough Council,3172,Intelligent Transport Services,P209,Capital,Capital Charges,"1,500.00",Oct-22
Slough Borough Council,3172,Intelligent Transport Services,P235,Capital,Capital Charges,"2,700.00",Oct-22
Slough Borough Council,3172,Intelligent Transport Services,P579,Capital,Capital Charges,"1,500.00",Oct-22
Slough Borough Council,3172,Intelligent Transport Services,D015,Place Strategy & Infrastructure,Supplies and Services,"6,500.00",Oct-22
Slough Borough Council,3172,Intelligent Transport Services,D508,Place Strategy & Infrastructure,Supplies and Services,"6,207.00",Oct-22
Slough Borough Council,3172,Intelligent Transport Services,D508,Place Strategy & Infrastructure,Supplies and Services,"6,207.00",Oct-22
Slough Borough Council,3172,Intelligent Transport Services,D508,Place Strategy & Infrastructure,Supplies and Services,"5,793.20",Oct-22
Slough Borough Council,3500,Iqra Slough Islamic Primary School,E480,Children & Families,Supplies and Services,"120,251.59",Oct-22
Slough Borough Council,998,Iron Mountain Uk Ltd,B282,Digital and Strategic IT,Supplies and Services,"1,548.06",Oct-22
Slough Borough Council,998,Iron Mountain Uk Ltd,B282,Digital and Strategic IT,Supplies and Services,589.73,Oct-22
Slough Borough Council,2919,Islamic Shakhsiyah Foundation,F909,Children & Families,Supplies and Services,"9,007.09",Oct-22
Slough Borough Council,807346,Jacaranda,M44F,Adult Social Care Operations,Supplies and Services,"4,222.00",Oct-22
Slough Borough Council,753,Jack In The Box Day Nursery,F909,Children & Families,Supplies and Services,"11,997.83",Oct-22
Slough Borough Council,733,James Elliman  School,E620,Children & Families,Supplies and Services,"19,415.00",Oct-22
Slough Borough Council,1970,James Elliman Academy,B297,Finance & Commercial,Government Grants,"1,935.00",Oct-22
Slough Borough Council,805666,James Rosental,C322,Community,Supplies and Services,924.00,Oct-22
Slough Borough Council,807807,John Gobongitta,A02A,Adult Social Care Operations,Supplies and Services,"1,500.00",Oct-22
Slough Borough Council,2200,Joshua Pilmore,C322,Community,Supplies and Services,895.00,Oct-22
Slough Borough Council,1687,K Pharmacy,A04C,Adult Social Care Operations,Supplies and Services,514.00,Oct-22
Slough Borough Council,803815,Kathys Childcare,F909,Children & Families,Supplies and Services,"2,434.88",Oct-22
Slough Borough Council,2620,Kcare Nursing Agency Ltd,M44C,Adult Social Care Operations,Supplies and Services,796.78,Oct-22
Slough Borough Council,2620,Kcare Nursing Agency Ltd,M44D,Adult Social Care Operations,Supplies and Services,858.70,Oct-22
Slough Borough Council,2620,Kcare Nursing Agency Ltd,M44D,Adult Social Care Operations,Supplies and Services,"1,461.83",Oct-22
Slough Borough Council,2620,Kcare Nursing Agency Ltd,M48C,Adult Social Care Operations,Supplies and Services,"1,019.89",Oct-22
Slough Borough Council,804887,KCare Nursing Agency Ltd Supported House Living,M42F,Adult Social Care Operations,Supplies and Services,"2,926.00",Oct-22
Slough Borough Council,804887,KCare Nursing Agency Ltd Supported House Living,M44F,Adult Social Care Operations,Supplies and Services,"2,493.50",Oct-22
Slough Borough Council,663,Kent County Council,F123,Education & Inclusion,Supplies and Services,"7,261.41",Oct-22
Slough Borough Council,808146,Kents Hill Care Home,M18C,Adult Social Care Operations,Supplies and Services,"3,642.86",Oct-22
Slough Borough Council,804799,Key Management System Ltd,J015,Place Management,Supplies and Services,"6,783.60",Oct-22
Slough Borough Council,807742,Khalsa Primary School,E620,Children & Families,Supplies and Services,"13,620.00",Oct-22
Slough Borough Council,803916,Kharis Solutions,A07R,Adult Social Care Operations,Supplies and Services,"2,101.20",Oct-22
Slough Borough Council,803916,Kharis Solutions,M42E,Adult Social Care Operations,Supplies and Services,"7,188.00",Oct-22
Slough Borough Council,803916,Kharis Solutions,M44C,Adult Social Care Operations,Supplies and Services,"1,961.12",Oct-22
Slough Borough Council,803916,Kharis Solutions,M44C,Adult Social Care Operations,Supplies and Services,"2,346.34",Oct-22
Slough Borough Council,803916,Kharis Solutions,M44C,Adult Social Care Operations,Supplies and Services,"1,470.84",Oct-22
Slough Borough Council,803916,Kharis Solutions,M44C,Adult Social Care Operations,Supplies and Services,"1,961.12",Oct-22
Slough Borough Council,803916,Kharis Solutions,M44C,Adult Social Care Operations,Supplies and Services,"2,346.34",Oct-22
Slough Borough Council,803916,Kharis Solutions,M44D,Adult Social Care Operations,Supplies and Services,"2,206.26",Oct-22
Slough Borough Council,803916,Kharis Solutions,M44D,Adult Social Care Operations,Supplies and Services,"2,206.26",Oct-22
Slough Borough Council,803916,Kharis Solutions,M44E,Adult Social Care Operations,Supplies and Services,"3,000.00",Oct-22
Slough Borough Council,803916,Kharis Solutions,M44E,Adult Social Care Operations,Supplies and Services,900.00,Oct-22
Slough Borough Council,803916,Kharis Solutions,M44E,Adult Social Care Operations,Supplies and Services,600.00,Oct-22
Slough Borough Council,803916,Kharis Solutions,M44E,Adult Social Care Operations,Supplies and Services,900.00,Oct-22
Slough Borough Council,803916,Kharis Solutions,M44E,Adult Social Care Operations,Supplies and Services,900.00,Oct-22
Slough Borough Council,803916,Kharis Solutions,M44E,Adult Social Care Operations,Supplies and Services,"1,800.00",Oct-22
Slough Borough Council,803916,Kharis Solutions,M48C,Adult Social Care Operations,Supplies and Services,"2,276.30",Oct-22
Slough Borough Council,803916,Kharis Solutions,M48C,Adult Social Care Operations,Supplies and Services,"2,276.30",Oct-22
Slough Borough Council,1728,Kristiina Smith,C322,Community,Supplies and Services,"3,097.00",Oct-22
Slough Borough Council,664,Langley Grammar School,B297,Finance & Commercial,Government Grants,915.00,Oct-22
Slough Borough Council,3001,Langley Haven Care Homes Ltd,M25C,Adult Social Care Operations,Supplies and Services,"3,604.68",Oct-22
Slough Borough Council,3001,Langley Haven Care Homes Ltd,M25C,Adult Social Care Operations,Supplies and Services,"3,604.68",Oct-22
Slough Borough Council,3001,Langley Haven Care Homes Ltd,M25D,Adult Social Care Operations,Supplies and Services,"3,604.68",Oct-22
Slough Borough Council,3001,Langley Haven Care Homes Ltd,M25D,Adult Social Care Operations,Supplies and Services,"3,604.68",Oct-22
Slough Borough Council,3001,Langley Haven Care Homes Ltd,M25D,Adult Social Care Operations,Supplies and Services,"3,488.40",Oct-22
Slough Borough Council,3001,Langley Haven Care Homes Ltd,M25D,Adult Social Care Operations,Supplies and Services,"1,162.80",Oct-22
Slough Borough Council,3001,Langley Haven Care Homes Ltd,M25D,Adult Social Care Operations,Supplies and Services,"3,604.68",Oct-22
Slough Borough Council,3001,Langley Haven Care Homes Ltd,M26D,Adult Social Care Operations,Supplies and Services,"2,441.88",Oct-22
Slough Borough Council,3001,Langley Haven Care Homes Ltd,M26E,Adult Social Care Operations,Supplies and Services,"3,877.97",Oct-22
Slough Borough Council,3001,Langley Haven Care Homes Ltd,M26E,Adult Social Care Operations,Supplies and Services,"4,007.24",Oct-22
Slough Borough Council,3001,Langley Haven Care Homes Ltd,M26E,Adult Social Care Operations,Supplies and Services,"3,720.00",Oct-22
Slough Borough Council,3001,Langley Haven Care Homes Ltd,M27C,Adult Social Care Operations,Supplies and Services,"3,604.68",Oct-22
Slough Borough Council,3001,Langley Haven Care Homes Ltd,M27C,Adult Social Care Operations,Supplies and Services,"3,604.68",Oct-22
Slough Borough Council,3001,Langley Haven Care Homes Ltd,M27C,Adult Social Care Operations,Supplies and Services,"3,604.68",Oct-22
Slough Borough Council,3001,Langley Haven Care Homes Ltd,M27F,Adult Social Care Operations,Supplies and Services,"3,604.68",Oct-22
Slough Borough Council,3001,Langley Haven Care Homes Ltd,M27F,Adult Social Care Operations,Supplies and Services,"3,604.68",Oct-22
Slough Borough Council,3001,Langley Haven Care Homes Ltd,M27F,Adult Social Care Operations,Supplies and Services,"3,604.68",Oct-22
Slough Borough Council,3001,Langley Haven Care Homes Ltd,M27F,Adult Social Care Operations,Supplies and Services,"1,882.14",Oct-22
Slough Borough Council,3001,Langley Haven Care Homes Ltd,M27F,Adult Social Care Operations,Supplies and Services,"3,365.71",Oct-22
Slough Borough Council,3001,Langley Haven Care Homes Ltd,M27F,Adult Social Care Operations,Supplies and Services,"3,604.68",Oct-22
Slough Borough Council,3001,Langley Haven Care Homes Ltd,M29C,Adult Social Care Operations,Supplies and Services,"3,604.68",Oct-22
Slough Borough Council,803686,Lascelles Park Nursery,F909,Children & Families,Supplies and Services,"17,552.68",Oct-22
Slough Borough Council,808111,Learning Curve Group Ltd,F210,Community,TP-Other Bodies,"31,619.10",Oct-22
Slough Borough Council,808111,Learning Curve Group Ltd,F210,Community,TP-Other Bodies,"3,410.06",Oct-22
Slough Borough Council,803222,Learning Pool Limited,B409,People,Indirect Employee Expenses,500.00,Oct-22
Slough Borough Council,3482,Leonard Cheshire Disability,M26E,Adult Social Care Operations,Supplies and Services,"6,579.93",Oct-22
Slough Borough Council,301,Liberata Uk Limited,B048,Finance & Commercial,Supplies and Services,"9,678.34",Oct-22
Slough Borough Council,469,LimeBlue Innovation Limited,H213,Adult Social Care Operations,Supplies and Services,610.00,Oct-22
Slough Borough Council,397,Liquidlogic,M39A,#N/A,Supplies and Services,"3,776.00",Oct-22
Slough Borough Council,804692,Little Diamonds Pre School,F550,Children & Families,Supplies and Services,"4,620.00",Oct-22
Slough Borough Council,804692,Little Diamonds Pre School,F909,Children & Families,Supplies and Services,"15,180.00",Oct-22
Slough Borough Council,3791,Littledown Pru,E610,Children & Families,Supplies and Services,"17,100.00",Oct-22
Slough Borough Council,667,Littledown School,E610,Children & Families,Supplies and Services,"16,416.66",Oct-22
Slough Borough Council,1328,London & Quadrant Housing Trust,H205,Housing (People) Services,Premises,"57,554.16",Oct-22
Slough Borough Council,804544,London Borough of Harrow,B096,Governance,Indirect Employee Expenses,"113,945.87",Oct-22
Slough Borough Council,668,London Borough Of Hounslow,D012,Place Strategy & Infrastructure,Supplies and Services,"61,000.00",Oct-22
Slough Borough Council,668,London Borough Of Hounslow,D012,Place Strategy & Infrastructure,Supplies and Services,"23,691.25",Oct-22
Slough Borough Council,1282,Long Close School,F909,Children & Families,Supplies and Services,"6,859.24",Oct-22
Slough Borough Council,2302,Look Ahead Care And Support,H211,Adult Social Care Operations,Supplies and Services,"13,961.64",Oct-22
Slough Borough Council,2302,Look Ahead Care And Support,H211,Adult Social Care Operations,Supplies and Services,"13,961.64",Oct-22
Slough Borough Council,1195,Lynch Hill (Foundation Primary) School,E620,Children & Families,Supplies and Services,"22,114.66",Oct-22
Slough Borough Council,1771,Lynch Hill Academy,E620,Children & Families,Supplies and Services,"19,250.00",Oct-22
Slough Borough Council,3424,M D Homes,M15F,Adult Social Care Operations,Supplies and Services,"4,871.43",Oct-22
Slough Borough Council,807217,Macadamia Support Limited,M42E,Adult Social Care Operations,Supplies and Services,"7,308.00",Oct-22
Slough Borough Council,807217,Macadamia Support Limited,M42E,Adult Social Care Operations,Supplies and Services,"3,589.12",Oct-22
Slough Borough Council,807217,Macadamia Support Limited,M42E,Adult Social Care Operations,Supplies and Services,"6,713.00",Oct-22
Slough Borough Council,807217,Macadamia Support Limited,M42E,Adult Social Care Operations,Supplies and Services,"6,931.20",Oct-22
Slough Borough Council,807217,Macadamia Support Limited,M42E,Adult Social Care Operations,Supplies and Services,"3,973.20",Oct-22
Slough Borough Council,807217,Macadamia Support Limited,M44C,Adult Social Care Operations,Supplies and Services,"3,591.56",Oct-22
Slough Borough Council,807217,Macadamia Support Limited,M44D,Adult Social Care Operations,Supplies and Services,"5,523.00",Oct-22
Slough Borough Council,1874,Maccabee Pets Hotel,H253,Community,Supplies and Services,"1,860.00",Oct-22
Slough Borough Council,1874,Maccabee Pets Hotel,H253,Community,Supplies and Services,"3,000.00",Oct-22
Slough Borough Council,1874,Maccabee Pets Hotel,H253,Community,Supplies and Services,"1,800.00",Oct-22
Slough Borough Council,1941,Manor Green School,F449,Education & Inclusion,Supplies and Services,"2,051.25",Oct-22
Slough Borough Council,3768,Marish Academy Trust,F200,Education & Inclusion,Supplies and Services,"1,250.00",Oct-22
Slough Borough Council,529,Marish Primary School,E620,Children & Families,Supplies and Services,"87,341.25",Oct-22
Slough Borough Council,2087,Marlow Opportunity Playgroup,F550,Children & Families,Supplies and Services,"2,000.00",Oct-22
Slough Borough Council,2087,Marlow Opportunity Playgroup,F550,Children & Families,Supplies and Services,"2,000.00",Oct-22
Slough Borough Council,2087,Marlow Opportunity Playgroup,F550,Children & Families,Supplies and Services,"2,000.00",Oct-22
Slough Borough Council,1886,Matrix Scm,B023,Finance & Commercial,Agency Staff,"388,558.52",Oct-22
Slough Borough Council,1886,Matrix Scm,B023,Finance & Commercial,Agency Staff,"410,297.12",Oct-22
Slough Borough Council,1886,Matrix Scm,B023,Finance & Commercial,Agency Staff,"443,240.71",Oct-22
Slough Borough Council,1886,Matrix Scm,B023,Finance & Commercial,Agency Staff,"386,069.59",Oct-22
Slough Borough Council,808566,MGM TRAINING LIMITED,F146,Children & Families,Indirect Employee Expenses,600.00,Oct-22
Slough Borough Council,1496,Mighty Acorns Day Nursery Ltd,F909,Children & Families,Supplies and Services,"16,235.90",Oct-22
Slough Borough Council,805121,MMCG (2) Limited,A03E,Adult Social Care Operations,Supplies and Services,"-10,671.75",Oct-22
Slough Borough Council,805121,MMCG (2) Limited,A03E,Adult Social Care Operations,Supplies and Services,"4,415.61",Oct-22
Slough Borough Council,805121,MMCG (2) Limited,M15D,Adult Social Care Operations,Supplies and Services,"3,580.20",Oct-22
Slough Borough Council,805121,MMCG (2) Limited,M15F,Adult Social Care Operations,Supplies and Services,"2,834.73",Oct-22
Slough Borough Council,805121,MMCG (2) Limited,M15F,Adult Social Care Operations,Supplies and Services,"2,743.29",Oct-22
Slough Borough Council,805121,MMCG (2) Limited,M17C,Adult Social Care Operations,Supplies and Services,"3,580.20",Oct-22
Slough Borough Council,805121,MMCG (2) Limited,M17C,Adult Social Care Operations,Supplies and Services,"10,796.30",Oct-22
Slough Borough Council,805121,MMCG (2) Limited,M18C,Adult Social Care Operations,Supplies and Services,"3,580.20",Oct-22
Slough Borough Council,805121,MMCG (2) Limited,M18C,Adult Social Care Operations,Supplies and Services,"3,580.20",Oct-22
Slough Borough Council,805121,MMCG (2) Limited,M25C,Adult Social Care Operations,Supplies and Services,"3,580.20",Oct-22
Slough Borough Council,805121,MMCG (2) Limited,M27C,Adult Social Care Operations,Supplies and Services,"3,580.20",Oct-22
Slough Borough Council,805121,MMCG (2) Limited,M27C,Adult Social Care Operations,Supplies and Services,"3,580.20",Oct-22
Slough Borough Council,805121,MMCG (2) Limited,M27C,Adult Social Care Operations,Supplies and Services,"3,580.20",Oct-22
Slough Borough Council,805121,MMCG (2) Limited,M27C,Adult Social Care Operations,Supplies and Services,"3,580.20",Oct-22
Slough Borough Council,805121,MMCG (2) Limited,M27C,Adult Social Care Operations,Supplies and Services,"3,580.20",Oct-22
Slough Borough Council,805121,MMCG (2) Limited,M27C,Adult Social Care Operations,Supplies and Services,"3,460.86",Oct-22
Slough Borough Council,805121,MMCG (2) Limited,M28C,Adult Social Care Operations,Supplies and Services,"3,442.50",Oct-22
Slough Borough Council,805121,MMCG (2) Limited,M28C,Adult Social Care Operations,Supplies and Services,"3,699.54",Oct-22
Slough Borough Council,805121,MMCG (2) Limited,M28C,Adult Social Care Operations,Supplies and Services,"1,432.08",Oct-22
Slough Borough Council,805121,MMCG (2) Limited,M29C,Adult Social Care Operations,Supplies and Services,"4,938.35",Oct-22
Slough Borough Council,805121,MMCG (2) Limited,A06C,Adult Social Care Commissioning,Supplies and Services,"4,031.55",Oct-22
Slough Borough Council,805121,MMCG (2) Limited,A06C,Adult Social Care Commissioning,Supplies and Services,"-3,213.00",Oct-22
Slough Borough Council,2645,Modus Care Ltd,M26E,Adult Social Care Operations,Supplies and Services,"11,491.69",Oct-22
Slough Borough Council,804815,Molly Southall,C322,Community,Supplies and Services,624.00,Oct-22
Slough Borough Council,2100,Montem Accademy,B297,Finance & Commercial,Government Grants,"3,105.00",Oct-22
Slough Borough Council,1140,Montem Guesthouse,H205,Housing (People) Services,Supplies and Services,740.00,Oct-22
Slough Borough Council,1140,Montem Guesthouse,H205,Housing (People) Services,Supplies and Services,"1,500.00",Oct-22
Slough Borough Council,1140,Montem Guesthouse,H205,Housing (People) Services,Supplies and Services,"1,200.00",Oct-22
Slough Borough Council,1140,Montem Guesthouse,H205,Housing (People) Services,Supplies and Services,"1,350.00",Oct-22
Slough Borough Council,1140,Montem Guesthouse,H205,Housing (People) Services,Supplies and Services,"1,350.00",Oct-22
Slough Borough Council,1140,Montem Guesthouse,H205,Housing (People) Services,Supplies and Services,"1,500.00",Oct-22
Slough Borough Council,1140,Montem Guesthouse,H205,Housing (People) Services,Supplies and Services,846.00,Oct-22
Slough Borough Council,1140,Montem Guesthouse,H205,Housing (People) Services,Supplies and Services,"1,500.00",Oct-22
Slough Borough Council,1140,Montem Guesthouse,H205,Housing (People) Services,Supplies and Services,"1,350.00",Oct-22
Slough Borough Council,1140,Montem Guesthouse,H205,Housing (People) Services,Supplies and Services,"1,350.00",Oct-22
Slough Borough Council,1140,Montem Guesthouse,H205,Housing (People) Services,Supplies and Services,"1,410.00",Oct-22
Slough Borough Council,1140,Montem Guesthouse,H205,Housing (People) Services,Supplies and Services,"1,650.00",Oct-22
Slough Borough Council,1140,Montem Guesthouse,H205,Housing (People) Services,Supplies and Services,"1,410.00",Oct-22
Slough Borough Council,1140,Montem Guesthouse,H205,Housing (People) Services,Supplies and Services,"1,410.00",Oct-22
Slough Borough Council,1140,Montem Guesthouse,H205,Housing (People) Services,Supplies and Services,975.00,Oct-22
Slough Borough Council,1140,Montem Guesthouse,H205,Housing (People) Services,Supplies and Services,"1,650.00",Oct-22
Slough Borough Council,1140,Montem Guesthouse,H205,Housing (People) Services,Supplies and Services,"1,500.00",Oct-22
Slough Borough Council,1140,Montem Guesthouse,H205,Housing (People) Services,Supplies and Services,"1,500.00",Oct-22
Slough Borough Council,1140,Montem Guesthouse,H205,Housing (People) Services,Supplies and Services,"1,650.00",Oct-22
Slough Borough Council,1140,Montem Guesthouse,H205,Housing (People) Services,Supplies and Services,"1,350.00",Oct-22
Slough Borough Council,1140,Montem Guesthouse,H205,Housing (People) Services,Supplies and Services,"1,050.00",Oct-22
Slough Borough Council,1140,Montem Guesthouse,H205,Housing (People) Services,Supplies and Services,"1,350.00",Oct-22
Slough Borough Council,1140,Montem Guesthouse,H205,Housing (People) Services,Supplies and Services,"1,500.00",Oct-22
Slough Borough Council,1140,Montem Guesthouse,H205,Housing (People) Services,Supplies and Services,"1,650.00",Oct-22
Slough Borough Council,1140,Montem Guesthouse,H205,Housing (People) Services,Supplies and Services,"1,650.00",Oct-22
Slough Borough Council,1140,Montem Guesthouse,H205,Housing (People) Services,Supplies and Services,"1,800.00",Oct-22
Slough Borough Council,1140,Montem Guesthouse,H205,Housing (People) Services,Supplies and Services,"1,500.00",Oct-22
Slough Borough Council,1140,Montem Guesthouse,H205,Housing (People) Services,Supplies and Services,"1,500.00",Oct-22
Slough Borough Council,1140,Montem Guesthouse,H205,Housing (People) Services,Supplies and Services,"1,500.00",Oct-22
Slough Borough Council,1140,Montem Guesthouse,H205,Housing (People) Services,Supplies and Services,"1,500.00",Oct-22
Slough Borough Council,1140,Montem Guesthouse,H205,Housing (People) Services,Supplies and Services,"1,500.00",Oct-22
Slough Borough Council,1140,Montem Guesthouse,H205,Housing (People) Services,Supplies and Services,630.00,Oct-22
Slough Borough Council,1140,Montem Guesthouse,H205,Housing (People) Services,Supplies and Services,"1,650.00",Oct-22
Slough Borough Council,1140,Montem Guesthouse,H205,Housing (People) Services,Supplies and Services,"1,650.00",Oct-22
Slough Borough Council,1140,Montem Guesthouse,H205,Housing (People) Services,Supplies and Services,"1,650.00",Oct-22
Slough Borough Council,1140,Montem Guesthouse,H205,Housing (People) Services,Supplies and Services,"1,500.00",Oct-22
Slough Borough Council,1140,Montem Guesthouse,H205,Housing (People) Services,Supplies and Services,"1,350.00",Oct-22
Slough Borough Council,3302,Montem Primary School,E620,Children & Families,Supplies and Services,"25,731.67",Oct-22
Slough Borough Council,1632,Monterpoint Technologies,F210,Community,Supplies and Services,"25,500.00",Oct-22
Slough Borough Council,807432,MPD FM Limited,A07M,Mental Health Services,Agency Staff,"6,805.80",Oct-22
Slough Borough Council,807432,MPD FM Limited,H216,Housing (People) Services,Supplies and Services,"6,121.02",Oct-22
Slough Borough Council,807432,MPD FM Limited,H216,Housing (People) Services,Supplies and Services,"6,025.71",Oct-22
Slough Borough Council,806484,Mrs Parwinder Kaur Bhandal,H205,Housing (People) Services,Supplies and Services,"7,680.00",Oct-22
Slough Borough Council,806484,Mrs Parwinder Kaur Bhandal,H205,Housing (People) Services,Supplies and Services,"2,820.00",Oct-22
Slough Borough Council,804936,Ms. Marinela Caldarus,F382,Children & Families,Supplies and Services,"6,848.00",Oct-22
Slough Borough Council,806858,MUDDY BOOTS DAY NURSERY LTD,F909,Children & Families,Supplies and Services,"6,081.95",Oct-22
Slough Borough Council,808568,NAS - Autism Education Trust,F410,Children & Families,Supplies and Services,"20,235.00",Oct-22
Slough Borough Council,805369,NAS Services Limited,M42E,Adult Social Care Operations,Supplies and Services,"8,442.50",Oct-22
Slough Borough Council,808068,NEC Software Solutions UK Limited,D003,Place Management,Supplies and Services,"6,925.40",Oct-22
Slough Borough Council,803148,Network Security Systems Europe,B175,Business Services,Premises,794.78,Oct-22
Slough Borough Council,1949,Nhs Supply Chain,A01P,Public Health,Supplies and Services,804.96,Oct-22
Slough Borough Council,1864,Noahs Ark Environmental Services Ltd,H253,Community,Salaries and Wages,-614.40,Oct-22
Slough Borough Council,1864,Noahs Ark Environmental Services Ltd,H253,Community,Supplies and Services,"2,538.16",Oct-22
Slough Borough Council,1864,Noahs Ark Environmental Services Ltd,H253,Community,Supplies and Services,-744.80,Oct-22
Slough Borough Council,1864,Noahs Ark Environmental Services Ltd,H253,Community,Supplies and Services,"2,538.16",Oct-22
Slough Borough Council,803985,Normans Musical Instruments,F253,Children & Families,Supplies and Services,"2,190.00",Oct-22
Slough Borough Council,3717,Norwood Schools Limited,M26E,Adult Social Care Operations,Supplies and Services,"4,253.92",Oct-22
Slough Borough Council,3717,Norwood Schools Limited,M26E,Adult Social Care Operations,External Receipts,-641.20,Oct-22
Slough Borough Council,803238,Oasis Care and Training Agency,A07R,Adult Social Care Operations,Supplies and Services,730.58,Oct-22
Slough Borough Council,803238,Oasis Care and Training Agency,A07R,Adult Social Care Operations,Supplies and Services,"1,495.53",Oct-22
Slough Borough Council,803238,Oasis Care and Training Agency,M44C,Adult Social Care Operations,Supplies and Services,962.64,Oct-22
Slough Borough Council,803238,Oasis Care and Training Agency,M44C,Adult Social Care Operations,Supplies and Services,842.32,Oct-22
Slough Borough Council,803238,Oasis Care and Training Agency,M44C,Adult Social Care Operations,Supplies and Services,"1,443.96",Oct-22
Slough Borough Council,803238,Oasis Care and Training Agency,M44C,Adult Social Care Operations,Supplies and Services,842.32,Oct-22
Slough Borough Council,803238,Oasis Care and Training Agency,M44C,Adult Social Care Operations,Supplies and Services,962.64,Oct-22
Slough Borough Council,803238,Oasis Care and Training Agency,M44C,Adult Social Care Operations,Supplies and Services,"2,045.60",Oct-22
Slough Borough Council,803238,Oasis Care and Training Agency,M44C,Adult Social Care Operations,Supplies and Services,739.16,Oct-22
Slough Borough Council,803238,Oasis Care and Training Agency,M44C,Adult Social Care Operations,Supplies and Services,"1,082.96",Oct-22
Slough Borough Council,803238,Oasis Care and Training Agency,M44C,Adult Social Care Operations,Supplies and Services,"2,681.64",Oct-22
Slough Borough Council,803238,Oasis Care and Training Agency,M44C,Adult Social Care Operations,Supplies and Services,"2,484.80",Oct-22
Slough Borough Council,803238,Oasis Care and Training Agency,M44C,Adult Social Care Operations,Supplies and Services,"1,443.96",Oct-22
Slough Borough Council,803238,Oasis Care and Training Agency,M44C,Adult Social Care Operations,Supplies and Services,722.00,Oct-22
Slough Borough Council,803238,Oasis Care and Training Agency,M44C,Adult Social Care Operations,Supplies and Services,"1,151.72",Oct-22
Slough Borough Council,803238,Oasis Care and Training Agency,M44D,Adult Social Care Operations,Supplies and Services,670.40,Oct-22
Slough Borough Council,803238,Oasis Care and Training Agency,M44D,Adult Social Care Operations,Supplies and Services,"1,323.64",Oct-22
Slough Borough Council,803238,Oasis Care and Training Agency,M44D,Adult Social Care Operations,Supplies and Services,842.32,Oct-22
Slough Borough Council,803238,Oasis Care and Training Agency,M44D,Adult Social Care Operations,Supplies and Services,"2,165.96",Oct-22
Slough Borough Council,803238,Oasis Care and Training Agency,M44D,Adult Social Care Operations,Supplies and Services,"1,358.02",Oct-22
Slough Borough Council,803238,Oasis Care and Training Agency,M44D,Adult Social Care Operations,Supplies and Services,842.32,Oct-22
Slough Borough Council,803238,Oasis Care and Training Agency,M44D,Adult Social Care Operations,Supplies and Services,"1,340.84",Oct-22
Slough Borough Council,803238,Oasis Care and Training Agency,M44F,Adult Social Care Operations,Supplies and Services,"1,375.20",Oct-22
Slough Borough Council,803238,Oasis Care and Training Agency,M44F,Adult Social Care Operations,Supplies and Services,"4,331.88",Oct-22
Slough Borough Council,803238,Oasis Care and Training Agency,M85F,Adult Social Care Operations,Supplies and Services,550.08,Oct-22
Slough Borough Council,1767,Olive Tree Montessori Ltd,F909,Children & Families,Supplies and Services,"20,748.05",Oct-22
Slough Borough Council,3603,Olympia Transport Limited,F123,Education & Inclusion,Supplies and Services,"7,561.85",Oct-22
Slough Borough Council,804687,Optalis Limited,M42E,Adult Social Care Operations,Supplies and Services,"5,642.13",Oct-22
Slough Borough Council,804687,Optalis Limited,M42E,Adult Social Care Operations,Supplies and Services,"4,807.26",Oct-22
Slough Borough Council,803490,Optimum Specialised Home Limited,M26E,Adult Social Care Operations,Supplies and Services,"7,180.00",Oct-22
Slough Borough Council,1629,Opus Energy Limited,K526,Building Management,Premises,976.67,Oct-22
Slough Borough Council,805011,Osborne Property Services Limited,J607,Place Management,Premises,"155,105.13",Oct-22
Slough Borough Council,805011,Osborne Property Services Limited,J606,Place Management,Supplies and Services,"98,703.03",Oct-22
Slough Borough Council,805011,Osborne Property Services Limited,P409,Capital,Capital Charges,"22,061.79",Oct-22
Slough Borough Council,805011,Osborne Property Services Limited,P413,Capital,Capital Charges,"24,849.67",Oct-22
Slough Borough Council,805011,Osborne Property Services Limited,P415,Capital,Capital Charges,"2,501.44",Oct-22
Slough Borough Council,805011,Osborne Property Services Limited,P417,Capital,Capital Charges,"75,659.55",Oct-22
Slough Borough Council,805011,Osborne Property Services Limited,P419,Capital,Capital Charges,"7,754.36",Oct-22
Slough Borough Council,805011,Osborne Property Services Limited,P421,Capital,Capital Charges,"7,546.15",Oct-22
Slough Borough Council,805011,Osborne Property Services Limited,P422,Capital,Capital Charges,"51,708.30",Oct-22
Slough Borough Council,805011,Osborne Property Services Limited,P431,Capital,Capital Charges,"85,634.37",Oct-22
Slough Borough Council,805011,Osborne Property Services Limited,P547,Capital,Capital Charges,"46,521.03",Oct-22
Slough Borough Council,805011,Osborne Property Services Limited,J607,Place Management,Supplies and Services,"82,904.58",Oct-22
Slough Borough Council,805011,Osborne Property Services Limited,J607,Place Management,Supplies and Services,807.63,Oct-22
Slough Borough Council,3371,Our Lady Of Peace Catholic Primary and Nursery School,E340,Children & Families,Supplies and Services,"28,296.26",Oct-22
Slough Borough Council,294,Oxford Computer Consultants Ltd,A03D,Adult Social Care Operations,Supplies and Services,"4,040.33",Oct-22
Slough Borough Council,294,Oxford Computer Consultants Ltd,A03D,Adult Social Care Operations,Supplies and Services,"1,206.15",Oct-22
Slough Borough Council,294,Oxford Computer Consultants Ltd,A03D,Adult Social Care Operations,Supplies and Services,"7,869.00",Oct-22
Slough Borough Council,680,Oxford House Community Care,M44C,Adult Social Care Operations,Supplies and Services,"2,554.06",Oct-22
Slough Borough Council,680,Oxford House Community Care,M44C,Adult Social Care Operations,Supplies and Services,"1,075.37",Oct-22
Slough Borough Council,680,Oxford House Community Care,M44C,Adult Social Care Operations,Supplies and Services,"1,321.46",Oct-22
Slough Borough Council,680,Oxford House Community Care,M44C,Adult Social Care Operations,Supplies and Services,"2,432.64",Oct-22
Slough Borough Council,680,Oxford House Community Care,M44C,Adult Social Care Operations,Supplies and Services,"1,028.72",Oct-22
Slough Borough Council,680,Oxford House Community Care,M44C,Adult Social Care Operations,Supplies and Services,570.54,Oct-22
Slough Borough Council,680,Oxford House Community Care,M44C,Adult Social Care Operations,Supplies and Services,"1,085.35",Oct-22
Slough Borough Council,680,Oxford House Community Care,M44C,Adult Social Care Operations,Supplies and Services,"1,141.65",Oct-22
Slough Borough Council,680,Oxford House Community Care,M44C,Adult Social Care Operations,Supplies and Services,572.01,Oct-22
Slough Borough Council,680,Oxford House Community Care,M44C,Adult Social Care Operations,Supplies and Services,843.94,Oct-22
Slough Borough Council,680,Oxford House Community Care,M44C,Adult Social Care Operations,Supplies and Services,"1,214.11",Oct-22
Slough Borough Council,680,Oxford House Community Care,M44C,Adult Social Care Operations,Supplies and Services,908.75,Oct-22
Slough Borough Council,680,Oxford House Community Care,M44C,Adult Social Care Operations,Supplies and Services,"1,095.60",Oct-22
Slough Borough Council,680,Oxford House Community Care,M44C,Adult Social Care Operations,Supplies and Services,"1,156.06",Oct-22
Slough Borough Council,680,Oxford House Community Care,M44C,Adult Social Care Operations,Supplies and Services,"2,701.32",Oct-22
Slough Borough Council,680,Oxford House Community Care,M44C,Adult Social Care Operations,Supplies and Services,"1,245.20",Oct-22
Slough Borough Council,680,Oxford House Community Care,M44C,Adult Social Care Operations,Supplies and Services,"2,478.96",Oct-22
Slough Borough Council,680,Oxford House Community Care,M44C,Adult Social Care Operations,Supplies and Services,"1,347.87",Oct-22
Slough Borough Council,680,Oxford House Community Care,M44D,Adult Social Care Operations,Supplies and Services,738.62,Oct-22
Slough Borough Council,680,Oxford House Community Care,M44D,Adult Social Care Operations,Supplies and Services,"1,104.71",Oct-22
Slough Borough Council,680,Oxford House Community Care,M44D,Adult Social Care Operations,Supplies and Services,597.22,Oct-22
Slough Borough Council,680,Oxford House Community Care,M44D,Adult Social Care Operations,Supplies and Services,632.43,Oct-22
Slough Borough Council,680,Oxford House Community Care,M44D,Adult Social Care Operations,Supplies and Services,723.36,Oct-22
Slough Borough Council,680,Oxford House Community Care,M45C,Adult Social Care Operations,Supplies and Services,"2,185.93",Oct-22
Slough Borough Council,680,Oxford House Community Care,M47D,Adult Social Care Operations,Supplies and Services,633.31,Oct-22
Slough Borough Council,680,Oxford House Community Care,M48C,Adult Social Care Operations,Supplies and Services,918.12,Oct-22
Slough Borough Council,680,Oxford House Community Care,M48C,Adult Social Care Operations,Supplies and Services,667.96,Oct-22
Slough Borough Council,518,Oxford House Nursing Home,M15D,Adult Social Care Operations,Supplies and Services,"3,235.76",Oct-22
Slough Borough Council,518,Oxford House Nursing Home,M15D,Adult Social Care Operations,Supplies and Services,"3,235.76",Oct-22
Slough Borough Council,518,Oxford House Nursing Home,M18C,Adult Social Care Operations,Supplies and Services,"3,235.76",Oct-22
Slough Borough Council,518,Oxford House Nursing Home,M18C,Adult Social Care Operations,Supplies and Services,"3,235.76",Oct-22
Slough Borough Council,518,Oxford House Nursing Home,M28C,Adult Social Care Operations,Supplies and Services,"3,052.60",Oct-22
Slough Borough Council,807512,Panagiotis Pavlopoulos,C322,Community,Supplies and Services,572.00,Oct-22
Slough Borough Council,807442,Pantheon Care Ltd,M44F,Adult Social Care Operations,Supplies and Services,"1,700.00",Oct-22
Slough Borough Council,807442,Pantheon Care Ltd,M44F,Adult Social Care Operations,Supplies and Services,"1,700.00",Oct-22
Slough Borough Council,807442,Pantheon Care Ltd,M44F,Adult Social Care Operations,Supplies and Services,"1,700.00",Oct-22
Slough Borough Council,807442,Pantheon Care Ltd,M44F,Adult Social Care Operations,Supplies and Services,"1,600.00",Oct-22
Slough Borough Council,807442,Pantheon Care Ltd,M44F,Adult Social Care Operations,Supplies and Services,"1,600.00",Oct-22
Slough Borough Council,2520,Paradigm Housing Group Ltd,H205,Housing (People) Services,Premises,"12,253.19",Oct-22
Slough Borough Council,3271,Partnership In Care Ltd,M27F,Adult Social Care Operations,Supplies and Services,"1,192.90",Oct-22
Slough Borough Council,2509,Parvaaz Project,M44E,Adult Social Care Operations,Supplies and Services,678.60,Oct-22
Slough Borough Council,2509,Parvaaz Project,M44E,Adult Social Care Operations,Supplies and Services,678.60,Oct-22
Slough Borough Council,2509,Parvaaz Project,M44E,Adult Social Care Operations,Supplies and Services,678.60,Oct-22
Slough Borough Council,2509,Parvaaz Project,M44E,Adult Social Care Operations,Supplies and Services,678.60,Oct-22
Slough Borough Council,2509,Parvaaz Project,M44E,Adult Social Care Operations,Supplies and Services,678.60,Oct-22
Slough Borough Council,2509,Parvaaz Project,M50E,Adult Social Care Operations,Supplies and Services,800.40,Oct-22
Slough Borough Council,2509,Parvaaz Project,M50E,Adult Social Care Operations,Supplies and Services,800.40,Oct-22
Slough Borough Council,2509,Parvaaz Project,M50E,Adult Social Care Operations,Supplies and Services,800.40,Oct-22
Slough Borough Council,2509,Parvaaz Project,M50E,Adult Social Care Operations,Supplies and Services,800.40,Oct-22
Slough Borough Council,2509,Parvaaz Project,M50E,Adult Social Care Operations,Supplies and Services,800.40,Oct-22
Slough Borough Council,824,Penn Wood Primary and Nursery School,E450,Children & Families,Supplies and Services,"312,348.98",Oct-22
Slough Borough Council,808606,Pentwyn House Nursing Home,M18C,Adult Social Care Operations,Supplies and Services,"4,206.90",Oct-22
Slough Borough Council,808606,Pentwyn House Nursing Home,M18C,Adult Social Care Operations,Supplies and Services,"7,735.47",Oct-22
Slough Borough Council,808606,Pentwyn House Nursing Home,M18C,Adult Social Care Operations,Supplies and Services,"4,207.01",Oct-22
Slough Borough Council,807611,Peopletoo Ltd,A01D,Adult Social Care Operations,Supplies and Services,"34,795.00",Oct-22
Slough Borough Council,1504,Permanent Futures Limited,F410,Children & Families,Supplies and Services,"1,350.00",Oct-22
Slough Borough Council,1504,Permanent Futures Limited,F410,Children & Families,Supplies and Services,"1,350.00",Oct-22
Slough Borough Council,1504,Permanent Futures Limited,F410,Children & Families,Supplies and Services,"1,350.00",Oct-22
Slough Borough Council,1504,Permanent Futures Limited,F410,Children & Families,Supplies and Services,"1,350.00",Oct-22
Slough Borough Council,1504,Permanent Futures Limited,F410,Children & Families,Supplies and Services,"1,350.00",Oct-22
Slough Borough Council,1504,Permanent Futures Limited,F640,Children & Families,Supplies and Services,"1,500.00",Oct-22
Slough Borough Council,1504,Permanent Futures Limited,F640,Children & Families,Supplies and Services,"1,500.00",Oct-22
Slough Borough Council,1504,Permanent Futures Limited,F640,Children & Families,Supplies and Services,"1,500.00",Oct-22
Slough Borough Council,1504,Permanent Futures Limited,F640,Children & Families,Supplies and Services,"1,500.00",Oct-22
Slough Borough Council,803786,Phillipa Holliday,C322,Community,Supplies and Services,"1,617.00",Oct-22
Slough Borough Council,803786,Phillipa Holliday,C322,Community,Supplies and Services,"1,872.75",Oct-22
Slough Borough Council,807727,Phoenix Infant Academy c/o Thames Learning Trust,E620,Children & Families,Supplies and Services,"10,791.66",Oct-22
Slough Borough Council,807727,Phoenix Infant Academy c/o Thames Learning Trust,B297,Finance & Commercial,Government Grants,"1,035.00",Oct-22
Slough Borough Council,3359,Pippins School,E370,Children & Families,Supplies and Services,"22,046.43",Oct-22
Slough Borough Council,904,Pitney Bowes Finance Plc,K077,Business Services,Supplies and Services,"2,914.59",Oct-22
Slough Borough Council,904,Pitney Bowes Finance Plc,K077,Business Services,Supplies and Services,"5,011.33",Oct-22
Slough Borough Council,904,Pitney Bowes Finance Plc,K077,Business Services,Supplies and Services,"10,179.56",Oct-22
Slough Borough Council,807120,PJ Care Limited,M15D,Adult Social Care Operations,Supplies and Services,"9,831.65",Oct-22
Slough Borough Council,3644,Poppy Cottage,M42E,Adult Social Care Operations,Supplies and Services,"6,159.00",Oct-22
Slough Borough Council,3644,Poppy Cottage,M42E,Adult Social Care Operations,Supplies and Services,"6,159.00",Oct-22
Slough Borough Council,2537,Pre School Stars,F909,Children & Families,Supplies and Services,"6,682.55",Oct-22
Slough Borough Council,808538,Premier Education,F382,Children & Families,Supplies and Services,"10,380.00",Oct-22
Slough Borough Council,805398,PRIORITEYES LTD,A06E,Adult Social Care Operations,Supplies and Services,"5,340.00",Oct-22
Slough Borough Council,805398,PRIORITEYES LTD,A06E,Adult Social Care Operations,Supplies and Services,"5,148.00",Oct-22
Slough Borough Council,805398,PRIORITEYES LTD,A06E,Adult Social Care Operations,Supplies and Services,"4,152.00",Oct-22
Slough Borough Council,849,Priory Primary School,E380,Children & Families,Supplies and Services,"467,986.15",Oct-22
Slough Borough Council,808180,Proact,B342,Digital and Strategic IT,Capital Charges,"-4,400.00",Oct-22
Slough Borough Council,808180,Proact,B342,Digital and Strategic IT,Capital Charges,"4,400.00",Oct-22
Slough Borough Council,808180,Proact,P084,Capital,Capital Charges,"2,200.00",Oct-22
Slough Borough Council,1138,Qed Slough Ltd,F868,Children & Families,Supplies and Services,"600,910.67",Oct-22
Slough Borough Council,1138,Qed Slough Ltd,F868,Children & Families,Supplies and Services,"4,332.48",Oct-22
Slough Borough Council,805746,Qfree (Bristol) UK Ltd,D500,Place Strategy & Infrastructure,Premises,"1,592.00",Oct-22
Slough Borough Council,808360,Queensmead-Witherslack,F462,Children & Families,Supplies and Services,"26,075.00",Oct-22
Slough Borough Council,808200,Quest Recovery Services Ltd,A07R,Adult Social Care Operations,Supplies and Services,"1,904.00",Oct-22
Slough Borough Council,808200,Quest Recovery Services Ltd,A07R,Adult Social Care Operations,Supplies and Services,912.00,Oct-22
Slough Borough Council,808200,Quest Recovery Services Ltd,A07R,Adult Social Care Operations,Supplies and Services,712.00,Oct-22
Slough Borough Council,808200,Quest Recovery Services Ltd,A07R,Adult Social Care Operations,Supplies and Services,"1,300.00",Oct-22
Slough Borough Council,808200,Quest Recovery Services Ltd,A07R,Adult Social Care Operations,Supplies and Services,"2,160.00",Oct-22
Slough Borough Council,808200,Quest Recovery Services Ltd,M44C,Adult Social Care Operations,Supplies and Services,600.00,Oct-22
Slough Borough Council,808200,Quest Recovery Services Ltd,M44C,Adult Social Care Operations,Supplies and Services,"1,008.00",Oct-22
Slough Borough Council,808200,Quest Recovery Services Ltd,M44C,Adult Social Care Operations,Supplies and Services,"1,008.00",Oct-22
Slough Borough Council,808200,Quest Recovery Services Ltd,M44C,Adult Social Care Operations,Supplies and Services,"1,008.00",Oct-22
Slough Borough Council,808200,Quest Recovery Services Ltd,M44C,Adult Social Care Operations,Supplies and Services,"1,008.00",Oct-22
Slough Borough Council,808200,Quest Recovery Services Ltd,M44D,Adult Social Care Operations,Supplies and Services,"2,988.00",Oct-22
Slough Borough Council,808200,Quest Recovery Services Ltd,M44D,Adult Social Care Operations,Supplies and Services,"1,268.00",Oct-22
Slough Borough Council,808200,Quest Recovery Services Ltd,M44F,Adult Social Care Operations,Supplies and Services,"2,045.00",Oct-22
Slough Borough Council,808200,Quest Recovery Services Ltd,M48C,Adult Social Care Operations,Supplies and Services,"1,008.00",Oct-22
Slough Borough Council,808200,Quest Recovery Services Ltd,M48C,Adult Social Care Operations,Supplies and Services,"2,016.00",Oct-22
Slough Borough Council,2685,R.E.A.C.H,M26E,Adult Social Care Operations,Supplies and Services,"7,143.66",Oct-22
Slough Borough Council,2685,R.E.A.C.H,M26E,Adult Social Care Operations,Supplies and Services,"6,191.08",Oct-22
Slough Borough Council,2685,R.E.A.C.H,M26E,Adult Social Care Operations,Supplies and Services,"10,591.40",Oct-22
Slough Borough Council,2685,R.E.A.C.H,M26E,Adult Social Care Operations,Supplies and Services,"5,556.80",Oct-22
Slough Borough Council,2685,R.E.A.C.H,M26E,Adult Social Care Operations,Supplies and Services,"7,667.52",Oct-22
Slough Borough Council,2685,R.E.A.C.H,M26E,Adult Social Care Operations,External Receipts,-570.54,Oct-22
Slough Borough Council,2685,R.E.A.C.H,M26E,Adult Social Care Operations,External Receipts,-641.20,Oct-22
Slough Borough Council,805444,Reading Transport Ltd,D512,Place Strategy & Infrastructure,Supplies and Services,"6,335.74",Oct-22
Slough Borough Council,806766,Red Brick Care Ltd,A07R,Adult Social Care Operations,Supplies and Services,"1,377.00",Oct-22
Slough Borough Council,806766,Red Brick Care Ltd,A07R,Adult Social Care Operations,Supplies and Services,867.00,Oct-22
Slough Borough Council,806766,Red Brick Care Ltd,A07R,Adult Social Care Operations,Supplies and Services,"1,075.25",Oct-22
Slough Borough Council,806766,Red Brick Care Ltd,M44C,Adult Social Care Operations,Supplies and Services,"1,351.00",Oct-22
Slough Borough Council,806766,Red Brick Care Ltd,M44C,Adult Social Care Operations,Supplies and Services,"2,142.00",Oct-22
Slough Borough Council,806766,Red Brick Care Ltd,M45C,Adult Social Care Operations,Supplies and Services,"3,094.00",Oct-22
Slough Borough Council,806766,Red Brick Care Ltd,M45C,Adult Social Care Operations,Supplies and Services,"1,300.50",Oct-22
Slough Borough Council,806766,Red Brick Care Ltd,M45C,Adult Social Care Operations,Supplies and Services,"1,912.00",Oct-22
Slough Borough Council,804359,Redacted,F123,Education & Inclusion,Supplies and Services,"1,016.64",Oct-22
Slough Borough Council,807600,Redacted,F123,Education & Inclusion,Supplies and Services,673.20,Oct-22
Slough Borough Council,808246,Redacted,F123,Education & Inclusion,Supplies and Services,800.00,Oct-22
Slough Borough Council,807635,Redacted,F123,Education & Inclusion,Supplies and Services,621.00,Oct-22
Slough Borough Council,806541,Redacted,F909,Children & Families,Supplies and Services,"20,229.02",Oct-22
Slough Borough Council,3903,Redacted,F909,Children & Families,Supplies and Services,"1,377.04",Oct-22
Slough Borough Council,805403,Redacted,F909,Children & Families,Supplies and Services,593.25,Oct-22
Slough Borough Council,3173,Redacted,F909,Children & Families,Supplies and Services,605.36,Oct-22
Slough Borough Council,808110,Redacted,F909,Children & Families,Supplies and Services,593.25,Oct-22
Slough Borough Council,3934,Redacted,F909,Children & Families,Supplies and Services,605.36,Oct-22
Slough Borough Council,806720,Redacted,F909,Children & Families,Supplies and Services,593.25,Oct-22
Slough Borough Council,3209,Redacted,F909,Children & Families,Supplies and Services,593.25,Oct-22
Slough Borough Council,804707,Redacted,F909,Children & Families,Supplies and Services,605.36,Oct-22
Slough Borough Council,804705,Redacted,F909,Children & Families,Supplies and Services,"1,810.20",Oct-22
Slough Borough Council,803824,Redacted,F909,Children & Families,Supplies and Services,"1,969.42",Oct-22
Slough Borough Council,807475,Redacted,F909,Children & Families,Supplies and Services,"4,983.50",Oct-22
Slough Borough Council,3251,Redacted,F909,Children & Families,Supplies and Services,536.75,Oct-22
Slough Borough Council,803853,Redacted,F909,Children & Families,Supplies and Services,839.43,Oct-22
Slough Borough Council,807647,Redacted,F909,Children & Families,Supplies and Services,871.71,Oct-22
Slough Borough Council,807836,Redacted,F909,Children & Families,Supplies and Services,"1,513.57",Oct-22
Slough Borough Council,803874,Redacted,F909,Children & Families,Supplies and Services,621.50,Oct-22
Slough Borough Council,803819,Redacted,F909,Children & Families,Supplies and Services,656.11,Oct-22
Slough Borough Council,805806,Redacted,F909,Children & Families,Supplies and Services,593.25,Oct-22
Slough Borough Council,804597,Redline Buses Ltd,D512,Place Strategy & Infrastructure,Supplies and Services,"3,407.45",Oct-22
Slough Borough Council,804597,Redline Buses Ltd,D512,Place Strategy & Infrastructure,Supplies and Services,"4,002.55",Oct-22
Slough Borough Council,804597,Redline Buses Ltd,D512,Place Strategy & Infrastructure,Supplies and Services,"3,722.13",Oct-22
Slough Borough Council,806854,Reed Specialist Recruitment,B033,People,Salaries and Wages,778.15,Oct-22
Slough Borough Council,806854,Reed Specialist Recruitment,B033,People,Salaries and Wages,783.38,Oct-22
Slough Borough Council,2229,Reliance High-Tech Limited (T/A Reliance Project),A01D,Adult Social Care Operations,Supplies and Services,"1,351.26",Oct-22
Slough Borough Council,808302,Reliant Care Limited,M44C,Adult Social Care Operations,Supplies and Services,"3,023.91",Oct-22
Slough Borough Council,807562,Renovo Farnborough Limited,M25D,Adult Social Care Operations,Supplies and Services,"8,714.76",Oct-22
Slough Borough Council,1893,Ricardo-Aea Limited,D308,Place Operations,Supplies and Services,"7,025.22",Oct-22
Slough Borough Council,2529,Richmond Fellowship,M27F,Adult Social Care Operations,Supplies and Services,"1,920.00",Oct-22
Slough Borough Council,2529,Richmond Fellowship,M27F,Adult Social Care Operations,Supplies and Services,"1,920.00",Oct-22
Slough Borough Council,2529,Richmond Fellowship,M27F,Adult Social Care Operations,Supplies and Services,"1,920.00",Oct-22
Slough Borough Council,2529,Richmond Fellowship,M27F,Adult Social Care Operations,Supplies and Services,"1,920.00",Oct-22
Slough Borough Council,2529,Richmond Fellowship,M27F,Adult Social Care Operations,Supplies and Services,"1,920.00",Oct-22
Slough Borough Council,2529,Richmond Fellowship,M27F,Adult Social Care Operations,Supplies and Services,"1,920.00",Oct-22
Slough Borough Council,1553,Robyn Baker,C322,Community,Supplies and Services,"1,089.00",Oct-22
Slough Borough Council,806930,Roselight Healthcare Service Limited,M42F,Adult Social Care Operations,Supplies and Services,"3,340.00",Oct-22
Slough Borough Council,806930,Roselight Healthcare Service Limited,M42F,Adult Social Care Operations,Supplies and Services,"2,360.00",Oct-22
Slough Borough Council,806930,Roselight Healthcare Service Limited,M44F,Adult Social Care Operations,Supplies and Services,"1,765.16",Oct-22
Slough Borough Council,806930,Roselight Healthcare Service Limited,M44F,Adult Social Care Operations,Supplies and Services,"2,600.00",Oct-22
Slough Borough Council,806930,Roselight Healthcare Service Limited,M44F,Adult Social Care Operations,Supplies and Services,"1,765.16",Oct-22
Slough Borough Council,806930,Roselight Healthcare Service Limited,M44F,Adult Social Care Operations,Supplies and Services,"1,722.00",Oct-22
Slough Borough Council,806930,Roselight Healthcare Service Limited,M44F,Adult Social Care Operations,Supplies and Services,"1,930.00",Oct-22
Slough Borough Council,806930,Roselight Healthcare Service Limited,M44F,Adult Social Care Operations,Supplies and Services,"1,670.00",Oct-22
Slough Borough Council,806930,Roselight Healthcare Service Limited,M44F,Adult Social Care Operations,Supplies and Services,"2,600.00",Oct-22
Slough Borough Council,806930,Roselight Healthcare Service Limited,M44F,Adult Social Care Operations,Supplies and Services,"1,506.00",Oct-22
Slough Borough Council,696,Royal Borough Of Windsor And Maidenhead,M44E,Adult Social Care Operations,Supplies and Services,"1,104.32",Oct-22
Slough Borough Council,696,Royal Borough Of Windsor And Maidenhead,D218,Place Regulation,Supplies and Services,500.00,Oct-22
Slough Borough Council,2168,RSM UK Risk Assurance Services LLP,B146,Finance & Commercial,Supplies and Services,"15,225.00",Oct-22
Slough Borough Council,842,Ryvers Primary School,E620,Children & Families,Supplies and Services,"20,555.00",Oct-22
Slough Borough Council,806398,Saba Park UK Services Limited,D152,Place Strategy & Infrastructure,Premises,"2,921.50",Oct-22
Slough Borough Council,806398,Saba Park UK Services Limited,D123,Place Strategy & Infrastructure,Premises,"13,104.23",Oct-22
Slough Borough Council,806398,Saba Park UK Services Limited,D122,Place Strategy & Infrastructure,Premises,"14,512.21",Oct-22
Slough Borough Council,806398,Saba Park UK Services Limited,D123,Place Strategy & Infrastructure,Supplies and Services,"2,853.00",Oct-22
Slough Borough Council,806398,Saba Park UK Services Limited,D123,Place Strategy & Infrastructure,Supplies and Services,"103,530.65",Oct-22
Slough Borough Council,806398,Saba Park UK Services Limited,D122,Place Strategy & Infrastructure,Supplies and Services,"11,503.41",Oct-22
Slough Borough Council,806398,Saba Park UK Services Limited,D123,Place Strategy & Infrastructure,Supplies and Services,"1,792.73",Oct-22
Slough Borough Council,806398,Saba Park UK Services Limited,D010,Place Strategy & Infrastructure,Supplies and Services,"19,404.88",Oct-22
Slough Borough Council,806398,Saba Park UK Services Limited,D010,Place Strategy & Infrastructure,Supplies and Services,"2,640.00",Oct-22
Slough Borough Council,805875,Salutem Shared Services,M25D,Adult Social Care Operations,Supplies and Services,"6,187.76",Oct-22
Slough Borough Council,805875,Salutem Shared Services,M26E,Adult Social Care Operations,Supplies and Services,"3,883.05",Oct-22
Slough Borough Council,805875,Salutem Shared Services,M26E,Adult Social Care Operations,Supplies and Services,628.03,Oct-22
Slough Borough Council,805875,Salutem Shared Services,M26E,Adult Social Care Operations,External Receipts,-628.02,Oct-22
Slough Borough Council,804350,Sandra�s Childcare,F909,Children & Families,Supplies and Services,"1,271.25",Oct-22
Slough Borough Council,1580,Savills (UK) Ltd,J606,Place Management,Supplies and Services,"10,450.00",Oct-22
Slough Borough Council,1580,Savills (UK) Ltd,J606,Place Management,Supplies and Services,"12,750.00",Oct-22
Slough Borough Council,1580,Savills (UK) Ltd,J606,Place Management,Supplies and Services,"2,900.00",Oct-22
Slough Borough Council,3169,Seeability,M26E,Adult Social Care Operations,Supplies and Services,"11,010.00",Oct-22
Slough Borough Council,2585,Seymour House,M26E,Adult Social Care Operations,Supplies and Services,"6,360.66",Oct-22
Slough Borough Council,2585,Seymour House,M26E,Adult Social Care Operations,Supplies and Services,"6,105.26",Oct-22
Slough Borough Council,2585,Seymour House,M26E,Adult Social Care Operations,Supplies and Services,"6,360.26",Oct-22
Slough Borough Council,2585,Seymour House,M26E,Adult Social Care Operations,Supplies and Services,"6,572.69",Oct-22
Slough Borough Council,2585,Seymour House,M26E,Adult Social Care Operations,Supplies and Services,"6,308.77",Oct-22
Slough Borough Council,2585,Seymour House,M26E,Adult Social Care Operations,Supplies and Services,"6,572.27",Oct-22
Slough Borough Council,2585,Seymour House,M26E,Adult Social Care Operations,External Receipts,-505.11,Oct-22
Slough Borough Council,2585,Seymour House,M26E,Adult Social Care Operations,External Receipts,-521.95,Oct-22
Slough Borough Council,805203,Shorts Agricultural Services Ltd,D342,Place Operations,Supplies and Services,"8,847.53",Oct-22
Slough Borough Council,805203,Shorts Agricultural Services Ltd,D342,Place Operations,Supplies and Services,"13,251.87",Oct-22
Slough Borough Council,805807,Siemens Mobility Limited,P209,Capital,Capital Charges,"90,959.00",Oct-22
Slough Borough Council,3333,Slk Services,F123,Education & Inclusion,Supplies and Services,"5,168.00",Oct-22
Slough Borough Council,1459,Slough And Eton C E School,E610,Children & Families,Supplies and Services,"31,215.89",Oct-22
Slough Borough Council,807834,Slough Children First,M99C,Children & Families,Supplies and Services,"2,619,512.80",Oct-22
Slough Borough Council,276,Slough Community Transport & Shopmobility,F123,Education & Inclusion,Supplies and Services,"25,851.26",Oct-22
Slough Borough Council,1913,Slough Crossroads Caring For Carers,M44C,Adult Social Care Operations,Supplies and Services,744.00,Oct-22
Slough Borough Council,1913,Slough Crossroads Caring For Carers,M44C,Adult Social Care Operations,Supplies and Services,"1,120.00",Oct-22
Slough Borough Council,1913,Slough Crossroads Caring For Carers,M44D,Adult Social Care Operations,Supplies and Services,528.00,Oct-22
Slough Borough Council,1913,Slough Crossroads Caring For Carers,M44E,Adult Social Care Operations,Supplies and Services,800.00,Oct-22
Slough Borough Council,1913,Slough Crossroads Caring For Carers,M44E,Adult Social Care Operations,Supplies and Services,"1,020.00",Oct-22
Slough Borough Council,1119,Slough Cvs,A02C,Adult Social Care Commissioning,Supplies and Services,"118,312.75",Oct-22
Slough Borough Council,3503,Slough Day Nursery,F909,Children & Families,Supplies and Services,"3,025.95",Oct-22
Slough Borough Council,806733,Smart Move (Estate Agents UK) LTD,H205,Housing (People) Services,Supplies and Services,"1,650.00",Oct-22
Slough Borough Council,382,Softcat Plc,B282,Digital and Strategic IT,Supplies and Services,"52,113.15",Oct-22
Slough Borough Council,114,Solutions 4 Health Ltd,A03C,People Strategy & Commissioning,Supplies and Services,"29,250.00",Oct-22
Slough Borough Council,114,Solutions 4 Health Ltd,A01P,Public Health,Supplies and Services,"-8,166.67",Oct-22
Slough Borough Council,114,Solutions 4 Health Ltd,A01P,Public Health,Supplies and Services,"-8,166.67",Oct-22
Slough Borough Council,114,Solutions 4 Health Ltd,A01P,Public Health,Supplies and Services,"51,833.33",Oct-22
Slough Borough Council,808407,SOS Electricals & Services Ltd,P093,Capital,Capital Charges,"9,159.38",Oct-22
Slough Borough Council,808407,SOS Electricals & Services Ltd,P093,Capital,Capital Charges,"10,340.16",Oct-22
Slough Borough Council,808401,SSE Energy Solution,K526,Building Management,Premises,"26,120.20",Oct-22
Slough Borough Council,808401,SSE Energy Solution,K526,Building Management,Premises,"4,462.77",Oct-22
Slough Borough Council,808401,SSE Energy Solution,K526,Building Management,Premises,"84,155.95",Oct-22
Slough Borough Council,808401,SSE Energy Solution,K526,Building Management,Premises,643.12,Oct-22
Slough Borough Council,808401,SSE Energy Solution,K526,Building Management,Premises,"12,068.58",Oct-22
Slough Borough Council,808401,SSE Energy Solution,K526,Building Management,Premises,"4,604.18",Oct-22
Slough Borough Council,808401,SSE Energy Solution,K526,Building Management,Premises,"89,393.91",Oct-22
Slough Borough Council,808401,SSE Energy Solution,K526,Building Management,Premises,568.79,Oct-22
Slough Borough Council,808401,SSE Energy Solution,K526,Building Management,Premises,"1,001.11",Oct-22
Slough Borough Council,803165,St Anthony�s Catholic Primary School & Nursery,E620,Children & Families,Supplies and Services,"27,502.65",Oct-22
Slough Borough Council,2918,St Bernard�S Rc Preparatory School,F909,Children & Families,Supplies and Services,"14,635.90",Oct-22
Slough Borough Council,3383,St Bernards Catholic Grammar School,E550,Children & Families,Supplies and Services,"520,565.71",Oct-22
Slough Borough Council,1116,St Edwards Royal Free Ecumenical Middle School,F552,Children & Families,Supplies and Services,"18,500.00",Oct-22
Slough Borough Council,3547,St Ethelberts School,E620,Children & Families,Supplies and Services,"10,901.79",Oct-22
Slough Borough Council,1378,St Josephs Catholic High School,E610,Children & Families,Supplies and Services,"17,375.00",Oct-22
Slough Borough Council,806584,St Mattews Ltd,M15F,Adult Social Care Operations,Supplies and Services,"4,096.43",Oct-22
Slough Borough Council,807546,St Nicolas� CE Combined School,F552,Children & Families,Supplies and Services,"8,500.00",Oct-22
Slough Borough Council,807546,St Nicolas� CE Combined School,F552,Children & Families,Supplies and Services,"7,500.00",Oct-22
Slough Borough Council,808142,Step Together Ltd,M28E,Adult Social Care Operations,Supplies and Services,640.00,Oct-22
Slough Borough Council,808142,Step Together Ltd,M28E,Adult Social Care Operations,Supplies and Services,545.99,Oct-22
Slough Borough Council,805181,Street Furnishings Ltd,D880,Place Operations,Supplies and Services,"2,490.00",Oct-22
Slough Borough Council,803036,Sundry sypplier do not use,H205,Housing (People) Services,Supplies and Services,"14,575.00",Oct-22
Slough Borough Council,803036,Sundry sypplier do not use,H205,Housing (People) Services,Supplies and Services,"1,500.00",Oct-22
Slough Borough Council,803036,Sundry sypplier do not use,H205,Housing (People) Services,Supplies and Services,"8,940.00",Oct-22
Slough Borough Council,803036,Sundry sypplier do not use,H205,Housing (People) Services,Supplies and Services,"37,015.00",Oct-22
Slough Borough Council,803036,Sundry sypplier do not use,H205,Housing (People) Services,Supplies and Services,"1,705.00",Oct-22
Slough Borough Council,803036,Sundry sypplier do not use,P405,Capital,Capital Charges,"18,401.93",Oct-22
Slough Borough Council,803036,Sundry sypplier do not use,J606,Place Management,Supplies and Services,"6,250.00",Oct-22
Slough Borough Council,803036,Sundry sypplier do not use,H218,Community,Supplies and Services,"8,979.36",Oct-22
Slough Borough Council,803036,Sundry sypplier do not use,H218,Community,Supplies and Services,"5,000.00",Oct-22
Slough Borough Council,803036,Sundry sypplier do not use,H218,Community,Supplies and Services,"1,595.62",Oct-22
Slough Borough Council,807889,Sunrise Transport Ltd,F123,Education & Inclusion,Supplies and Services,"1,440.00",Oct-22
Slough Borough Council,807889,Sunrise Transport Ltd,F123,Education & Inclusion,Supplies and Services,"4,795.00",Oct-22
Slough Borough Council,808499,Super Star Sport,F382,Children & Families,Supplies and Services,"16,491.26",Oct-22
Slough Borough Council,293,Surecare Slough,A07R,Adult Social Care Operations,Supplies and Services,"1,652.38",Oct-22
Slough Borough Council,293,Surecare Slough,A07R,Adult Social Care Operations,Supplies and Services,"1,786.22",Oct-22
Slough Borough Council,293,Surecare Slough,A07R,Adult Social Care Operations,Supplies and Services,802.20,Oct-22
Slough Borough Council,293,Surecare Slough,A07R,Adult Social Care Operations,Supplies and Services,"2,406.60",Oct-22
Slough Borough Council,293,Surecare Slough,A07R,Adult Social Care Operations,Supplies and Services,"2,406.60",Oct-22
Slough Borough Council,293,Surecare Slough,A07R,Adult Social Care Operations,Supplies and Services,"1,461.15",Oct-22
Slough Borough Council,293,Surecare Slough,A07R,Adult Social Care Operations,Supplies and Services,"2,674.00",Oct-22
Slough Borough Council,293,Surecare Slough,M41D,Adult Social Care Operations,Supplies and Services,"2,330.20",Oct-22
Slough Borough Council,293,Surecare Slough,M44C,Adult Social Care Operations,Supplies and Services,783.10,Oct-22
Slough Borough Council,293,Surecare Slough,M44C,Adult Social Care Operations,Supplies and Services,"2,406.60",Oct-22
Slough Borough Council,293,Surecare Slough,M44C,Adult Social Care Operations,Supplies and Services,"2,674.00",Oct-22
Slough Borough Council,293,Surecare Slough,M44C,Adult Social Care Operations,Supplies and Services,802.20,Oct-22
Slough Borough Council,293,Surecare Slough,M44C,Adult Social Care Operations,Supplies and Services,"2,406.60",Oct-22
Slough Borough Council,293,Surecare Slough,M44C,Adult Social Care Operations,Supplies and Services,935.90,Oct-22
Slough Borough Council,293,Surecare Slough,M44C,Adult Social Care Operations,Supplies and Services,"2,942.18",Oct-22
Slough Borough Council,293,Surecare Slough,M44C,Adult Social Care Operations,Supplies and Services,802.20,Oct-22
Slough Borough Council,293,Surecare Slough,M44C,Adult Social Care Operations,Supplies and Services,"1,203.30",Oct-22
Slough Borough Council,293,Surecare Slough,M44C,Adult Social Care Operations,Supplies and Services,"2,406.60",Oct-22
Slough Borough Council,293,Surecare Slough,M44C,Adult Social Care Operations,Supplies and Services,"2,941.40",Oct-22
Slough Borough Council,293,Surecare Slough,M44C,Adult Social Care Operations,Supplies and Services,"1,337.00",Oct-22
Slough Borough Council,293,Surecare Slough,M44C,Adult Social Care Operations,Supplies and Services,"2,502.10",Oct-22
Slough Borough Council,293,Surecare Slough,M44C,Adult Social Care Operations,Supplies and Services,534.80,Oct-22
Slough Borough Council,293,Surecare Slough,M44C,Adult Social Care Operations,Supplies and Services,"2,406.60",Oct-22
Slough Borough Council,293,Surecare Slough,M44C,Adult Social Care Operations,Supplies and Services,"-6,803.70",Oct-22
Slough Borough Council,293,Surecare Slough,M44C,Adult Social Care Operations,Supplies and Services,"2,522.76",Oct-22
Slough Borough Council,293,Surecare Slough,M44C,Adult Social Care Operations,Supplies and Services,-687.41,Oct-22
Slough Borough Council,293,Surecare Slough,M44C,Adult Social Care Operations,Supplies and Services,"1,337.00",Oct-22
Slough Borough Council,293,Surecare Slough,M44C,Adult Social Care Operations,Supplies and Services,"1,409.90",Oct-22
Slough Borough Council,293,Surecare Slough,M44C,Adult Social Care Operations,Supplies and Services,532.26,Oct-22
Slough Borough Council,293,Surecare Slough,M44C,Adult Social Care Operations,Supplies and Services,"2,664.45",Oct-22
Slough Borough Council,293,Surecare Slough,M44C,Adult Social Care Operations,Supplies and Services,"1,231.46",Oct-22
Slough Borough Council,293,Surecare Slough,M44C,Adult Social Care Operations,Supplies and Services,916.94,Oct-22
Slough Borough Council,293,Surecare Slough,M44C,Adult Social Care Operations,Supplies and Services,"1,040.06",Oct-22
Slough Borough Council,293,Surecare Slough,M44C,Adult Social Care Operations,Supplies and Services,"1,238.14",Oct-22
Slough Borough Council,293,Surecare Slough,M44C,Adult Social Care Operations,Supplies and Services,"1,260.28",Oct-22
Slough Borough Council,293,Surecare Slough,M44C,Adult Social Care Operations,Supplies and Services,"2,406.60",Oct-22
Slough Borough Council,293,Surecare Slough,M44C,Adult Social Care Operations,Supplies and Services,"1,197.69",Oct-22
Slough Borough Council,293,Surecare Slough,M44C,Adult Social Care Operations,Supplies and Services,"2,475.96",Oct-22
Slough Borough Council,293,Surecare Slough,M44C,Adult Social Care Operations,Supplies and Services,"2,406.60",Oct-22
Slough Borough Council,293,Surecare Slough,M44C,Adult Social Care Operations,Supplies and Services,802.48,Oct-22
Slough Borough Council,293,Surecare Slough,M44C,Adult Social Care Operations,Supplies and Services,936.04,Oct-22
Slough Borough Council,293,Surecare Slough,M44D,Adult Social Care Operations,Supplies and Services,"2,406.60",Oct-22
Slough Borough Council,293,Surecare Slough,M44D,Adult Social Care Operations,Supplies and Services,"1,337.00",Oct-22
Slough Borough Council,293,Surecare Slough,M44D,Adult Social Care Operations,Supplies and Services,"2,406.60",Oct-22
Slough Borough Council,293,Surecare Slough,M44D,Adult Social Care Operations,Supplies and Services,"2,406.60",Oct-22
Slough Borough Council,293,Surecare Slough,M44D,Adult Social Care Operations,Supplies and Services,897.49,Oct-22
Slough Borough Council,293,Surecare Slough,M44D,Adult Social Care Operations,Supplies and Services,"1,193.89",Oct-22
Slough Borough Council,293,Surecare Slough,M44D,Adult Social Care Operations,Supplies and Services,"1,074.02",Oct-22
Slough Borough Council,293,Surecare Slough,M44D,Adult Social Care Operations,Supplies and Services,"2,394.14",Oct-22
Slough Borough Council,293,Surecare Slough,M44D,Adult Social Care Operations,Supplies and Services,"2,281.94",Oct-22
Slough Borough Council,293,Surecare Slough,M44D,Adult Social Care Operations,Supplies and Services,"2,097.32",Oct-22
Slough Borough Council,293,Surecare Slough,M44E,Adult Social Care Operations,Supplies and Services,802.20,Oct-22
Slough Borough Council,293,Surecare Slough,M44E,Adult Social Care Operations,Supplies and Services,687.84,Oct-22
Slough Borough Council,293,Surecare Slough,M44F,Adult Social Care Operations,Supplies and Services,687.60,Oct-22
Slough Borough Council,293,Surecare Slough,M45C,Adult Social Care Operations,Supplies and Services,"1,188.29",Oct-22
Slough Borough Council,293,Surecare Slough,M45C,Adult Social Care Operations,Supplies and Services,515.76,Oct-22
Slough Borough Council,293,Surecare Slough,M48C,Adult Social Care Operations,Supplies and Services,773.64,Oct-22
Slough Borough Council,293,Surecare Slough,M48C,Adult Social Care Operations,Supplies and Services,"2,674.00",Oct-22
Slough Borough Council,293,Surecare Slough,M48C,Adult Social Care Operations,Supplies and Services,"2,846.45",Oct-22
Slough Borough Council,293,Surecare Slough,M48C,Adult Social Care Operations,Supplies and Services,"1,375.20",Oct-22
Slough Borough Council,1724,Susan Nash,C322,Community,Supplies and Services,588.00,Oct-22
Slough Borough Council,804906,T H White Limited,D750,Place Operations,Supplies and Services,"1,469.49",Oct-22
Slough Borough Council,3369,Teeny Boppers Montessori School,F909,Children & Families,Supplies and Services,"8,354.28",Oct-22
Slough Borough Council,1596,Teleshore (Uk) Limited,D320,Place Operations,Supplies and Services,"3,963.50",Oct-22
Slough Borough Council,1596,Teleshore (Uk) Limited,D320,Place Operations,Supplies and Services,"1,050.60",Oct-22
Slough Borough Council,3168,Thames Valley Berkshire Local Enteprise Partnership Ltd,D006,Place Management,Supplies and Services,"11,078.00",Oct-22
Slough Borough Council,807878,Thames Valley Buses,D512,Place Strategy & Infrastructure,Supplies and Services,"6,911.55",Oct-22
Slough Borough Council,807878,Thames Valley Buses,D512,Place Strategy & Infrastructure,Supplies and Services,"13,924.47",Oct-22
Slough Borough Council,807878,Thames Valley Buses,D512,Place Strategy & Infrastructure,Supplies and Services,"1,496.98",Oct-22
Slough Borough Council,803712,Thames Valley Transport Services LTD,F123,Education & Inclusion,Supplies and Services,"17,046.00",Oct-22
Slough Borough Council,803712,Thames Valley Transport Services LTD,F123,Education & Inclusion,Supplies and Services,"80,056.86",Oct-22
Slough Borough Council,717,Thames Water Utilities Limited,J015,Place Management,Premises,"3,515.85",Oct-22
Slough Borough Council,808451,The Address Management,H205,Housing (People) Services,Supplies and Services,"1,650.00",Oct-22
Slough Borough Council,808451,The Address Management,H205,Housing (People) Services,Supplies and Services,"1,650.00",Oct-22
Slough Borough Council,808451,The Address Management,H205,Housing (People) Services,Supplies and Services,"1,650.00",Oct-22
Slough Borough Council,808451,The Address Management,H205,Housing (People) Services,Supplies and Services,"1,950.00",Oct-22
Slough Borough Council,808451,The Address Management,H205,Housing (People) Services,Supplies and Services,"1,650.00",Oct-22
Slough Borough Council,808451,The Address Management,H205,Housing (People) Services,Supplies and Services,"1,650.00",Oct-22
Slough Borough Council,3344,The Caldecott Foundation,F551,Children & Families,Supplies and Services,"12,675.00",Oct-22
Slough Borough Council,653,The Godolphin Junior Academy,E620,Children & Families,Supplies and Services,"7,476.60",Oct-22
Slough Borough Council,653,The Godolphin Junior Academy,B297,Finance & Commercial,Government Grants,"2,490.00",Oct-22
Slough Borough Council,1385,The Langley Academy,E610,Children & Families,Supplies and Services,"14,375.00",Oct-22
Slough Borough Council,803300,The Langley Academy Primary,E610,Children & Families,Supplies and Services,"23,054.68",Oct-22
Slough Borough Council,806847,The Langley Heritage Primary Academy,E620,Children & Families,Supplies and Services,"14,726.66",Oct-22
Slough Borough Council,805400,The Leading Care Company,M44C,Adult Social Care Operations,Supplies and Services,"1,158.32",Oct-22
Slough Borough Council,805400,The Leading Care Company,M44C,Adult Social Care Operations,Supplies and Services,720.18,Oct-22
Slough Borough Council,805400,The Leading Care Company,M44C,Adult Social Care Operations,Supplies and Services,"1,846.26",Oct-22
Slough Borough Council,805400,The Leading Care Company,M44C,Adult Social Care Operations,Supplies and Services,735.20,Oct-22
Slough Borough Council,805400,The Leading Care Company,M44C,Adult Social Care Operations,Supplies and Services,606.46,Oct-22
Slough Borough Council,805400,The Leading Care Company,M44C,Adult Social Care Operations,Supplies and Services,709.78,Oct-22
Slough Borough Council,805400,The Leading Care Company,M44C,Adult Social Care Operations,Supplies and Services,845.72,Oct-22
Slough Borough Council,805400,The Leading Care Company,M44D,Adult Social Care Operations,Supplies and Services,"1,118.66",Oct-22
Slough Borough Council,805400,The Leading Care Company,M45C,Adult Social Care Operations,Supplies and Services,"1,257.34",Oct-22
Slough Borough Council,805400,The Leading Care Company,M48C,Adult Social Care Operations,Supplies and Services,"3,800.16",Oct-22
Slough Borough Council,1794,The Light UK,M44E,Adult Social Care Operations,Supplies and Services,650.00,Oct-22
Slough Borough Council,1794,The Light UK,M44E,Adult Social Care Operations,Supplies and Services,650.00,Oct-22
Slough Borough Council,1794,The Light UK,M44E,Adult Social Care Operations,Supplies and Services,603.00,Oct-22
Slough Borough Council,1794,The Light UK,M44E,Adult Social Care Operations,Supplies and Services,670.00,Oct-22
Slough Borough Council,1955,The National Flood Forum,P187,Capital,Capital Charges,"14,800.00",Oct-22
Slough Borough Council,3116,The Oratory Montessori Day Nursery,F909,Children & Families,Supplies and Services,"13,699.58",Oct-22
Slough Borough Council,803338,The Owl Centre,F417,Education & Inclusion,Supplies and Services,951.30,Oct-22
Slough Borough Council,807439,The Pines,M26E,Adult Social Care Operations,Supplies and Services,"4,813.71",Oct-22
Slough Borough Council,807439,The Pines,M26E,Adult Social Care Operations,Supplies and Services,"3,185.83",Oct-22
Slough Borough Council,807439,The Pines,M27F,Adult Social Care Operations,Supplies and Services,"8,268.14",Oct-22
Slough Borough Council,807439,The Pines,M27F,Adult Social Care Operations,Supplies and Services,"8,268.14",Oct-22
Slough Borough Council,807439,The Pines,M27F,Adult Social Care Operations,Supplies and Services,"8,001.04",Oct-22
Slough Borough Council,96,The Play Inspection Company Ltd,D900,Place Operations,Indirect Employee Expenses,"1,155.00",Oct-22
Slough Borough Council,2898,The Regard Partnership Ltd,M26E,Adult Social Care Operations,Supplies and Services,"7,231.77",Oct-22
Slough Borough Council,2898,The Regard Partnership Ltd,M26E,Adult Social Care Operations,Supplies and Services,"6,107.75",Oct-22
Slough Borough Council,2898,The Regard Partnership Ltd,M42E,Adult Social Care Operations,Supplies and Services,"4,744.77",Oct-22
Slough Borough Council,2898,The Regard Partnership Ltd,M42E,Adult Social Care Operations,Supplies and Services,"4,744.77",Oct-22
Slough Borough Council,2898,The Regard Partnership Ltd,M42E,Adult Social Care Operations,Supplies and Services,"4,591.71",Oct-22
Slough Borough Council,2898,The Regard Partnership Ltd,M42E,Adult Social Care Operations,Supplies and Services,"4,744.77",Oct-22
Slough Borough Council,2898,The Regard Partnership Ltd,M42E,Adult Social Care Operations,Supplies and Services,"4,744.77",Oct-22
Slough Borough Council,2898,The Regard Partnership Ltd,M42E,Adult Social Care Operations,Supplies and Services,"4,591.71",Oct-22
Slough Borough Council,821,The Westgate School,E610,Children & Families,Supplies and Services,"169,731.98",Oct-22
Slough Borough Council,808553,Theori Housing Management Services Ltd,H205,Housing (People) Services,Supplies and Services,588.00,Oct-22
Slough Borough Council,806360,Tiny Turtles Daycare Nursery Ltd,F909,Children & Families,Supplies and Services,"14,977.65",Oct-22
Slough Borough Council,803194,TMP Worldwide,B348,People,Indirect Employee Expenses,722.25,Oct-22
Slough Borough Council,803194,TMP Worldwide,B348,People,Indirect Employee Expenses,"3,187.53",Oct-22
Slough Borough Council,171,Toad Hall Nursery,F909,Children & Families,Supplies and Services,"23,509.31",Oct-22
Slough Borough Council,1782,Top Mill Ltd,H205,Housing (People) Services,Supplies and Services,560.00,Oct-22
Slough Borough Council,1782,Top Mill Ltd,H205,Housing (People) Services,Supplies and Services,560.00,Oct-22
Slough Borough Council,1782,Top Mill Ltd,H205,Housing (People) Services,Supplies and Services,560.00,Oct-22
Slough Borough Council,1782,Top Mill Ltd,H205,Housing (People) Services,Supplies and Services,560.00,Oct-22
Slough Borough Council,1782,Top Mill Ltd,H205,Housing (People) Services,Supplies and Services,560.00,Oct-22
Slough Borough Council,1782,Top Mill Ltd,H205,Housing (People) Services,Supplies and Services,560.00,Oct-22
Slough Borough Council,1782,Top Mill Ltd,H205,Housing (People) Services,Supplies and Services,560.00,Oct-22
Slough Borough Council,1157,Total Gas & Power,B668,Building Management,Premises,"5,765.41",Oct-22
Slough Borough Council,807871,Total Pest Control (UK) Limited,C001,Place Operations,Supplies and Services,637.50,Oct-22
Slough Borough Council,2889,Tudor (UK) Ltd t/a Tudor Environmental,D750,Place Operations,Supplies and Services,706.75,Oct-22
Slough Borough Council,2889,Tudor (UK) Ltd t/a Tudor Environmental,D750,Place Operations,Supplies and Services,653.10,Oct-22
Slough Borough Council,2889,Tudor (UK) Ltd t/a Tudor Environmental,D750,Place Operations,Supplies and Services,"1,788.00",Oct-22
Slough Borough Council,2889,Tudor (UK) Ltd t/a Tudor Environmental,D750,Place Operations,Supplies and Services,530.40,Oct-22
Slough Borough Council,2889,Tudor (UK) Ltd t/a Tudor Environmental,D750,Place Operations,Supplies and Services,"2,022.78",Oct-22
Slough Borough Council,2889,Tudor (UK) Ltd t/a Tudor Environmental,D750,Place Operations,Supplies and Services,"2,406.86",Oct-22
Slough Borough Council,2889,Tudor (UK) Ltd t/a Tudor Environmental,D750,Place Operations,Supplies and Services,"1,053.18",Oct-22
Slough Borough Council,942,Turning Point,A04C,Adult Social Care Operations,Supplies and Services,"42,603.00",Oct-22
Slough Borough Council,942,Turning Point,A04C,Adult Social Care Operations,Supplies and Services,"186,334.75",Oct-22
Slough Borough Council,807414,Uniq Health Care,M42E,Adult Social Care Operations,Supplies and Services,"1,228.00",Oct-22
Slough Borough Council,807414,Uniq Health Care,M42E,Adult Social Care Operations,Supplies and Services,"1,228.00",Oct-22
Slough Borough Council,807414,Uniq Health Care,M42E,Adult Social Care Operations,Supplies and Services,"1,228.00",Oct-22
Slough Borough Council,807414,Uniq Health Care,M42E,Adult Social Care Operations,Supplies and Services,"1,228.00",Oct-22
Slough Borough Council,807414,Uniq Health Care,M42E,Adult Social Care Operations,Supplies and Services,"1,228.00",Oct-22
Slough Borough Council,3953,Upton Court Grammar School,E610,Children & Families,Supplies and Services,"2,500.00",Oct-22
Slough Borough Council,577,Upton Park Hotel,H205,Housing (People) Services,Supplies and Services,"4,200.00",Oct-22
Slough Borough Council,577,Upton Park Hotel,H205,Housing (People) Services,Supplies and Services,"4,200.00",Oct-22
Slough Borough Council,577,Upton Park Hotel,H205,Housing (People) Services,Supplies and Services,"1,715.00",Oct-22
Slough Borough Council,577,Upton Park Hotel,H205,Housing (People) Services,Supplies and Services,"2,730.00",Oct-22
Slough Borough Council,577,Upton Park Hotel,H205,Housing (People) Services,Supplies and Services,"1,715.00",Oct-22
Slough Borough Council,577,Upton Park Hotel,H205,Housing (People) Services,Supplies and Services,"1,715.00",Oct-22
Slough Borough Council,577,Upton Park Hotel,H205,Housing (People) Services,Supplies and Services,"1,715.00",Oct-22
Slough Borough Council,577,Upton Park Hotel,H205,Housing (People) Services,Supplies and Services,"1,715.00",Oct-22
Slough Borough Council,577,Upton Park Hotel,H205,Housing (People) Services,Supplies and Services,"1,715.00",Oct-22
Slough Borough Council,577,Upton Park Hotel,H205,Housing (People) Services,Supplies and Services,"1,715.00",Oct-22
Slough Borough Council,577,Upton Park Hotel,H205,Housing (People) Services,Supplies and Services,"1,715.00",Oct-22
Slough Borough Council,577,Upton Park Hotel,H205,Housing (People) Services,Supplies and Services,"4,200.00",Oct-22
Slough Borough Council,577,Upton Park Hotel,H205,Housing (People) Services,Supplies and Services,"1,890.00",Oct-22
Slough Borough Council,577,Upton Park Hotel,H205,Housing (People) Services,Supplies and Services,"1,890.00",Oct-22
Slough Borough Council,577,Upton Park Hotel,H205,Housing (People) Services,Supplies and Services,"1,715.00",Oct-22
Slough Borough Council,577,Upton Park Hotel,H205,Housing (People) Services,Supplies and Services,"1,482.00",Oct-22
Slough Borough Council,577,Upton Park Hotel,H205,Housing (People) Services,Supplies and Services,"1,715.00",Oct-22
Slough Borough Council,577,Upton Park Hotel,H205,Housing (People) Services,Supplies and Services,"1,715.00",Oct-22
Slough Borough Council,577,Upton Park Hotel,H205,Housing (People) Services,Supplies and Services,"1,715.00",Oct-22
Slough Borough Council,577,Upton Park Hotel,H205,Housing (People) Services,Supplies and Services,"1,715.00",Oct-22
Slough Borough Council,577,Upton Park Hotel,H205,Housing (People) Services,Supplies and Services,"1,715.00",Oct-22
Slough Borough Council,577,Upton Park Hotel,H205,Housing (People) Services,Supplies and Services,"1,715.00",Oct-22
Slough Borough Council,577,Upton Park Hotel,H205,Housing (People) Services,Supplies and Services,"1,715.00",Oct-22
Slough Borough Council,577,Upton Park Hotel,H205,Housing (People) Services,Supplies and Services,"1,715.00",Oct-22
Slough Borough Council,577,Upton Park Hotel,H205,Housing (People) Services,Supplies and Services,"1,715.00",Oct-22
Slough Borough Council,577,Upton Park Hotel,H205,Housing (People) Services,Supplies and Services,"1,715.00",Oct-22
Slough Borough Council,577,Upton Park Hotel,H205,Housing (People) Services,Supplies and Services,"1,715.00",Oct-22
Slough Borough Council,577,Upton Park Hotel,H205,Housing (People) Services,Supplies and Services,"2,310.00",Oct-22
Slough Borough Council,577,Upton Park Hotel,H205,Housing (People) Services,Supplies and Services,"1,715.00",Oct-22
Slough Borough Council,577,Upton Park Hotel,H205,Housing (People) Services,Supplies and Services,"1,715.00",Oct-22
Slough Borough Council,577,Upton Park Hotel,H205,Housing (People) Services,Supplies and Services,"1,715.00",Oct-22
Slough Borough Council,577,Upton Park Hotel,H205,Housing (People) Services,Supplies and Services,"1,715.00",Oct-22
Slough Borough Council,577,Upton Park Hotel,H205,Housing (People) Services,Supplies and Services,"1,715.00",Oct-22
Slough Borough Council,577,Upton Park Hotel,H205,Housing (People) Services,Supplies and Services,"1,617.00",Oct-22
Slough Borough Council,577,Upton Park Hotel,H205,Housing (People) Services,Supplies and Services,"1,225.00",Oct-22
Slough Borough Council,577,Upton Park Hotel,H205,Housing (People) Services,Supplies and Services,"1,519.00",Oct-22
Slough Borough Council,577,Upton Park Hotel,H205,Housing (People) Services,Supplies and Services,"1,715.00",Oct-22
Slough Borough Council,577,Upton Park Hotel,H205,Housing (People) Services,Supplies and Services,"1,715.00",Oct-22
Slough Borough Council,577,Upton Park Hotel,H205,Housing (People) Services,Supplies and Services,"1,715.00",Oct-22
Slough Borough Council,577,Upton Park Hotel,H205,Housing (People) Services,Supplies and Services,"1,715.00",Oct-22
Slough Borough Council,577,Upton Park Hotel,H205,Housing (People) Services,Supplies and Services,"1,715.00",Oct-22
Slough Borough Council,577,Upton Park Hotel,H205,Housing (People) Services,Supplies and Services,"1,715.00",Oct-22
Slough Borough Council,577,Upton Park Hotel,H205,Housing (People) Services,Supplies and Services,"1,715.00",Oct-22
Slough Borough Council,577,Upton Park Hotel,H205,Housing (People) Services,Supplies and Services,"1,715.00",Oct-22
Slough Borough Council,577,Upton Park Hotel,H205,Housing (People) Services,Supplies and Services,"1,715.00",Oct-22
Slough Borough Council,577,Upton Park Hotel,H205,Housing (People) Services,Supplies and Services,"1,715.00",Oct-22
Slough Borough Council,577,Upton Park Hotel,H205,Housing (People) Services,Supplies and Services,"1,715.00",Oct-22
Slough Borough Council,577,Upton Park Hotel,H205,Housing (People) Services,Supplies and Services,"1,715.00",Oct-22
Slough Borough Council,577,Upton Park Hotel,H205,Housing (People) Services,Supplies and Services,"1,715.00",Oct-22
Slough Borough Council,577,Upton Park Hotel,H205,Housing (People) Services,Supplies and Services,"1,715.00",Oct-22
Slough Borough Council,577,Upton Park Hotel,H205,Housing (People) Services,Supplies and Services,"1,715.00",Oct-22
Slough Borough Council,577,Upton Park Hotel,H205,Housing (People) Services,Supplies and Services,"1,715.00",Oct-22
Slough Borough Council,1212,Virgin Media Ltd,B023,Finance & Commercial,Supplies and Services,"3,293.79",Oct-22
Slough Borough Council,1212,Virgin Media Ltd,B023,Finance & Commercial,Supplies and Services,"3,100.87",Oct-22
Slough Borough Council,1839,Vistascapes,J607,Place Management,Supplies and Services,"1,835.08",Oct-22
Slough Borough Council,807617,Vivedia Ltd t/a Obitus,D320,Place Operations,External Receipts,"1,663.00",Oct-22
Slough Borough Council,752,Vodafone Limited,B282,Digital and Strategic IT,Supplies and Services,"1,611.36",Oct-22
Slough Borough Council,803163,Volker Highways,D413,Place Strategy & Infrastructure,Supplies and Services,"6,262.69",Oct-22
Slough Borough Council,2682,Voyage 1 Limited,M26E,Adult Social Care Operations,Supplies and Services,607.11,Oct-22
Slough Borough Council,2682,Voyage 1 Limited,M26E,Adult Social Care Operations,Supplies and Services,"6,473.70",Oct-22
Slough Borough Council,2682,Voyage 1 Limited,M26E,Adult Social Care Operations,Supplies and Services,"5,064.69",Oct-22
Slough Borough Council,2682,Voyage 1 Limited,M26E,Adult Social Care Operations,Supplies and Services,"7,818.96",Oct-22
Slough Borough Council,2682,Voyage 1 Limited,M26E,Adult Social Care Operations,Supplies and Services,"5,477.92",Oct-22
Slough Borough Council,2682,Voyage 1 Limited,M27F,Adult Social Care Operations,Supplies and Services,"5,016.97",Oct-22
Slough Borough Council,2682,Voyage 1 Limited,M26E,Adult Social Care Operations,Supplies and Services,"7,573.23",Oct-22
Slough Borough Council,2682,Voyage 1 Limited,M26E,Adult Social Care Operations,External Receipts,-725.05,Oct-22
Slough Borough Council,2682,Voyage 1 Limited,M26E,Adult Social Care Operations,External Receipts,-672.64,Oct-22
Slough Borough Council,3436,Voyage Ltd,M26E,Adult Social Care Operations,Supplies and Services,"3,575.98",Oct-22
Slough Borough Council,3436,Voyage Ltd,M26E,Adult Social Care Operations,Supplies and Services,"5,723.62",Oct-22
Slough Borough Council,3436,Voyage Ltd,M42E,Adult Social Care Operations,Supplies and Services,"5,517.74",Oct-22
Slough Borough Council,3436,Voyage Ltd,M42E,Adult Social Care Operations,Supplies and Services,"4,764.02",Oct-22
Slough Borough Council,3436,Voyage Ltd,M42E,Adult Social Care Operations,Supplies and Services,"4,831.25",Oct-22
Slough Borough Council,3436,Voyage Ltd,M42E,Adult Social Care Operations,Supplies and Services,"5,657.93",Oct-22
Slough Borough Council,3436,Voyage Ltd,M42E,Adult Social Care Operations,Supplies and Services,"5,077.60",Oct-22
Slough Borough Council,3436,Voyage Ltd,M42E,Adult Social Care Operations,Supplies and Services,"5,685.90",Oct-22
Slough Borough Council,3436,Voyage Ltd,M42E,Adult Social Care Operations,Supplies and Services,"5,473.90",Oct-22
Slough Borough Council,808416,WATERMELON PROPERTIES LIMITED,H205,Housing (People) Services,Supplies and Services,"1,800.00",Oct-22
Slough Borough Council,1762,Wellingtons For Langley Hall,F909,Children & Families,Supplies and Services,615.00,Oct-22
Slough Borough Council,1762,Wellingtons For Langley Hall,F909,Children & Families,Supplies and Services,"72,824.09",Oct-22
Slough Borough Council,2891,West Berkshire Council,A08R,Adult Social Care Operations,Supplies and Services,"82,810.79",Oct-22
Slough Borough Council,774,West Berkshire County Council,M36E,Adult Social Care Operations,Supplies and Services,"1,583.88",Oct-22
Slough Borough Council,1623,West Berkshire District Council,A01L,Adult Social Care Operations,Supplies and Services,"52,593.00",Oct-22
Slough Borough Council,1749,West London Ymca,H205,Housing (People) Services,Supplies and Services,"1,500.00",Oct-22
Slough Borough Council,1749,West London Ymca,H205,Housing (People) Services,Supplies and Services,"1,500.00",Oct-22
Slough Borough Council,1749,West London Ymca,H205,Housing (People) Services,Supplies and Services,"1,500.00",Oct-22
Slough Borough Council,1749,West London Ymca,H205,Housing (People) Services,Supplies and Services,"1,500.00",Oct-22
Slough Borough Council,1649,Western House Primary School,E610,Children & Families,Supplies and Services,"21,838.33",Oct-22
Slough Borough Council,1649,Western House Primary School,B297,Finance & Commercial,Government Grants,"1,485.00",Oct-22
Slough Borough Council,3628,White Leaf Care Ltd,M26E,Adult Social Care Operations,Supplies and Services,"4,198.28",Oct-22
Slough Borough Council,3628,White Leaf Care Ltd,M27C,Adult Social Care Operations,Supplies and Services,"7,985.60",Oct-22
Slough Borough Council,808062,Whitefriars Nursing & Residential Home,M26E,Adult Social Care Operations,Supplies and Services,"3,726.20",Oct-22
Slough Borough Council,1753,Willow Primary School,E620,Children & Families,Supplies and Services,"17,089.27",Oct-22
Slough Borough Council,805208,Wilson & Scott (Highways) Ltd,D880,Place Operations,Supplies and Services,"2,598.66",Oct-22
Slough Borough Council,807549,Windsar Care (UK) LLP,M15D,Adult Social Care Operations,Supplies and Services,"2,571.43",Oct-22
Slough Borough Council,807549,Windsar Care (UK) LLP,M15D,Adult Social Care Operations,Supplies and Services,"1,789.07",Oct-22
Slough Borough Council,807549,Windsar Care (UK) LLP,M15F,Adult Social Care Operations,Supplies and Services,"4,071.43",Oct-22
Slough Borough Council,807549,Windsar Care (UK) LLP,M15F,Adult Social Care Operations,Supplies and Services,"4,071.43",Oct-22
Slough Borough Council,807549,Windsar Care (UK) LLP,M17C,Adult Social Care Operations,Supplies and Services,"4,178.57",Oct-22
Slough Borough Council,807549,Windsar Care (UK) LLP,M18C,Adult Social Care Operations,Supplies and Services,"4,178.57",Oct-22
Slough Borough Council,807549,Windsar Care (UK) LLP,M18C,Adult Social Care Operations,Supplies and Services,"4,071.43",Oct-22
Slough Borough Council,807549,Windsar Care (UK) LLP,M18C,Adult Social Care Operations,Supplies and Services,"4,178.57",Oct-22
Slough Borough Council,807549,Windsar Care (UK) LLP,M27F,Adult Social Care Operations,Supplies and Services,"2,089.29",Oct-22
Slough Borough Council,804807,Windsar Care Centre Ltd,M15D,Adult Social Care Operations,Supplies and Services,"6,428.57",Oct-22
Slough Borough Council,804807,Windsar Care Centre Ltd,M15F,Adult Social Care Operations,Supplies and Services,"3,171.43",Oct-22
Slough Borough Council,804807,Windsar Care Centre Ltd,M17C,Adult Social Care Operations,Supplies and Services,"4,178.57",Oct-22
Slough Borough Council,804807,Windsar Care Centre Ltd,M17C,Adult Social Care Operations,Supplies and Services,"4,071.43",Oct-22
Slough Borough Council,804807,Windsar Care Centre Ltd,M18C,Adult Social Care Operations,Supplies and Services,"4,178.57",Oct-22
Slough Borough Council,804807,Windsar Care Centre Ltd,M18C,Adult Social Care Operations,Supplies and Services,"3,857.14",Oct-22
Slough Borough Council,804807,Windsar Care Centre Ltd,M18C,Adult Social Care Operations,Supplies and Services,"4,178.57",Oct-22
Slough Borough Council,804807,Windsar Care Centre Ltd,M18C,Adult Social Care Operations,Supplies and Services,"3,214.29",Oct-22
Slough Borough Council,804807,Windsar Care Centre Ltd,M18C,Adult Social Care Operations,Supplies and Services,"4,178.57",Oct-22
Slough Borough Council,804807,Windsar Care Centre Ltd,M18C,Adult Social Care Operations,Supplies and Services,"5,142.86",Oct-22
Slough Borough Council,804807,Windsar Care Centre Ltd,M18C,Adult Social Care Operations,Supplies and Services,"4,178.57",Oct-22
Slough Borough Council,804807,Windsar Care Centre Ltd,M18C,Adult Social Care Operations,Supplies and Services,"3,857.14",Oct-22
Slough Borough Council,804807,Windsar Care Centre Ltd,M27C,Adult Social Care Operations,Supplies and Services,"3,642.86",Oct-22
Slough Borough Council,3604,Windsar Care Ltd,M15F,Adult Social Care Operations,Supplies and Services,"4,285.71",Oct-22
Slough Borough Council,3604,Windsar Care Ltd,M15F,Adult Social Care Operations,Supplies and Services,"4,428.57",Oct-22
Slough Borough Council,3604,Windsar Care Ltd,M15F,Adult Social Care Operations,Supplies and Services,"4,000.00",Oct-22
Slough Borough Council,3604,Windsar Care Ltd,M15F,Adult Social Care Operations,Supplies and Services,"4,285.71",Oct-22
Slough Borough Council,3604,Windsar Care Ltd,M15F,Adult Social Care Operations,Supplies and Services,"4,428.57",Oct-22
Slough Borough Council,3604,Windsar Care Ltd,M15F,Adult Social Care Operations,Supplies and Services,"4,285.71",Oct-22
Slough Borough Council,3604,Windsar Care Ltd,M15F,Adult Social Care Operations,Supplies and Services,"4,428.58",Oct-22
Slough Borough Council,3604,Windsar Care Ltd,M15F,Adult Social Care Operations,Supplies and Services,"4,285.71",Oct-22
Slough Borough Council,3604,Windsar Care Ltd,M15F,Adult Social Care Operations,Supplies and Services,"4,428.57",Oct-22
Slough Borough Council,3604,Windsar Care Ltd,M15F,Adult Social Care Operations,Supplies and Services,"4,428.57",Oct-22
Slough Borough Council,3604,Windsar Care Ltd,M15F,Adult Social Care Operations,Supplies and Services,"4,428.57",Oct-22
Slough Borough Council,3604,Windsar Care Ltd,M15F,Adult Social Care Operations,Supplies and Services,"5,314.29",Oct-22
Slough Borough Council,3604,Windsar Care Ltd,M15F,Adult Social Care Operations,Supplies and Services,"4,428.57",Oct-22
Slough Borough Council,3604,Windsar Care Ltd,M15F,Adult Social Care Operations,Supplies and Services,"4,285.71",Oct-22
Slough Borough Council,3604,Windsar Care Ltd,M15F,Adult Social Care Operations,Supplies and Services,"4,428.57",Oct-22
Slough Borough Council,3604,Windsar Care Ltd,M15F,Adult Social Care Operations,Supplies and Services,"2,103.57",Oct-22
Slough Borough Council,3604,Windsar Care Ltd,M15F,Adult Social Care Operations,Supplies and Services,"2,571.43",Oct-22
Slough Borough Council,3604,Windsar Care Ltd,M15F,Adult Social Care Operations,Supplies and Services,"4,428.57",Oct-22
Slough Borough Council,3604,Windsar Care Ltd,M15F,Adult Social Care Operations,Supplies and Services,"3,985.71",Oct-22
Slough Borough Council,3604,Windsar Care Ltd,M15F,Adult Social Care Operations,Supplies and Services,"2,657.14",Oct-22
Slough Borough Council,3604,Windsar Care Ltd,M15F,Adult Social Care Operations,Supplies and Services,"3,432.14",Oct-22
Slough Borough Council,3604,Windsar Care Ltd,M17C,Adult Social Care Operations,Supplies and Services,"3,321.43",Oct-22
Slough Borough Council,3604,Windsar Care Ltd,M18C,Adult Social Care Operations,Supplies and Services,"3,542.86",Oct-22
Slough Borough Council,3604,Windsar Care Ltd,M18C,Adult Social Care Operations,Supplies and Services,"3,875.00",Oct-22
Slough Borough Council,3604,Windsar Care Ltd,M25C,Adult Social Care Operations,Supplies and Services,"3,321.43",Oct-22
Slough Borough Council,3604,Windsar Care Ltd,M25C,Adult Social Care Operations,Supplies and Services,"3,985.71",Oct-22
Slough Borough Council,3604,Windsar Care Ltd,M25D,Adult Social Care Operations,Supplies and Services,"4,178.57",Oct-22
Slough Borough Council,3604,Windsar Care Ltd,M26E,Adult Social Care Operations,Supplies and Services,"3,321.43",Oct-22
Slough Borough Council,3604,Windsar Care Ltd,M27C,Adult Social Care Operations,Supplies and Services,"3,985.71",Oct-22
Slough Borough Council,806641,Windsor Care Limited,M17C,Adult Social Care Operations,Supplies and Services,"1,650.00",Oct-22
Slough Borough Council,748,YMCA St Paul�s Group,H211,Adult Social Care Operations,Supplies and Services,"8,531.29",Oct-22
Slough Borough Council,808247,Yunex Limited,P240,Capital,Capital Charges,"10,273.81",Oct-22
